Body Name,Portfolio,Organisation Code,Org Code Description,Object Code,Object Code Description,GL Date,Invoice No.,Value,Supplier,Category,Category Description
SHEFFIELD CITY COUNCIL,PLACE,12018528250,ESIF GROWTH HUB,8440000,FEE EXPENSES,02/07/2018,15555,"5,000.00",121 IT SERVICES LTD,CT080520620,Computer Consultants
SHEFFIELD CITY COUNCIL,PEOPLE,14046849702,SOUTH,8180000,GRANTS,11/07/2018,65827,500.00,280TH ST JAMES NORTON SCOUTS,CT209919470,Clubs & Associations
SHEFFIELD CITY COUNCIL,PLACE,12075922074,DEVELOPMENT MANAGEMENT,4180000,PLANNING APPLICATION FEES,03/07/2018,63397,385.00,3739 LIMITED,CT074061895,Property Developers
SHEFFIELD CITY COUNCIL,PEOPLE,14046849705,NORTH,8180000,GRANTS,11/07/2018,65833,500.00,4SLC FOR STOCKSBRIDGE LEISURE CENTRE TRU,CT230417020,Charities & Voluntary Organisations
SHEFFIELD CITY COUNCIL,PEOPLE,13004132048,SCHOOL SPORTS,6280000,HIRE OF PREMISES,10/07/2018,HLT-SI106961,500.40,7 HILLS LEISURE TRUST,CT209972900,Sports Ground & Stadium Contractors
SHEFFIELD CITY COUNCIL,PLACE,12045121023,INCLUSIVE SPORT PROJECT,6280000,HIRE OF PREMISES,17/07/2018,HLT-SI105425,600.00,7 HILLS LEISURE TRUST,CT209972900,Sports Ground & Stadium Contractors
SHEFFIELD CITY COUNCIL,PEOPLE,13004132048,SCHOOL SPORTS,6280000,HIRE OF PREMISES,30/07/2018,HLT-SI107560,700.56,7 HILLS LEISURE TRUST,CT209972900,Sports Ground & Stadium Contractors
SHEFFIELD CITY COUNCIL,PEOPLE,14009242034,PURCHASING LEARNING DISABILITI,9240000,SUPPORTED LIVING CARE,06/07/2018,P2-2017-628,312.11,ABBEYCARE AND NURSING AT HOME LTD,CT230243419,Home Care Services
SHEFFIELD CITY COUNCIL,PEOPLE,13008533112,LDD PLACEMENTS AUG16-JUL17,9120000,OTHER AGENCIES,03/07/2018,HLT-SI105493,"1,056.00",7 HILLS LEISURE TRUST,CT209972900,Sports Ground & Stadium Contractors
SHEFFIELD CITY COUNCIL,PEOPLE,13004132048,SCHOOL SPORTS,6280000,HIRE OF PREMISES,10/07/2018,HLT-SI106961,"1,100.88",7 HILLS LEISURE TRUST,CT209972900,Sports Ground & Stadium Contractors
SHEFFIELD CITY COUNCIL,PEOPLE,13004132048,SCHOOL SPORTS,6280000,HIRE OF PREMISES,16/07/2018,HLT-SI107662,"1,200.96",7 HILLS LEISURE TRUST,CT209972900,Sports Ground & Stadium Contractors
SHEFFIELD CITY COUNCIL,PEOPLE,13004132048,SCHOOL SPORTS,6280000,HIRE OF PREMISES,04/07/2018,HLT-SI107644,"1,601.28",7 HILLS LEISURE TRUST,CT209972900,Sports Ground & Stadium Contractors
SHEFFIELD CITY COUNCIL,PEOPLE,14009242034,PURCHASING LEARNING DISABILITI,9240000,SUPPORTED LIVING CARE,24/07/2018,P3ACN2017652,312.20,ABBEYCARE AND NURSING AT HOME LTD,CT230243419,Home Care Services
SHEFFIELD CITY COUNCIL,PEOPLE,14009242034,PURCHASING LEARNING DISABILITI,9240000,SUPPORTED LIVING CARE,06/07/2018,P2-2017-628,322.00,ABBEYCARE AND NURSING AT HOME LTD,CT230243419,Home Care Services
SHEFFIELD CITY COUNCIL,PEOPLE,13008533112,LDD PLACEMENTS AUG16-JUL17,9120000,OTHER AGENCIES,03/07/2018,HLT-SI107231,"1,716.00",7 HILLS LEISURE TRUST,CT209972900,Sports Ground & Stadium Contractors
SHEFFIELD CITY COUNCIL,PEOPLE,14009242034,PURCHASING LEARNING DISABILITI,9240000,SUPPORTED LIVING CARE,24/07/2018,P3ACN2017652,374.33,ABBEYCARE AND NURSING AT HOME LTD,CT230243419,Home Care Services
SHEFFIELD CITY COUNCIL,PEOPLE,13004132048,SCHOOL SPORTS,6280000,HIRE OF PREMISES,27/07/2018,HLT-SI107566,"1,801.44",7 HILLS LEISURE TRUST,CT209972900,Sports Ground & Stadium Contractors
SHEFFIELD CITY COUNCIL,PEOPLE,13004132048,SCHOOL SPORTS,6280000,HIRE OF PREMISES,19/07/2018,HLT-SI105279,"2,730.00",7 HILLS LEISURE TRUST,CT209972900,Sports Ground & Stadium Contractors
SHEFFIELD CITY COUNCIL,PEOPLE,14009242034,PURCHASING LEARNING DISABILITI,9240000,SUPPORTED LIVING CARE,06/07/2018,P2-2017-628,624.40,ABBEYCARE AND NURSING AT HOME LTD,CT230243419,Home Care Services
SHEFFIELD CITY COUNCIL,PLACE,12046321222,STRATEGIC DEVELOPMENT MANAGER,8440000,FEE EXPENSES,03/07/2018,HLT-SI106728,"7,459.82",7 HILLS LEISURE TRUST,CT209972900,Sports Ground & Stadium Contractors
SHEFFIELD CITY COUNCIL,"POLICY, PERFORMANCE AND COMMS",11705200000,LOCAL ELECTIONS,6280000,HIRE OF PREMISES,19/07/2018,67021,300.00,74TH OAK STREET SCOUT GROUP,CT209919470,Clubs & Associations
SHEFFIELD CITY COUNCIL,PEOPLE,14009242034,PURCHASING LEARNING DISABILITI,9240000,SUPPORTED LIVING CARE,24/07/2018,P3ACN2017652,624.40,ABBEYCARE AND NURSING AT HOME LTD,CT230243419,Home Care Services
SHEFFIELD CITY COUNCIL,PEOPLE,14009242034,PURCHASING LEARNING DISABILITI,9240000,SUPPORTED LIVING CARE,06/07/2018,P2-2017-628,755.52,ABBEYCARE AND NURSING AT HOME LTD,CT230243419,Home Care Services
SHEFFIELD CITY COUNCIL,PLACE,11850100023,PLANNED ELECTRICAL,8530001,SUBCONTRACTOR GENERAL,23/07/2018,17125,320.00,A COOLE ELECTRICAL LTD,CT289930580,Electricians & Electrical Contractors
SHEFFIELD CITY COUNCIL,PEOPLE,14009242034,PURCHASING LEARNING DISABILITI,9240000,SUPPORTED LIVING CARE,24/07/2018,P3ACN2017652,771.26,ABBEYCARE AND NURSING AT HOME LTD,CT230243419,Home Care Services
SHEFFIELD CITY COUNCIL,PLACE,11850200041,VOIDS (INC ENVIRONMENTAL),8530001,SUBCONTRACTOR GENERAL,23/07/2018,17125,480.00,A COOLE ELECTRICAL LTD,CT289930580,Electricians & Electrical Contractors
SHEFFIELD CITY COUNCIL,PEOPLE,13008533112,LDD PLACEMENTS AUG16-JUL17,9120000,OTHER AGENCIES,04/07/2018,1683,272.00,A MIND APART THEATRE COMPANY LTD,CT090327750,Drama Schools
SHEFFIELD CITY COUNCIL,PEOPLE,13007133007,VSP DELIVER,9120000,OTHER AGENCIES,26/07/2018,68691,645.00,A MIND APART THEATRE COMPANY LTD,CT090327750,Drama Schools
SHEFFIELD CITY COUNCIL,PEOPLE,13008533112,LDD PLACEMENTS AUG16-JUL17,9120000,OTHER AGENCIES,23/07/2018,1690,"1,050.00",A MIND APART THEATRE COMPANY LTD,CT090327750,Drama Schools
SHEFFIELD CITY COUNCIL,PEOPLE,13008533112,LDD PLACEMENTS AUG16-JUL17,9120000,OTHER AGENCIES,12/07/2018,1682,"1,400.00",A MIND APART THEATRE COMPANY LTD,CT090327750,Drama Schools
SHEFFIELD CITY COUNCIL,PEOPLE,14009242034,PURCHASING LEARNING DISABILITI,9240000,SUPPORTED LIVING CARE,06/07/2018,P2-2017-628,773.88,ABBEYCARE AND NURSING AT HOME LTD,CT230243419,Home Care Services
SHEFFIELD CITY COUNCIL,PEOPLE,13007133007,VSP DELIVER,9120000,OTHER AGENCIES,04/07/2018,64022,"2,322.00",A MIND APART THEATRE COMPANY LTD,CT090327750,Drama Schools
SHEFFIELD CITY COUNCIL,PEOPLE,14009346039,ADULT SOCIAL CARE PURCHASING,9190004,DIRECT PAYMENTS,10/07/2018,J2324004,712.08,REDACTED PERSONAL DATA,CT9999DIRPY,CAREFIRST DIRECT PAYMENTS
SHEFFIELD CITY COUNCIL,"POLICY, PERFORMANCE AND COMMS",11800300000,COMMUNICATIONS PPC,8550002,ADVERTISING SERVICES INVOICED,11/07/2018,INIV194798,-101.00,A PINDER LTD,CT025222270,Copying & Duplicating Services
SHEFFIELD CITY COUNCIL,"POLICY, PERFORMANCE AND COMMS",11800300000,COMMUNICATIONS PPC,8550002,ADVERTISING SERVICES INVOICED,11/07/2018,INV1950421,-67.57,A PINDER LTD,CT025222270,Copying & Duplicating Services
SHEFFIELD CITY COUNCIL,PEOPLE,14009242034,PURCHASING LEARNING DISABILITI,9240000,SUPPORTED LIVING CARE,06/07/2018,P2-2017-628,773.88,ABBEYCARE AND NURSING AT HOME LTD,CT230243419,Home Care Services
SHEFFIELD CITY COUNCIL,"POLICY, PERFORMANCE AND COMMS",11800300000,COMMUNICATIONS PPC,8550002,ADVERTISING SERVICES INVOICED,09/07/2018,INV195264,255.61,A PINDER LTD,CT025222270,Copying & Duplicating Services
SHEFFIELD CITY COUNCIL,"POLICY, PERFORMANCE AND COMMS",11800300000,COMMUNICATIONS PPC,8550002,ADVERTISING SERVICES INVOICED,27/07/2018,INV195699,262.29,A PINDER LTD,CT025222270,Copying & Duplicating Services
SHEFFIELD CITY COUNCIL,"POLICY, PERFORMANCE AND COMMS",11800300000,COMMUNICATIONS PPC,8550002,ADVERTISING SERVICES INVOICED,27/07/2018,INV195700,262.29,A PINDER LTD,CT025222270,Copying & Duplicating Services
SHEFFIELD CITY COUNCIL,"POLICY, PERFORMANCE AND COMMS",11800300000,COMMUNICATIONS PPC,8550002,ADVERTISING SERVICES INVOICED,27/07/2018,INV195698,262.29,A PINDER LTD,CT025222270,Copying & Duplicating Services
SHEFFIELD CITY COUNCIL,PEOPLE,14009242034,PURCHASING LEARNING DISABILITI,9240000,SUPPORTED LIVING CARE,24/07/2018,P3ACN2017652,773.88,ABBEYCARE AND NURSING AT HOME LTD,CT230243419,Home Care Services
SHEFFIELD CITY COUNCIL,"POLICY, PERFORMANCE AND COMMS",11800300000,COMMUNICATIONS PPC,8550002,ADVERTISING SERVICES INVOICED,16/07/2018,INV195040,280.00,A PINDER LTD,CT025222270,Copying & Duplicating Services
SHEFFIELD CITY COUNCIL,"POLICY, PERFORMANCE AND COMMS",11800300000,COMMUNICATIONS PPC,8550002,ADVERTISING SERVICES INVOICED,27/07/2018,INV195707,343.67,A PINDER LTD,CT025222270,Copying & Duplicating Services
SHEFFIELD CITY COUNCIL,"POLICY, PERFORMANCE AND COMMS",11800300000,COMMUNICATIONS PPC,8550002,ADVERTISING SERVICES INVOICED,27/07/2018,INV195708,365.63,A PINDER LTD,CT025222270,Copying & Duplicating Services
SHEFFIELD CITY COUNCIL,PEOPLE,14009242034,PURCHASING LEARNING DISABILITI,9240000,SUPPORTED LIVING CARE,24/07/2018,P3ACN2017652,773.88,ABBEYCARE AND NURSING AT HOME LTD,CT230243419,Home Care Services
SHEFFIELD CITY COUNCIL,PEOPLE,13002639028,SPECIAL GUARDIANSHIP,9270013,RESIDENCE ORDERS,10/07/2018,1.92E+18,359.80,REDACTED PERSONAL DATA,CT240201880,Adoption & Fostering
SHEFFIELD CITY COUNCIL,PEOPLE,14009242034,PURCHASING LEARNING DISABILITI,9240000,SUPPORTED LIVING CARE,06/07/2018,P2-2017-628,901.16,ABBEYCARE AND NURSING AT HOME LTD,CT230243419,Home Care Services
SHEFFIELD CITY COUNCIL,"POLICY, PERFORMANCE AND COMMS",11800300000,COMMUNICATIONS PPC,8550002,ADVERTISING SERVICES INVOICED,27/07/2018,INV195713,394.61,A PINDER LTD,CT025222270,Copying & Duplicating Services
SHEFFIELD CITY COUNCIL,PEOPLE,14009242034,PURCHASING LEARNING DISABILITI,9240000,SUPPORTED LIVING CARE,24/07/2018,P3ACN2017652,901.16,ABBEYCARE AND NURSING AT HOME LTD,CT230243419,Home Care Services
SHEFFIELD CITY COUNCIL,"POLICY, PERFORMANCE AND COMMS",11800300000,COMMUNICATIONS PPC,8550002,ADVERTISING SERVICES INVOICED,27/07/2018,INV195703,396.24,A PINDER LTD,CT025222270,Copying & Duplicating Services
SHEFFIELD CITY COUNCIL,"POLICY, PERFORMANCE AND COMMS",11800300000,COMMUNICATIONS PPC,8550002,ADVERTISING SERVICES INVOICED,11/07/2018,INV195263,739.00,A PINDER LTD,CT025222270,Copying & Duplicating Services
SHEFFIELD CITY COUNCIL,PEOPLE,14009346039,ADULT SOCIAL CARE PURCHASING,9190003,CITYWIDE SPOT,11/07/2018,ACN201700669,930.07,ABBEYCARE AND NURSING AT HOME LTD,CT230243419,Home Care Services
SHEFFIELD CITY COUNCIL,"POLICY, PERFORMANCE AND COMMS",11800300000,COMMUNICATIONS PPC,8550002,ADVERTISING SERVICES INVOICED,16/07/2018,INV195041,898.00,A PINDER LTD,CT025222270,Copying & Duplicating Services
SHEFFIELD CITY COUNCIL,"POLICY, PERFORMANCE AND COMMS",11800300000,COMMUNICATIONS PPC,8550002,ADVERTISING SERVICES INVOICED,09/07/2018,INV195158,"1,051.25",A PINDER LTD,CT025222270,Copying & Duplicating Services
SHEFFIELD CITY COUNCIL,PEOPLE,14009242034,PURCHASING LEARNING DISABILITI,9240000,SUPPORTED LIVING CARE,06/07/2018,P2-2017-628,"1,153.40",ABBEYCARE AND NURSING AT HOME LTD,CT230243419,Home Care Services
SHEFFIELD CITY COUNCIL,"POLICY, PERFORMANCE AND COMMS",11800300000,COMMUNICATIONS PPC,8550002,ADVERTISING SERVICES INVOICED,27/07/2018,INV195710,"1,134.23",A PINDER LTD,CT025222270,Copying & Duplicating Services
SHEFFIELD CITY COUNCIL,PEOPLE,14009242034,PURCHASING LEARNING DISABILITI,9240000,SUPPORTED LIVING CARE,24/07/2018,P3ACN2017652,"1,153.40",ABBEYCARE AND NURSING AT HOME LTD,CT230243419,Home Care Services
SHEFFIELD CITY COUNCIL,"POLICY, PERFORMANCE AND COMMS",11800300000,COMMUNICATIONS PPC,8550002,ADVERTISING SERVICES INVOICED,27/07/2018,INV195711,"1,138.79",A PINDER LTD,CT025222270,Copying & Duplicating Services
SHEFFIELD CITY COUNCIL,"POLICY, PERFORMANCE AND COMMS",11800300000,COMMUNICATIONS PPC,8550002,ADVERTISING SERVICES INVOICED,27/07/2018,INV195709,"1,243.74",A PINDER LTD,CT025222270,Copying & Duplicating Services
SHEFFIELD CITY COUNCIL,PEOPLE,14009242034,PURCHASING LEARNING DISABILITI,9240001,FUNDED NURSING CARE (IN,27/07/2018,ACN2017686,"1,189.62",ABBEYCARE AND NURSING AT HOME LTD,CT230243419,Home Care Services
SHEFFIELD CITY COUNCIL,PLACE,11850500000,STOCK CONTROL,8070000,STOCKS AND STORES,12/07/2018,1329351,285.30,A&A ELECTRICAL DISTRIBUTORS LTD,CT029930570,Electrical Wholesalers
SHEFFIELD CITY COUNCIL,PLACE,11850500000,STOCK CONTROL,8070000,STOCKS AND STORES,12/07/2018,1329350,285.30,A&A ELECTRICAL DISTRIBUTORS LTD,CT029930570,Electrical Wholesalers
SHEFFIELD CITY COUNCIL,PLACE,11850500000,STOCK CONTROL,8070000,STOCKS AND STORES,12/07/2018,1329349,285.30,A&A ELECTRICAL DISTRIBUTORS LTD,CT029930570,Electrical Wholesalers
SHEFFIELD CITY COUNCIL,PEOPLE,14009242034,PURCHASING LEARNING DISABILITI,9240000,SUPPORTED LIVING CARE,27/07/2018,ACN2017686,"1,282.86",ABBEYCARE AND NURSING AT HOME LTD,CT230243419,Home Care Services
SHEFFIELD CITY COUNCIL,PLACE,11850500000,STOCK CONTROL,8060000,MATERIALS AND SUPPLIES GENERAL,12/07/2018,1329348,285.30,A&A ELECTRICAL DISTRIBUTORS LTD,CT029930570,Electrical Wholesalers
SHEFFIELD CITY COUNCIL,PLACE,11850100021,DISTRICT & COMMERCIAL HEATING,8530001,SUBCONTRACTOR GENERAL,13/07/2018,85698,748.00,A1 FLUE SYSTEMS,CT022935640,Fireplaces & Mantelpieces
SHEFFIELD CITY COUNCIL,PLACE,11850100021,DISTRICT & COMMERCIAL HEATING,8530001,SUBCONTRACTOR GENERAL,18/07/2018,85802,"1,518.00",A1 FLUE SYSTEMS,CT022935640,Fireplaces & Mantelpieces
SHEFFIELD CITY COUNCIL,PEOPLE,14009346039,ADULT SOCIAL CARE PURCHASING,9200001,CONTINUING RESIDENTIAL CARE,27/07/2018,J2331703120818,406.00,AARON HOUSE,CT230164710,Residential Care Homes
SHEFFIELD CITY COUNCIL,PEOPLE,14009346039,ADULT SOCIAL CARE PURCHASING,9200001,CONTINUING RESIDENTIAL CARE,27/07/2018,J2331703120818,406.00,AARON HOUSE,CT230164710,Residential Care Homes
SHEFFIELD CITY COUNCIL,PEOPLE,14009346039,ADULT SOCIAL CARE PURCHASING,9200001,CONTINUING RESIDENTIAL CARE,27/07/2018,J2331703120818,406.00,AARON HOUSE,CT230164710,Residential Care Homes
SHEFFIELD CITY COUNCIL,PEOPLE,14009346039,ADULT SOCIAL CARE PURCHASING,9200001,CONTINUING RESIDENTIAL CARE,27/07/2018,J2331703120818,406.00,AARON HOUSE,CT230164710,Residential Care Homes
SHEFFIELD CITY COUNCIL,PEOPLE,14009242034,PURCHASING LEARNING DISABILITI,9240001,FUNDED NURSING CARE (IN,06/07/2018,P2-2017-628,"1,540.44",ABBEYCARE AND NURSING AT HOME LTD,CT230243419,Home Care Services
SHEFFIELD CITY COUNCIL,PEOPLE,14009346039,ADULT SOCIAL CARE PURCHASING,9200001,CONTINUING RESIDENTIAL CARE,27/07/2018,J2331703120818,406.00,AARON HOUSE,CT230164710,Residential Care Homes
SHEFFIELD CITY COUNCIL,PEOPLE,14009346039,ADULT SOCIAL CARE PURCHASING,9200001,CONTINUING RESIDENTIAL CARE,27/07/2018,J2331703120818,406.00,AARON HOUSE,CT230164710,Residential Care Homes
SHEFFIELD CITY COUNCIL,PEOPLE,14009242034,PURCHASING LEARNING DISABILITI,9240001,FUNDED NURSING CARE (IN,24/07/2018,P3ACN2017652,"1,540.44",ABBEYCARE AND NURSING AT HOME LTD,CT230243419,Home Care Services
SHEFFIELD CITY COUNCIL,PEOPLE,14009346039,ADULT SOCIAL CARE PURCHASING,9200001,CONTINUING RESIDENTIAL CARE,27/07/2018,J2331703120818,406.00,AARON HOUSE,CT230164710,Residential Care Homes
SHEFFIELD CITY COUNCIL,PEOPLE,13001138078,NURSERY ED FUND,8180000,GRANTS,19/07/2018,AMENDMENT_SUMMER_18,518.70,BRIGHT STARS NURSERY,CT240517580,Childcare Services
SHEFFIELD CITY COUNCIL,PEOPLE,14009346039,ADULT SOCIAL CARE PURCHASING,9200001,CONTINUING RESIDENTIAL CARE,27/07/2018,J2331703120818,406.00,AARON HOUSE,CT230164710,Residential Care Homes
SHEFFIELD CITY COUNCIL,PEOPLE,14009346039,ADULT SOCIAL CARE PURCHASING,9200001,CONTINUING RESIDENTIAL CARE,27/07/2018,J2331703120818,518.00,AARON HOUSE,CT230164710,Residential Care Homes
SHEFFIELD CITY COUNCIL,PEOPLE,14009242034,PURCHASING LEARNING DISABILITI,9240001,FUNDED NURSING CARE (IN,24/07/2018,P3ACN2017652,"1,717.16",ABBEYCARE AND NURSING AT HOME LTD,CT230243419,Home Care Services
SHEFFIELD CITY COUNCIL,PEOPLE,14009242034,PURCHASING LEARNING DISABILITI,9240001,FUNDED NURSING CARE (IN,06/07/2018,P2-2017-628,"1,750.45",ABBEYCARE AND NURSING AT HOME LTD,CT230243419,Home Care Services
SHEFFIELD CITY COUNCIL,PEOPLE,14009242034,PURCHASING LEARNING DISABILITI,9240001,FUNDED NURSING CARE (IN,06/07/2018,P2-2017-628,"1,950.96",ABBEYCARE AND NURSING AT HOME LTD,CT230243419,Home Care Services
SHEFFIELD CITY COUNCIL,PEOPLE,14009242034,PURCHASING LEARNING DISABILITI,9240001,FUNDED NURSING CARE (IN,24/07/2018,P3ACN2017652,"1,950.96",ABBEYCARE AND NURSING AT HOME LTD,CT230243419,Home Care Services
SHEFFIELD CITY COUNCIL,PEOPLE,14009346039,ADULT SOCIAL CARE PURCHASING,9200001,CONTINUING RESIDENTIAL CARE,27/07/2018,J2331703120818,"1,036.00",AARON HOUSE,CT230164710,Residential Care Homes
SHEFFIELD CITY COUNCIL,PEOPLE,14009242034,PURCHASING LEARNING DISABILITI,9190004,DIRECT PAYMENTS,10/07/2018,J2324004,367.80,REDACTED PERSONAL DATA,CT9999DIRPY,CAREFIRST DIRECT PAYMENTS
SHEFFIELD CITY COUNCIL,PEOPLE,13005638219,ENHANCED SERVICE - IUCDS,9030000,HEALTH,13/07/2018,C88046_0002/03/07/18,450.00,ABBEY LANE SURGERY,CT140826710,Doctors
SHEFFIELD CITY COUNCIL,PEOPLE,14007597334,DISABLED GRANTS,1165000,NC&A OTHER,20/07/2018,67618,"5,080.00",ABBEYDALE SHOWERS,CT079930580,Electricians & Electrical Contractors
SHEFFIELD CITY COUNCIL,PEOPLE,14009346039,ADULT SOCIAL CARE PURCHASING,4260018,RESIDENTIAL COSTS RECOVERED,18/07/2018,J2331708120818,-557.00,ABBEYFIELD GRANGE RES HOME LTD,CT230164710,Residential Care Homes
SHEFFIELD CITY COUNCIL,PEOPLE,14009346039,ADULT SOCIAL CARE PURCHASING,4260018,RESIDENTIAL COSTS RECOVERED,18/07/2018,J2331708120818,-552.40,ABBEYFIELD GRANGE RES HOME LTD,CT230164710,Residential Care Homes
SHEFFIELD CITY COUNCIL,PEOPLE,14009346039,ADULT SOCIAL CARE PURCHASING,4260018,RESIDENTIAL COSTS RECOVERED,18/07/2018,J2331708120818,-552.40,ABBEYFIELD GRANGE RES HOME LTD,CT230164710,Residential Care Homes
SHEFFIELD CITY COUNCIL,PEOPLE,14009242034,PURCHASING LEARNING DISABILITI,9240001,FUNDED NURSING CARE (IN,06/07/2018,P2-2017-628,"2,780.08",ABBEYCARE AND NURSING AT HOME LTD,CT230243419,Home Care Services
SHEFFIELD CITY COUNCIL,PEOPLE,14009346039,ADULT SOCIAL CARE PURCHASING,9200001,CONTINUING RESIDENTIAL CARE,18/07/2018,J2325751150718,-500.15,ABBEYFIELD GRANGE RES HOME LTD,CT230164710,Residential Care Homes
SHEFFIELD CITY COUNCIL,PEOPLE,14031444001,PURCHASING,4260018,RESIDENTIAL COSTS RECOVERED,18/07/2018,J2331708120818,-416.76,ABBEYFIELD GRANGE RES HOME LTD,CT230164710,Residential Care Homes
SHEFFIELD CITY COUNCIL,PEOPLE,14031444001,PURCHASING,4260018,RESIDENTIAL COSTS RECOVERED,18/07/2018,J2331708120818,-388.12,ABBEYFIELD GRANGE RES HOME LTD,CT230164710,Residential Care Homes
SHEFFIELD CITY COUNCIL,PEOPLE,14009346039,ADULT SOCIAL CARE PURCHASING,9200001,CONTINUING RESIDENTIAL CARE,27/07/2018,J2340536120818,909.15,ABBEYFIELD GRANGE RES HOME LTD,CT230164710,Residential Care Homes
SHEFFIELD CITY COUNCIL,PEOPLE,14031444001,PURCHASING,9200001,CONTINUING RESIDENTIAL CARE,18/07/2018,J2331708120818,"1,021.32",ABBEYFIELD GRANGE RES HOME LTD,CT230164710,Residential Care Homes
SHEFFIELD CITY COUNCIL,PEOPLE,14031444001,PURCHASING,9200001,CONTINUING RESIDENTIAL CARE,18/07/2018,J2331708120818,"1,021.32",ABBEYFIELD GRANGE RES HOME LTD,CT230164710,Residential Care Homes
SHEFFIELD CITY COUNCIL,PEOPLE,14031444001,PURCHASING,9200001,CONTINUING RESIDENTIAL CARE,18/07/2018,J2331708120818,"1,021.32",ABBEYFIELD GRANGE RES HOME LTD,CT230164710,Residential Care Homes
SHEFFIELD CITY COUNCIL,PEOPLE,14031444001,PURCHASING,9200001,CONTINUING RESIDENTIAL CARE,18/07/2018,J2331708120818,"1,021.32",ABBEYFIELD GRANGE RES HOME LTD,CT230164710,Residential Care Homes
SHEFFIELD CITY COUNCIL,PEOPLE,14031444001,PURCHASING,9200001,CONTINUING RESIDENTIAL CARE,18/07/2018,J2331708120818,"1,021.32",ABBEYFIELD GRANGE RES HOME LTD,CT230164710,Residential Care Homes
SHEFFIELD CITY COUNCIL,PEOPLE,14009242034,PURCHASING LEARNING DISABILITI,9240001,FUNDED NURSING CARE (IN,24/07/2018,P3ACN2017652,"2,780.08",ABBEYCARE AND NURSING AT HOME LTD,CT230243419,Home Care Services
SHEFFIELD CITY COUNCIL,PEOPLE,14031444001,PURCHASING,9200001,CONTINUING RESIDENTIAL CARE,18/07/2018,J2331708120818,"1,021.32",ABBEYFIELD GRANGE RES HOME LTD,CT230164710,Residential Care Homes
SHEFFIELD CITY COUNCIL,PEOPLE,14031444001,PURCHASING,9200001,CONTINUING RESIDENTIAL CARE,18/07/2018,J2331708120818,"1,021.32",ABBEYFIELD GRANGE RES HOME LTD,CT230164710,Residential Care Homes
SHEFFIELD CITY COUNCIL,PEOPLE,14031444001,PURCHASING,9200001,CONTINUING RESIDENTIAL CARE,18/07/2018,J2331708120818,"1,021.32",ABBEYFIELD GRANGE RES HOME LTD,CT230164710,Residential Care Homes
SHEFFIELD CITY COUNCIL,PEOPLE,14031444001,PURCHASING,9200001,CONTINUING RESIDENTIAL CARE,18/07/2018,J2331708120818,"1,021.32",ABBEYFIELD GRANGE RES HOME LTD,CT230164710,Residential Care Homes
SHEFFIELD CITY COUNCIL,PEOPLE,14009346039,ADULT SOCIAL CARE PURCHASING,9200001,CONTINUING RESIDENTIAL CARE,27/07/2018,J2340536120818,"1,332.00",ABBEYFIELD GRANGE RES HOME LTD,CT230164710,Residential Care Homes
SHEFFIELD CITY COUNCIL,PEOPLE,13002639028,SPECIAL GUARDIANSHIP,9270013,RESIDENCE ORDERS,10/07/2018,1.92E+18,359.80,REDACTED PERSONAL DATA,CT240201880,Adoption & Fostering
SHEFFIELD CITY COUNCIL,PEOPLE,14009346039,ADULT SOCIAL CARE PURCHASING,9200001,CONTINUING RESIDENTIAL CARE,27/07/2018,J2340536120818,"1,332.00",ABBEYFIELD GRANGE RES HOME LTD,CT230164710,Residential Care Homes
SHEFFIELD CITY COUNCIL,PEOPLE,14009242034,PURCHASING LEARNING DISABILITI,9240000,SUPPORTED LIVING CARE,06/07/2018,P2-2017-628,"3,152.36",ABBEYCARE AND NURSING AT HOME LTD,CT230243419,Home Care Services
SHEFFIELD CITY COUNCIL,PEOPLE,14009346039,ADULT SOCIAL CARE PURCHASING,9200001,CONTINUING RESIDENTIAL CARE,18/07/2018,J2331708120818,"1,556.00",ABBEYFIELD GRANGE RES HOME LTD,CT230164710,Residential Care Homes
SHEFFIELD CITY COUNCIL,PEOPLE,14009346039,ADULT SOCIAL CARE PURCHASING,9200001,CONTINUING RESIDENTIAL CARE,18/07/2018,J2331708120818,"1,556.00",ABBEYFIELD GRANGE RES HOME LTD,CT230164710,Residential Care Homes
SHEFFIELD CITY COUNCIL,PEOPLE,14009346039,ADULT SOCIAL CARE PURCHASING,9200001,CONTINUING RESIDENTIAL CARE,18/07/2018,J2331708120818,"1,556.00",ABBEYFIELD GRANGE RES HOME LTD,CT230164710,Residential Care Homes
SHEFFIELD CITY COUNCIL,PEOPLE,14009242034,PURCHASING LEARNING DISABILITI,9240000,SUPPORTED LIVING CARE,24/07/2018,P3ACN2017652,"3,152.36",ABBEYCARE AND NURSING AT HOME LTD,CT230243419,Home Care Services
SHEFFIELD CITY COUNCIL,PEOPLE,14009346039,ADULT SOCIAL CARE PURCHASING,9200001,CONTINUING RESIDENTIAL CARE,18/07/2018,J2331708120818,"1,852.00",ABBEYFIELD GRANGE RES HOME LTD,CT230164710,Residential Care Homes
SHEFFIELD CITY COUNCIL,PEOPLE,14009346039,ADULT SOCIAL CARE PURCHASING,9200001,CONTINUING RESIDENTIAL CARE,18/07/2018,J2331708120818,"1,852.00",ABBEYFIELD GRANGE RES HOME LTD,CT230164710,Residential Care Homes
SHEFFIELD CITY COUNCIL,PEOPLE,14009346039,ADULT SOCIAL CARE PURCHASING,9240000,SUPPORTED LIVING CARE,24/07/2018,P3ACN2017652,"4,058.84",ABBEYCARE AND NURSING AT HOME LTD,CT230243419,Home Care Services
SHEFFIELD CITY COUNCIL,PEOPLE,14009346039,ADULT SOCIAL CARE PURCHASING,9240000,SUPPORTED LIVING CARE,24/07/2018,P3ACN2017652,"4,058.84",ABBEYCARE AND NURSING AT HOME LTD,CT230243419,Home Care Services
SHEFFIELD CITY COUNCIL,PEOPLE,14009346039,ADULT SOCIAL CARE PURCHASING,9200001,CONTINUING RESIDENTIAL CARE,18/07/2018,J2331708120818,"1,852.00",ABBEYFIELD GRANGE RES HOME LTD,CT230164710,Residential Care Homes
SHEFFIELD CITY COUNCIL,PEOPLE,14009242034,PURCHASING LEARNING DISABILITI,9240000,SUPPORTED LIVING CARE,24/07/2018,P3ACN2017652,"4,058.84",ABBEYCARE AND NURSING AT HOME LTD,CT230243419,Home Care Services
SHEFFIELD CITY COUNCIL,PEOPLE,14031444001,PURCHASING,9200001,CONTINUING RESIDENTIAL CARE,18/07/2018,J2331708120818,"2,042.60",ABBEYFIELD GRANGE RES HOME LTD,CT230164710,Residential Care Homes
SHEFFIELD CITY COUNCIL,PEOPLE,14031444001,PURCHASING,9200001,CONTINUING RESIDENTIAL CARE,18/07/2018,J2331708120818,"2,042.60",ABBEYFIELD GRANGE RES HOME LTD,CT230164710,Residential Care Homes
SHEFFIELD CITY COUNCIL,PEOPLE,14031444001,PURCHASING,9200001,CONTINUING RESIDENTIAL CARE,18/07/2018,J2331708120818,"2,042.60",ABBEYFIELD GRANGE RES HOME LTD,CT230164710,Residential Care Homes
SHEFFIELD CITY COUNCIL,PEOPLE,13002639028,SPECIAL GUARDIANSHIP,9270013,RESIDENCE ORDERS,10/07/2018,1.92E+18,359.80,REDACTED PERSONAL DATA,CT240201880,Adoption & Fostering
SHEFFIELD CITY COUNCIL,PEOPLE,14031444001,PURCHASING,9200001,CONTINUING RESIDENTIAL CARE,18/07/2018,J2331708120818,"2,042.60",ABBEYFIELD GRANGE RES HOME LTD,CT230164710,Residential Care Homes
SHEFFIELD CITY COUNCIL,PEOPLE,14031444001,PURCHASING,9200001,CONTINUING RESIDENTIAL CARE,18/07/2018,J2331708120818,"2,042.60",ABBEYFIELD GRANGE RES HOME LTD,CT230164710,Residential Care Homes
SHEFFIELD CITY COUNCIL,PEOPLE,14031444001,PURCHASING,9200001,CONTINUING RESIDENTIAL CARE,18/07/2018,J2331708120818,"2,042.60",ABBEYFIELD GRANGE RES HOME LTD,CT230164710,Residential Care Homes
SHEFFIELD CITY COUNCIL,PEOPLE,14031444001,PURCHASING,9200001,CONTINUING RESIDENTIAL CARE,18/07/2018,J2331708120818,"2,042.60",ABBEYFIELD GRANGE RES HOME LTD,CT230164710,Residential Care Homes
SHEFFIELD CITY COUNCIL,PEOPLE,14009242034,PURCHASING LEARNING DISABILITI,9240000,SUPPORTED LIVING CARE,06/07/2018,P2-2017-628,"4,059.04",ABBEYCARE AND NURSING AT HOME LTD,CT230243419,Home Care Services
SHEFFIELD CITY COUNCIL,PEOPLE,14031444001,PURCHASING,9200001,CONTINUING RESIDENTIAL CARE,18/07/2018,J2331708120818,"2,042.60",ABBEYFIELD GRANGE RES HOME LTD,CT230164710,Residential Care Homes
SHEFFIELD CITY COUNCIL,PEOPLE,14031444001,PURCHASING,9200001,CONTINUING RESIDENTIAL CARE,18/07/2018,J2331708120818,"2,042.60",ABBEYFIELD GRANGE RES HOME LTD,CT230164710,Residential Care Homes
SHEFFIELD CITY COUNCIL,PEOPLE,14009242034,PURCHASING LEARNING DISABILITI,4260008,DIRECT PAYMENTS,10/07/2018,J2324004,-172.36,REDACTED PERSONAL DATA,CT9999DIRPY,CAREFIRST DIRECT PAYMENTS
SHEFFIELD CITY COUNCIL,PEOPLE,13008832077,GATEWAY 6,9360000,FUNDS ALLOCATED TO SCHOOLS,02/07/2018,ABSI345,500.00,ABBEYFIELD PRIMARY ACADEMY,CT090167346,Schools & Colleges - Grant Maintained &
SHEFFIELD CITY COUNCIL,PEOPLE,13008832077,GATEWAY 6,9360000,FUNDS ALLOCATED TO SCHOOLS,02/07/2018,ABSI344,"1,200.00",ABBEYFIELD PRIMARY ACADEMY,CT090167346,Schools & Colleges - Grant Maintained &
SHEFFIELD CITY COUNCIL,PEOPLE,13008832077,GATEWAY 6,9360000,FUNDS ALLOCATED TO SCHOOLS,02/07/2018,ABSI346,"1,200.00",ABBEYFIELD PRIMARY ACADEMY,CT090167346,Schools & Colleges - Grant Maintained &
SHEFFIELD CITY COUNCIL,PEOPLE,13008832077,GATEWAY 6,9360000,FUNDS ALLOCATED TO SCHOOLS,02/07/2018,ABSI347,"1,200.00",ABBEYFIELD PRIMARY ACADEMY,CT090167346,Schools & Colleges - Grant Maintained &
SHEFFIELD CITY COUNCIL,PEOPLE,13008832077,GATEWAY 6,9360000,FUNDS ALLOCATED TO SCHOOLS,02/07/2018,ABSI343,"1,200.00",ABBEYFIELD PRIMARY ACADEMY,CT090167346,Schools & Colleges - Grant Maintained &
SHEFFIELD CITY COUNCIL,PEOPLE,13000236026,SCHOOL MEALS,4240000,OTHER INCOME GENERAL,16/07/2018,MH/W17/1870B,"-37,960.08",ACADEMY SERVICES SHEFFIELD LTD,CT130747650,Leasing Services
SHEFFIELD CITY COUNCIL,PEOPLE,13000236026,SCHOOL MEALS,4240000,OTHER INCOME GENERAL,16/07/2018,MH/W17/1870D,"-2,005.07",ACADEMY SERVICES SHEFFIELD LTD,CT130747650,Leasing Services
SHEFFIELD CITY COUNCIL,PEOPLE,13000236026,SCHOOL MEALS,4240000,OTHER INCOME GENERAL,16/07/2018,HH(B)17/1870C,-735.61,ACADEMY SERVICES SHEFFIELD LTD,CT130747650,Leasing Services
SHEFFIELD CITY COUNCIL,PEOPLE,13000236026,SCHOOL MEALS,8150000,CONTRACT CATERING,16/07/2018,HH/G18/1970A,367.00,ACADEMY SERVICES SHEFFIELD LTD,CT130747650,Leasing Services
SHEFFIELD CITY COUNCIL,PEOPLE,13000236026,SCHOOL MEALS,8150000,CONTRACT CATERING,16/07/2018,MH/W18/1970A,654.37,ACADEMY SERVICES SHEFFIELD LTD,CT130747650,Leasing Services
SHEFFIELD CITY COUNCIL,PEOPLE,13000236026,SCHOOL MEALS,8150003,CONTRACT CATERING - INVOICE,16/07/2018,HH(B)17/1870B,735.61,ACADEMY SERVICES SHEFFIELD LTD,CT130747650,Leasing Services
SHEFFIELD CITY COUNCIL,PEOPLE,13000236026,SCHOOL MEALS,8150003,CONTRACT CATERING - INVOICE,16/07/2018,MH/W18/1970A,"1,309.45",ACADEMY SERVICES SHEFFIELD LTD,CT130747650,Leasing Services
SHEFFIELD CITY COUNCIL,PEOPLE,14009346039,ADULT SOCIAL CARE PURCHASING,9240000,SUPPORTED LIVING CARE,06/07/2018,P2-2017-628,"4,059.04",ABBEYCARE AND NURSING AT HOME LTD,CT230243419,Home Care Services
SHEFFIELD CITY COUNCIL,PEOPLE,13000236026,SCHOOL MEALS,8150003,CONTRACT CATERING - INVOICE,16/07/2018,MH/W17/1870C,"2,005.07",ACADEMY SERVICES SHEFFIELD LTD,CT130747650,Leasing Services
SHEFFIELD CITY COUNCIL,PLACE,11520915206,PFI 3,6030000,REPAIRS AND MTCE - RESPONSIVE,04/07/2018,ASSL/18/09,"3,039.95",ACADEMY SERVICES SHEFFIELD LTD,CT130747650,Leasing Services
SHEFFIELD CITY COUNCIL,PLACE,11520915206,PFI 3,8350000,MISCELLANEOUS EXPENSES,13/07/2018,ASSL/18/08,"5,000.00",ACADEMY SERVICES SHEFFIELD LTD,CT130747650,Leasing Services
SHEFFIELD CITY COUNCIL,PEOPLE,13000236026,SCHOOL MEALS,8150000,CONTRACT CATERING,16/07/2018,HH/G18/1970A,"5,696.00",ACADEMY SERVICES SHEFFIELD LTD,CT130747650,Leasing Services
SHEFFIELD CITY COUNCIL,PEOPLE,13000236026,SCHOOL MEALS,8130000,CATERING SUPPLIES,16/07/2018,MH/W18/1970A,"9,186.23",ACADEMY SERVICES SHEFFIELD LTD,CT130747650,Leasing Services
SHEFFIELD CITY COUNCIL,PLACE,11520915206,PFI 3,6030000,REPAIRS AND MTCE - RESPONSIVE,04/07/2018,ASSL/18/09,"11,128.42",ACADEMY SERVICES SHEFFIELD LTD,CT130747650,Leasing Services
SHEFFIELD CITY COUNCIL,PEOPLE,14009346039,ADULT SOCIAL CARE PURCHASING,9240000,SUPPORTED LIVING CARE,06/07/2018,P2-2017-628,"4,059.04",ABBEYCARE AND NURSING AT HOME LTD,CT230243419,Home Care Services
SHEFFIELD CITY COUNCIL,PEOPLE,13000236026,SCHOOL MEALS,8130000,CATERING SUPPLIES,16/07/2018,HH/G18/1970A,"12,578.00",ACADEMY SERVICES SHEFFIELD LTD,CT130747650,Leasing Services
SHEFFIELD CITY COUNCIL,PEOPLE,13000236026,SCHOOL MEALS,8150003,CONTRACT CATERING - INVOICE,16/07/2018,MH/W18/1970A,"36,650.63",ACADEMY SERVICES SHEFFIELD LTD,CT130747650,Leasing Services
SHEFFIELD CITY COUNCIL,PLACE,11520915206,PFI 3,6270000,SERVICE / PFI UNITARY CHARGE,04/07/2018,ASSL/18/09,"648,673.41",ACADEMY SERVICES SHEFFIELD LTD,CT130747650,Leasing Services
SHEFFIELD CITY COUNCIL,PEOPLE,14009242034,PURCHASING LEARNING DISABILITI,9240000,SUPPORTED LIVING CARE,24/07/2018,P3ACN2017652,"4,371.12",ABBEYCARE AND NURSING AT HOME LTD,CT230243419,Home Care Services
SHEFFIELD CITY COUNCIL,PEOPLE,14009242034,PURCHASING LEARNING DISABILITI,9240000,SUPPORTED LIVING CARE,06/07/2018,P2-2017-628,"4,455.88",ABBEYCARE AND NURSING AT HOME LTD,CT230243419,Home Care Services
SHEFFIELD CITY COUNCIL,PLACE,11518993507,HILLSBRO' PARK STABLE BLOCK,1194000,OTHER FEES,17/07/2018,2381,390.00,ACCESS ECOLOGY LTD,CT080332415,Environmental Consultants
SHEFFIELD CITY COUNCIL,PLACE,11518993507,HILLSBRO' PARK STABLE BLOCK,1194000,OTHER FEES,25/07/2018,2389,405.00,ACCESS ECOLOGY LTD,CT080332415,Environmental Consultants
SHEFFIELD CITY COUNCIL,PEOPLE,14009242034,PURCHASING LEARNING DISABILITI,9240000,SUPPORTED LIVING CARE,06/07/2018,P2-2017-628,"4,965.92",ABBEYCARE AND NURSING AT HOME LTD,CT230243419,Home Care Services
SHEFFIELD CITY COUNCIL,PEOPLE,14009242034,PURCHASING LEARNING DISABILITI,9240000,SUPPORTED LIVING CARE,24/07/2018,P3ACN2017652,"4,965.92",ABBEYCARE AND NURSING AT HOME LTD,CT230243419,Home Care Services
SHEFFIELD CITY COUNCIL,PEOPLE,13001490825,FRA 16-17 ECCLESALL JUNIOR,1194000,OTHER FEES,04/07/2018,2363,662.00,ACCESS ECOLOGY LTD,CT080332415,Environmental Consultants
SHEFFIELD CITY COUNCIL,PEOPLE,14009346039,ADULT SOCIAL CARE PURCHASING,4260018,RESIDENTIAL COSTS RECOVERED,18/07/2018,J2331691120818,-601.24,ACKROYD CLINIC CARE HOME,CT230164710,Residential Care Homes
SHEFFIELD CITY COUNCIL,PEOPLE,14009242034,PURCHASING LEARNING DISABILITI,9240000,SUPPORTED LIVING CARE,06/07/2018,P2-2017-628,"5,007.01",ABBEYCARE AND NURSING AT HOME LTD,CT230243419,Home Care Services
SHEFFIELD CITY COUNCIL,PEOPLE,14009242034,PURCHASING LEARNING DISABILITI,9240000,SUPPORTED LIVING CARE,24/07/2018,P3ACN2017652,"5,010.69",ABBEYCARE AND NURSING AT HOME LTD,CT230243419,Home Care Services
SHEFFIELD CITY COUNCIL,PEOPLE,14009242034,PURCHASING LEARNING DISABILITI,9240000,SUPPORTED LIVING CARE,06/07/2018,P2-2017-628,"6,245.36",ABBEYCARE AND NURSING AT HOME LTD,CT230243419,Home Care Services
SHEFFIELD CITY COUNCIL,PEOPLE,14009346039,ADULT SOCIAL CARE PURCHASING,4260018,RESIDENTIAL COSTS RECOVERED,18/07/2018,J2331691120818,-552.40,ACKROYD CLINIC CARE HOME,CT230164710,Residential Care Homes
SHEFFIELD CITY COUNCIL,PEOPLE,14009346039,ADULT SOCIAL CARE PURCHASING,9200001,CONTINUING RESIDENTIAL CARE,27/07/2018,J2340528120818,666.00,ACKROYD CLINIC CARE HOME,CT230164710,Residential Care Homes
SHEFFIELD CITY COUNCIL,PEOPLE,14009346039,ADULT SOCIAL CARE PURCHASING,9200001,CONTINUING RESIDENTIAL CARE,27/07/2018,J2340528120818,"1,332.00",ACKROYD CLINIC CARE HOME,CT230164710,Residential Care Homes
SHEFFIELD CITY COUNCIL,PEOPLE,14009346039,ADULT SOCIAL CARE PURCHASING,9200001,CONTINUING RESIDENTIAL CARE,18/07/2018,J2331691120818,"1,556.00",ACKROYD CLINIC CARE HOME,CT230164710,Residential Care Homes
SHEFFIELD CITY COUNCIL,PEOPLE,14009346039,ADULT SOCIAL CARE PURCHASING,9200001,CONTINUING RESIDENTIAL CARE,18/07/2018,J2331691120818,"1,704.00",ACKROYD CLINIC CARE HOME,CT230164710,Residential Care Homes
SHEFFIELD CITY COUNCIL,PLACE,12045925076,SHEFFIELD HOMES TREES,6370000,GROUNDS MTCE AND ARBORICULTURE,23/07/2018,13234,520.00,ACME ARB LTD,CT102180228,Tree Work & Forestry Services
SHEFFIELD CITY COUNCIL,PEOPLE,14009242034,PURCHASING LEARNING DISABILITI,9240000,SUPPORTED LIVING CARE,24/07/2018,P3ACN2017652,"6,245.36",ABBEYCARE AND NURSING AT HOME LTD,CT230243419,Home Care Services
SHEFFIELD CITY COUNCIL,PEOPLE,14031844035,MEDICAL FEES,8490000,OTHER PROFESSIONAL FEES,18/07/2018,67129,"1,768.40",ACP MEDICAL SERVICES (ADRIAN PHILLIPSON),CT140826710,Doctors
SHEFFIELD CITY COUNCIL,PEOPLE,13003739490,SAFEGUARDING CHILDREN SERVICE,8440000,FEE EXPENSES,04/07/2018,R81IN2/00007910,600.00,ACTION FOR CHILDREN,CT230417020,Charities & Voluntary Organisations
SHEFFIELD CITY COUNCIL,PEOPLE,13002639284,IFA's UNDER 16,9270009,INDEPENDENT FOSTERING,17/07/2018,R31/N2/00558,"3,847.50",ACTION FOR CHILDREN SERVICES,CT230417020,Charities & Voluntary Organisations
SHEFFIELD CITY COUNCIL,PEOPLE,13002838156,GROWING FUTURES,9120000,OTHER AGENCIES,19/07/2018,3615,"2,136.84",ACTION HOUSING AND SUPPORT LTD,CT150197878,Home Support Services
SHEFFIELD CITY COUNCIL,PEOPLE,14031249088,HOUSING RELATED SUPPORT,9060000,SUPPORTING PEOPLE PAYMENTS,09/07/2018,J2316947220718,"7,000.00",ACTION HOUSING AND SUPPORT LTD,CT150197878,Home Support Services
SHEFFIELD CITY COUNCIL,PEOPLE,14009242034,PURCHASING LEARNING DISABILITI,9230006,CCSP TRANSPORT,11/07/2018,18,776.80,ACTIVE RESPONSE TRANSPORT LTD,CT261851180,Mini Buses - Hire & Leasing
SHEFFIELD CITY COUNCIL,PLACE,11513300000,WORKSHOPS,8550000,OTHER SERVICES,18/07/2018,101215561,840.00,ANDREW PAGE 1917 LTD,CT262013240,Car Accessories & Parts
SHEFFIELD CITY COUNCIL,PEOPLE,14009242034,PURCHASING LEARNING DISABILITI,9190004,DIRECT PAYMENTS,10/07/2018,J2324004,596.72,REDACTED PERSONAL DATA,CT9999DIRPY,CAREFIRST DIRECT PAYMENTS
SHEFFIELD CITY COUNCIL,PEOPLE,14009242034,PURCHASING LEARNING DISABILITI,4260008,DIRECT PAYMENTS,10/07/2018,J2324004,-222.64,REDACTED PERSONAL DATA,CT9999DIRPY,CAREFIRST DIRECT PAYMENTS
SHEFFIELD CITY COUNCIL,PEOPLE,14009242034,PURCHASING LEARNING DISABILITI,9190004,DIRECT PAYMENTS,10/07/2018,J2324004,"1,342.04",REDACTED PERSONAL DATA,CT9999DIRPY,CAREFIRST DIRECT PAYMENTS
SHEFFIELD CITY COUNCIL,PEOPLE,14009242034,PURCHASING LEARNING DISABILITI,4260008,DIRECT PAYMENTS,10/07/2018,J2324004,-487.92,REDACTED PERSONAL DATA,CT9999DIRPY,CAREFIRST DIRECT PAYMENTS
SHEFFIELD CITY COUNCIL,PEOPLE,14031444001,PURCHASING,9190004,DIRECT PAYMENTS,10/07/2018,J2324004,424.24,REDACTED PERSONAL DATA,CT9999DIRPY,CAREFIRST DIRECT PAYMENTS
SHEFFIELD CITY COUNCIL,PEOPLE,14009242034,PURCHASING LEARNING DISABILITI,9190004,DIRECT PAYMENTS,10/07/2018,J2324004,"2,857.80",REDACTED PERSONAL DATA,CT9999DIRPY,CAREFIRST DIRECT PAYMENTS
SHEFFIELD CITY COUNCIL,PEOPLE,13002439148,DIRECT PAYMENTS,9190004,DIRECT PAYMENTS,10/07/2018,J2324004,263.20,REDACTED PERSONAL DATA,CT9999DIRPY,CAREFIRST DIRECT PAYMENTS
SHEFFIELD CITY COUNCIL,PLACE,11513400000,EDUCATION SPECIAL NEEDS,7060000,EXTERNAL VEHICLE HIRE,16/07/2018,30,"2,839.00",ACTIVE RESPONSE TRANSPORT LTD,CT261676350,Taxis & Private Hire
SHEFFIELD CITY COUNCIL,PEOPLE,14009242034,PURCHASING LEARNING DISABILITI,9180000,OTHER CLIENT EXPENDITURE,04/07/2018,J2318124010718,351.00,REDACTED PERSONAL DATA,CT230243419,Home Care Services
SHEFFIELD CITY COUNCIL,PEOPLE,13000336033,SOCIAL CARE TAXIS,7060000,EXTERNAL VEHICLE HIRE,16/07/2018,31,"6,814.00",ACTIVE RESPONSE TRANSPORT LTD,CT261676350,Taxis & Private Hire
SHEFFIELD CITY COUNCIL,PEOPLE,14009242034,PURCHASING LEARNING DISABILITI,9180000,OTHER CLIENT EXPENDITURE,11/07/2018,J2323964080718,351.00,REDACTED PERSONAL DATA,CT230243419,Home Care Services
SHEFFIELD CITY COUNCIL,PEOPLE,13000336039,SEN TAXIS,7060000,EXTERNAL VEHICLE HIRE,16/07/2018,32,"12,588.00",ACTIVE RESPONSE TRANSPORT LTD,CT261676350,Taxis & Private Hire
SHEFFIELD CITY COUNCIL,PEOPLE,13006138124,EDUCATIONAL PSYCHOLOGY,5750000,TRAINING EXPENDITURE,10/07/2018,301,"1,450.80",ADAMS PSYCHOLOGY SERVICES LTD,CT140262100,Psychologists
SHEFFIELD CITY COUNCIL,PEOPLE,14032149696,CONTRACT PAYMENTS - DIP,9030000,HEALTH,16/07/2018,SIN007635,"318,735.25",ADDACTION,CT230417020,Charities & Voluntary Organisations
SHEFFIELD CITY COUNCIL,PEOPLE,14046949661,LUNCH CLUB GRANT,8180000,GRANTS,02/07/2018,MPA20180702309-0012,549.00,ADLINGTON LUNCHEON CLUB,CT230417020,Charities & Voluntary Organisations
SHEFFIELD CITY COUNCIL,PEOPLE,14031249088,HOUSING RELATED SUPPORT,9060000,SUPPORTING PEOPLE PAYMENTS,02/07/2018,J2297604240618,"25,383.00",ADULLAM HOMES HOUSING ASSOCIATION LTD,CT230417020,Charities & Voluntary Organisations
SHEFFIELD CITY COUNCIL,PLACE,14059197551,COUNCIL HSG ACQUISITIONS PROG,1141000,PURCHASE OF BUILDINGS,06/07/2018,64569,"78,500.00",ADVANTAGE PROPERTY LAWYERS LTD,CT121121950,Conveyancing Services
SCR COMBINED AUTHORITY,LOCAL ENTERPRISE PARTNERSHIP,33075495102,SCRIF CORPORATE,1188000,T&E OTHER CAPITAL COSTS,12/07/2018,28351180,"20,522.73",AECOM LTD,CT079911400,Building Services
SHEFFIELD CITY COUNCIL,PEOPLE,14009346039,ADULT SOCIAL CARE PURCHASING,9240000,SUPPORTED LIVING CARE,31/07/2018,P1/70876,379.20,AFFINITY TRUST,CT230417020,Charities & Voluntary Organisations
SHEFFIELD CITY COUNCIL,PEOPLE,14009346039,ADULT SOCIAL CARE PURCHASING,9240001,FUNDED NURSING CARE (IN,25/07/2018,P3/72043,467.16,AFFINITY TRUST,CT230417020,Charities & Voluntary Organisations
SHEFFIELD CITY COUNCIL,PEOPLE,14009242034,PURCHASING LEARNING DISABILITI,9240000,SUPPORTED LIVING CARE,31/07/2018,P1/70876,474.00,AFFINITY TRUST,CT230417020,Charities & Voluntary Organisations
SHEFFIELD CITY COUNCIL,PEOPLE,14009242034,PURCHASING LEARNING DISABILITI,9240001,FUNDED NURSING CARE (IN,31/07/2018,P1/70876,497.08,AFFINITY TRUST,CT230417020,Charities & Voluntary Organisations
SHEFFIELD CITY COUNCIL,PEOPLE,14009242034,PURCHASING LEARNING DISABILITI,9240001,FUNDED NURSING CARE (IN,31/07/2018,P3/73248,497.08,AFFINITY TRUST,CT230417020,Charities & Voluntary Organisations
SHEFFIELD CITY COUNCIL,PEOPLE,14009346039,ADULT SOCIAL CARE PURCHASING,9240000,SUPPORTED LIVING CARE,25/07/2018,P3/72043,572.54,AFFINITY TRUST,CT230417020,Charities & Voluntary Organisations
SHEFFIELD CITY COUNCIL,PEOPLE,14009242034,PURCHASING LEARNING DISABILITI,9240000,SUPPORTED LIVING CARE,25/07/2018,P3/72043,602.80,AFFINITY TRUST,CT230417020,Charities & Voluntary Organisations
SHEFFIELD CITY COUNCIL,PEOPLE,14009242034,PURCHASING LEARNING DISABILITI,9240000,SUPPORTED LIVING CARE,31/07/2018,P3/73248,632.00,AFFINITY TRUST,CT230417020,Charities & Voluntary Organisations
SHEFFIELD CITY COUNCIL,PEOPLE,14009242034,PURCHASING LEARNING DISABILITI,9240001,FUNDED NURSING CARE (IN,25/07/2018,P3/72043,834.57,AFFINITY TRUST,CT230417020,Charities & Voluntary Organisations
SHEFFIELD CITY COUNCIL,PEOPLE,14009242034,PURCHASING LEARNING DISABILITI,9240000,SUPPORTED LIVING CARE,25/07/2018,P3/72043,843.92,AFFINITY TRUST,CT230417020,Charities & Voluntary Organisations
SHEFFIELD CITY COUNCIL,PEOPLE,14009242034,PURCHASING LEARNING DISABILITI,9240000,SUPPORTED LIVING CARE,25/07/2018,P3/72043,"1,085.04",AFFINITY TRUST,CT230417020,Charities & Voluntary Organisations
SHEFFIELD CITY COUNCIL,PEOPLE,14009242034,PURCHASING LEARNING DISABILITI,9240000,SUPPORTED LIVING CARE,31/07/2018,P1/70876,"1,145.32",AFFINITY TRUST,CT230417020,Charities & Voluntary Organisations
SHEFFIELD CITY COUNCIL,PEOPLE,14009346039,ADULT SOCIAL CARE PURCHASING,4260008,DIRECT PAYMENTS,10/07/2018,J2324004,-342.68,REDACTED PERSONAL DATA,CT9999DIRPY,CAREFIRST DIRECT PAYMENTS
SHEFFIELD CITY COUNCIL,PEOPLE,14009242034,PURCHASING LEARNING DISABILITI,9240000,SUPPORTED LIVING CARE,31/07/2018,P3/73248,"1,145.32",AFFINITY TRUST,CT230417020,Charities & Voluntary Organisations
SHEFFIELD CITY COUNCIL,PEOPLE,14009242034,PURCHASING LEARNING DISABILITI,9240001,FUNDED NURSING CARE (IN,31/07/2018,P3/73248,"1,198.01",AFFINITY TRUST,CT230417020,Charities & Voluntary Organisations
SHEFFIELD CITY COUNCIL,PEOPLE,14009242034,PURCHASING LEARNING DISABILITI,9240000,SUPPORTED LIVING CARE,25/07/2018,P3/72043,"1,296.02",AFFINITY TRUST,CT230417020,Charities & Voluntary Organisations
SHEFFIELD CITY COUNCIL,PEOPLE,14009242034,PURCHASING LEARNING DISABILITI,9180000,OTHER CLIENT EXPENDITURE,18/07/2018,J2328883150718,351.00,REDACTED PERSONAL DATA,CT230243419,Home Care Services
SHEFFIELD CITY COUNCIL,PEOPLE,14009242034,PURCHASING LEARNING DISABILITI,9240000,SUPPORTED LIVING CARE,25/07/2018,P3/72043,"1,326.16",AFFINITY TRUST,CT230417020,Charities & Voluntary Organisations
SHEFFIELD CITY COUNCIL,PEOPLE,14009346039,ADULT SOCIAL CARE PURCHASING,9240000,SUPPORTED LIVING CARE,25/07/2018,P3/72043,"1,356.32",AFFINITY TRUST,CT230417020,Charities & Voluntary Organisations
SHEFFIELD CITY COUNCIL,PEOPLE,14009242034,PURCHASING LEARNING DISABILITI,9240001,FUNDED NURSING CARE (IN,25/07/2018,P3/72043,"1,420.80",AFFINITY TRUST,CT230417020,Charities & Voluntary Organisations
SHEFFIELD CITY COUNCIL,PEOPLE,14009242034,PURCHASING LEARNING DISABILITI,9240000,SUPPORTED LIVING CARE,31/07/2018,P1/70876,"1,730.10",AFFINITY TRUST,CT230417020,Charities & Voluntary Organisations
SHEFFIELD CITY COUNCIL,PEOPLE,14009242034,PURCHASING LEARNING DISABILITI,9180000,OTHER CLIENT EXPENDITURE,25/07/2018,J2339423220718,351.00,REDACTED PERSONAL DATA,CT230243419,Home Care Services
SHEFFIELD CITY COUNCIL,PEOPLE,14009242034,PURCHASING LEARNING DISABILITI,9240001,FUNDED NURSING CARE (IN,31/07/2018,P1/70876,"1,740.00",AFFINITY TRUST,CT230417020,Charities & Voluntary Organisations
SHEFFIELD CITY COUNCIL,PEOPLE,14009346039,ADULT SOCIAL CARE PURCHASING,9190004,DIRECT PAYMENTS,10/07/2018,J2324004,"2,259.60",REDACTED PERSONAL DATA,CT9999DIRPY,CAREFIRST DIRECT PAYMENTS
SHEFFIELD CITY COUNCIL,PEOPLE,14009242034,PURCHASING LEARNING DISABILITI,9240000,SUPPORTED LIVING CARE,31/07/2018,P3/73248,"1,832.80",AFFINITY TRUST,CT230417020,Charities & Voluntary Organisations
SHEFFIELD CITY COUNCIL,PEOPLE,14009346039,ADULT SOCIAL CARE PURCHASING,9240000,SUPPORTED LIVING CARE,25/07/2018,P3/72043,"1,928.96",AFFINITY TRUST,CT230417020,Charities & Voluntary Organisations
SHEFFIELD CITY COUNCIL,PEOPLE,14009346039,ADULT SOCIAL CARE PURCHASING,9190002,BLOCK CONTRACT,18/07/2018,J2328531240618,"-2,162.76",AWESOME HEALTHCARE SOLUTIONS,CT230243419,Home Care Services
SHEFFIELD CITY COUNCIL,PEOPLE,14009242034,PURCHASING LEARNING DISABILITI,9240000,SUPPORTED LIVING CARE,25/07/2018,P3/72043,"2,064.61",AFFINITY TRUST,CT230417020,Charities & Voluntary Organisations
SHEFFIELD CITY COUNCIL,PEOPLE,14009242075,VOIDS VACANCY COSTS,9190005,EX POOL CLIENTS,20/07/2018,71913,"2,109.24",AFFINITY TRUST,CT230417020,Charities & Voluntary Organisations
SHEFFIELD CITY COUNCIL,PEOPLE,14009242034,PURCHASING LEARNING DISABILITI,9240000,SUPPORTED LIVING CARE,31/07/2018,P1/70876,"2,149.64",AFFINITY TRUST,CT230417020,Charities & Voluntary Organisations
SHEFFIELD CITY COUNCIL,PEOPLE,14009242034,PURCHASING LEARNING DISABILITI,9240000,SUPPORTED LIVING CARE,31/07/2018,P3/73248,"2,149.64",AFFINITY TRUST,CT230417020,Charities & Voluntary Organisations
SHEFFIELD CITY COUNCIL,PEOPLE,14009242034,PURCHASING LEARNING DISABILITI,9240000,SUPPORTED LIVING CARE,31/07/2018,P1/70876,"2,270.20",AFFINITY TRUST,CT230417020,Charities & Voluntary Organisations
SHEFFIELD CITY COUNCIL,PEOPLE,14009242034,PURCHASING LEARNING DISABILITI,9240000,SUPPORTED LIVING CARE,31/07/2018,P3/73248,"2,270.20",AFFINITY TRUST,CT230417020,Charities & Voluntary Organisations
SHEFFIELD CITY COUNCIL,PEOPLE,13002639405,SEMI INDEPENDENT LIVING,9270003,CARELEAVERS ACCOMMODATION,17/07/2018,CHI037935,747.42,CAMBIAN CHILDCARE LTD,CT240517580,Childcare Services
SHEFFIELD CITY COUNCIL,PEOPLE,14009346039,ADULT SOCIAL CARE PURCHASING,9240000,SUPPORTED LIVING CARE,25/07/2018,P3/72043,"2,275.60",AFFINITY TRUST,CT230417020,Charities & Voluntary Organisations
SHEFFIELD CITY COUNCIL,PEOPLE,14009242034,PURCHASING LEARNING DISABILITI,9240000,SUPPORTED LIVING CARE,31/07/2018,P1/70876,"2,451.04",AFFINITY TRUST,CT230417020,Charities & Voluntary Organisations
SHEFFIELD CITY COUNCIL,PEOPLE,14009242034,PURCHASING LEARNING DISABILITI,9240000,SUPPORTED LIVING CARE,31/07/2018,P3/73248,"2,451.04",AFFINITY TRUST,CT230417020,Charities & Voluntary Organisations
SHEFFIELD CITY COUNCIL,PEOPLE,14009346039,ADULT SOCIAL CARE PURCHASING,9240000,SUPPORTED LIVING CARE,31/07/2018,P1/70876,"2,780.78",AFFINITY TRUST,CT230417020,Charities & Voluntary Organisations
SHEFFIELD CITY COUNCIL,PEOPLE,14009242034,PURCHASING LEARNING DISABILITI,9240000,SUPPORTED LIVING CARE,31/07/2018,P3/73248,"2,953.47",AFFINITY TRUST,CT230417020,Charities & Voluntary Organisations
SHEFFIELD CITY COUNCIL,PEOPLE,14009242034,PURCHASING LEARNING DISABILITI,9240000,SUPPORTED LIVING CARE,25/07/2018,P3/72043,"3,124.60",AFFINITY TRUST,CT230417020,Charities & Voluntary Organisations
SHEFFIELD CITY COUNCIL,PEOPLE,14009242034,PURCHASING LEARNING DISABILITI,9240000,SUPPORTED LIVING CARE,31/07/2018,P1/70876,"3,172.14",AFFINITY TRUST,CT230417020,Charities & Voluntary Organisations
SHEFFIELD CITY COUNCIL,PEOPLE,14009346039,ADULT SOCIAL CARE PURCHASING,9240000,SUPPORTED LIVING CARE,31/07/2018,P3/73248,"3,444.39",AFFINITY TRUST,CT230417020,Charities & Voluntary Organisations
SHEFFIELD CITY COUNCIL,PEOPLE,14009242034,PURCHASING LEARNING DISABILITI,9240000,SUPPORTED LIVING CARE,25/07/2018,P3/71871,"3,608.10",AFFINITY TRUST,CT230417020,Charities & Voluntary Organisations
SHEFFIELD CITY COUNCIL,PEOPLE,14009242034,PURCHASING LEARNING DISABILITI,9240000,SUPPORTED LIVING CARE,31/07/2018,P3/73248,"3,707.00",AFFINITY TRUST,CT230417020,Charities & Voluntary Organisations
SHEFFIELD CITY COUNCIL,PEOPLE,14009242034,PURCHASING LEARNING DISABILITI,9240000,SUPPORTED LIVING CARE,25/07/2018,P3/71871,"3,834.12",AFFINITY TRUST,CT230417020,Charities & Voluntary Organisations
SHEFFIELD CITY COUNCIL,PEOPLE,14009346039,ADULT SOCIAL CARE PURCHASING,9190002,BLOCK CONTRACT,18/07/2018,J2328531240618,"-1,617.41",AWESOME HEALTHCARE SOLUTIONS,CT230243419,Home Care Services
SHEFFIELD CITY COUNCIL,PEOPLE,14009242034,PURCHASING LEARNING DISABILITI,9240000,SUPPORTED LIVING CARE,31/07/2018,P1/70876,"3,993.53",AFFINITY TRUST,CT230417020,Charities & Voluntary Organisations
SHEFFIELD CITY COUNCIL,PEOPLE,14009242034,PURCHASING LEARNING DISABILITI,9240000,SUPPORTED LIVING CARE,31/07/2018,P3/73248,"4,166.86",AFFINITY TRUST,CT230417020,Charities & Voluntary Organisations
SHEFFIELD CITY COUNCIL,PEOPLE,14009242034,PURCHASING LEARNING DISABILITI,9240000,SUPPORTED LIVING CARE,25/07/2018,P3/72043,"4,213.84",AFFINITY TRUST,CT230417020,Charities & Voluntary Organisations
SHEFFIELD CITY COUNCIL,PEOPLE,14009242034,PURCHASING LEARNING DISABILITI,9240000,SUPPORTED LIVING CARE,25/07/2018,P3/71871,"4,370.28",AFFINITY TRUST,CT230417020,Charities & Voluntary Organisations
SHEFFIELD CITY COUNCIL,PEOPLE,14009242034,PURCHASING LEARNING DISABILITI,9240000,SUPPORTED LIVING CARE,31/07/2018,P1/70876,"4,777.70",AFFINITY TRUST,CT230417020,Charities & Voluntary Organisations
SHEFFIELD CITY COUNCIL,PEOPLE,14009242034,PURCHASING LEARNING DISABILITI,9240000,SUPPORTED LIVING CARE,25/07/2018,P3/72043,"5,515.64",AFFINITY TRUST,CT230417020,Charities & Voluntary Organisations
SHEFFIELD CITY COUNCIL,PEOPLE,14009346039,ADULT SOCIAL CARE PURCHASING,9190002,BLOCK CONTRACT,18/07/2018,J2328531240618,"-1,617.41",AWESOME HEALTHCARE SOLUTIONS,CT230243419,Home Care Services
SHEFFIELD CITY COUNCIL,PEOPLE,14009242034,PURCHASING LEARNING DISABILITI,9240000,SUPPORTED LIVING CARE,25/07/2018,P3/71871,"6,178.68",AFFINITY TRUST,CT230417020,Charities & Voluntary Organisations
SHEFFIELD CITY COUNCIL,PEOPLE,14009242034,PURCHASING LEARNING DISABILITI,9240000,SUPPORTED LIVING CARE,31/07/2018,P1/70876,"7,058.63",AFFINITY TRUST,CT230417020,Charities & Voluntary Organisations
SHEFFIELD CITY COUNCIL,PEOPLE,14009242034,PURCHASING LEARNING DISABILITI,9240000,SUPPORTED LIVING CARE,31/07/2018,P3/73248,"7,058.63",AFFINITY TRUST,CT230417020,Charities & Voluntary Organisations
SHEFFIELD CITY COUNCIL,PEOPLE,14009242034,PURCHASING LEARNING DISABILITI,9240000,SUPPORTED LIVING CARE,31/07/2018,P1/70876,"7,941.56",AFFINITY TRUST,CT230417020,Charities & Voluntary Organisations
SHEFFIELD CITY COUNCIL,PEOPLE,14009242034,PURCHASING LEARNING DISABILITI,9240000,SUPPORTED LIVING CARE,31/07/2018,P3/73248,"7,941.56",AFFINITY TRUST,CT230417020,Charities & Voluntary Organisations
SHEFFIELD CITY COUNCIL,PEOPLE,14009242034,PURCHASING LEARNING DISABILITI,9240001,FUNDED NURSING CARE (IN,31/07/2018,P1/70876,"8,438.64",AFFINITY TRUST,CT230417020,Charities & Voluntary Organisations
SHEFFIELD CITY COUNCIL,PEOPLE,14009346039,ADULT SOCIAL CARE PURCHASING,9190002,BLOCK CONTRACT,18/07/2018,J2328531240618,"-1,576.94",AWESOME HEALTHCARE SOLUTIONS,CT230243419,Home Care Services
SHEFFIELD CITY COUNCIL,PEOPLE,14009242034,PURCHASING LEARNING DISABILITI,9240001,FUNDED NURSING CARE (IN,31/07/2018,P3/73248,"8,438.64",AFFINITY TRUST,CT230417020,Charities & Voluntary Organisations
SHEFFIELD CITY COUNCIL,PEOPLE,14009242034,PURCHASING LEARNING DISABILITI,9240000,SUPPORTED LIVING CARE,25/07/2018,P3/72043,"9,744.57",AFFINITY TRUST,CT230417020,Charities & Voluntary Organisations
SHEFFIELD CITY COUNCIL,PEOPLE,14009346039,ADULT SOCIAL CARE PURCHASING,9190002,BLOCK CONTRACT,24/07/2018,J2087976051117,"-1,213.72",AWESOME HEALTHCARE SOLUTIONS,CT230243419,Home Care Services
SHEFFIELD CITY COUNCIL,PEOPLE,14009242034,PURCHASING LEARNING DISABILITI,9240001,FUNDED NURSING CARE (IN,31/07/2018,P1/70876,"10,266.20",AFFINITY TRUST,CT230417020,Charities & Voluntary Organisations
SHEFFIELD CITY COUNCIL,PEOPLE,14009242034,PURCHASING LEARNING DISABILITI,9240001,FUNDED NURSING CARE (IN,31/07/2018,P3/73248,"10,266.20",AFFINITY TRUST,CT230417020,Charities & Voluntary Organisations
SHEFFIELD CITY COUNCIL,PEOPLE,14009242076,TUPE COSTS,9190005,EX POOL CLIENTS,20/07/2018,71872,"10,764.00",AFFINITY TRUST,CT230417020,Charities & Voluntary Organisations
SHEFFIELD CITY COUNCIL,PEOPLE,14009242076,TUPE COSTS,9190005,EX POOL CLIENTS,20/07/2018,71936,"16,477.93",AFFINITY TRUST,CT230417020,Charities & Voluntary Organisations
SHEFFIELD CITY COUNCIL,PEOPLE,14032242077,PEOPLE KEEPING WELL,9160000,PARTNERSHIP CONTRACTS,09/07/2018,20847,"19,670.50",AGE UK SHEFFIELD,CT230417020,Charities & Voluntary Organisations
SHEFFIELD CITY COUNCIL,PLACE,11853300000,CSSR REPAIRS AFTER SERVICING,8530001,SUBCONTRACTOR GENERAL,03/07/2018,11424,"2,512.00",AIR ENVIRONMENTAL LTD,CT282502880,Air Conditioning Equipment & Systems
SHEFFIELD CITY COUNCIL,PLACE,11853300000,CSSR REPAIRS AFTER SERVICING,8530001,SUBCONTRACTOR GENERAL,03/07/2018,11424,"17,248.00",AIR ENVIRONMENTAL LTD,CT282502880,Air Conditioning Equipment & Systems
SHEFFIELD CITY COUNCIL,PLACE,12076600000,CAR PARKING MANAGEMENT,8210000,LICENCES EXPENSES,11/07/2018,0920000081-031,"8,508.74",AIRWAVE SOLUTIONS LIMITED,CT171676510,Telecommunication Services
SHEFFIELD CITY COUNCIL,PLACE,11850100021,DISTRICT & COMMERCIAL HEATING,8530001,SUBCONTRACTOR GENERAL,18/07/2018,117984,300.00,AJH PUMP SUPPLY AND REPAIR LTD,CT283862590,"Pumps - Sales, Servicing & Repairs"
SHEFFIELD CITY COUNCIL,PLACE,12045821103,CLIFFHANGER,8440000,FEE EXPENSES,26/07/2018,#77,"2,500.00",REDACTED PERSONAL DATA,CT110672969,Sports Management & Promotion
SHEFFIELD CITY COUNCIL,PLACE,11850100021,DISTRICT & COMMERCIAL HEATING,8530001,SUBCONTRACTOR GENERAL,11/07/2018,117860,579.00,AJH PUMP SUPPLY AND REPAIR LTD,CT283862590,"Pumps - Sales, Servicing & Repairs"
SHEFFIELD CITY COUNCIL,PLACE,11850100021,DISTRICT & COMMERCIAL HEATING,8530001,SUBCONTRACTOR GENERAL,30/07/2018,118174,"1,198.00",AJH PUMP SUPPLY AND REPAIR LTD,CT283862590,"Pumps - Sales, Servicing & Repairs"
SHEFFIELD CITY COUNCIL,PEOPLE,14009346039,ADULT SOCIAL CARE PURCHASING,4260018,RESIDENTIAL COSTS RECOVERED,19/07/2018,J2320250150718,-868.06,AKARI CARE LTD (SILVER LODGE),CT230164710,Residential Care Homes
SHEFFIELD CITY COUNCIL,PEOPLE,14009346039,ADULT SOCIAL CARE PURCHASING,4260018,RESIDENTIAL COSTS RECOVERED,19/07/2018,J2331717120818,-840.52,AKARI CARE LTD (SILVER LODGE),CT230164710,Residential Care Homes
SHEFFIELD CITY COUNCIL,PEOPLE,14009346039,ADULT SOCIAL CARE PURCHASING,9190002,BLOCK CONTRACT,18/07/2018,J2328531240618,-631.00,AWESOME HEALTHCARE SOLUTIONS,CT230243419,Home Care Services
SHEFFIELD CITY COUNCIL,PEOPLE,14009346039,ADULT SOCIAL CARE PURCHASING,4260018,RESIDENTIAL COSTS RECOVERED,19/07/2018,J2331717120818,-784.48,AKARI CARE LTD (SILVER LODGE),CT230164710,Residential Care Homes
SHEFFIELD CITY COUNCIL,PEOPLE,14009346039,ADULT SOCIAL CARE PURCHASING,4260018,RESIDENTIAL COSTS RECOVERED,19/07/2018,J2331717120818,-767.32,AKARI CARE LTD (SILVER LODGE),CT230164710,Residential Care Homes
SHEFFIELD CITY COUNCIL,PEOPLE,14009346039,ADULT SOCIAL CARE PURCHASING,9200001,CONTINUING RESIDENTIAL CARE,19/07/2018,J2320250150718,-744.00,AKARI CARE LTD (SILVER LODGE),CT230164710,Residential Care Homes
SHEFFIELD CITY COUNCIL,PEOPLE,14009346039,ADULT SOCIAL CARE PURCHASING,4260018,RESIDENTIAL COSTS RECOVERED,19/07/2018,J2331717120818,-692.88,AKARI CARE LTD (SILVER LODGE),CT230164710,Residential Care Homes
SHEFFIELD CITY COUNCIL,PEOPLE,14009346039,ADULT SOCIAL CARE PURCHASING,4260018,RESIDENTIAL COSTS RECOVERED,19/07/2018,J2331717120818,-664.92,AKARI CARE LTD (SILVER LODGE),CT230164710,Residential Care Homes
SHEFFIELD CITY COUNCIL,PEOPLE,14009346039,ADULT SOCIAL CARE PURCHASING,4260018,RESIDENTIAL COSTS RECOVERED,19/07/2018,J2331717120818,-572.80,AKARI CARE LTD (SILVER LODGE),CT230164710,Residential Care Homes
SHEFFIELD CITY COUNCIL,PEOPLE,14009346039,ADULT SOCIAL CARE PURCHASING,4260018,RESIDENTIAL COSTS RECOVERED,19/07/2018,J2331717120818,-564.12,AKARI CARE LTD (SILVER LODGE),CT230164710,Residential Care Homes
SHEFFIELD CITY COUNCIL,PEOPLE,14009346039,ADULT SOCIAL CARE PURCHASING,4260018,RESIDENTIAL COSTS RECOVERED,19/07/2018,J2331717120818,-552.40,AKARI CARE LTD (SILVER LODGE),CT230164710,Residential Care Homes
SHEFFIELD CITY COUNCIL,PEOPLE,14009346039,ADULT SOCIAL CARE PURCHASING,4260018,RESIDENTIAL COSTS RECOVERED,19/07/2018,J2331717120818,-552.40,AKARI CARE LTD (SILVER LODGE),CT230164710,Residential Care Homes
SHEFFIELD CITY COUNCIL,PEOPLE,14009346039,ADULT SOCIAL CARE PURCHASING,4260018,RESIDENTIAL COSTS RECOVERED,19/07/2018,J2331717120818,-550.76,AKARI CARE LTD (SILVER LODGE),CT230164710,Residential Care Homes
SHEFFIELD CITY COUNCIL,PEOPLE,14009346039,ADULT SOCIAL CARE PURCHASING,4260018,RESIDENTIAL COSTS RECOVERED,19/07/2018,J2331717120818,-550.44,AKARI CARE LTD (SILVER LODGE),CT230164710,Residential Care Homes
SHEFFIELD CITY COUNCIL,PEOPLE,14009346039,ADULT SOCIAL CARE PURCHASING,4260018,RESIDENTIAL COSTS RECOVERED,19/07/2018,J2320250150718,-532.67,AKARI CARE LTD (SILVER LODGE),CT230164710,Residential Care Homes
SHEFFIELD CITY COUNCIL,PEOPLE,14009346039,ADULT SOCIAL CARE PURCHASING,4260018,RESIDENTIAL COSTS RECOVERED,19/07/2018,J2331717120818,-444.16,AKARI CARE LTD (SILVER LODGE),CT230164710,Residential Care Homes
SHEFFIELD CITY COUNCIL,PEOPLE,14009346039,ADULT SOCIAL CARE PURCHASING,4260018,RESIDENTIAL COSTS RECOVERED,19/07/2018,J2320250150718,327.36,AKARI CARE LTD (SILVER LODGE),CT230164710,Residential Care Homes
SHEFFIELD CITY COUNCIL,PEOPLE,14009346039,ADULT SOCIAL CARE PURCHASING,9200001,CONTINUING RESIDENTIAL CARE,27/07/2018,J2340538120818,343.86,AKARI CARE LTD (SILVER LODGE),CT230164710,Residential Care Homes
SHEFFIELD CITY COUNCIL,PEOPLE,14009346039,ADULT SOCIAL CARE PURCHASING,4260008,DIRECT PAYMENTS,10/07/2018,J2324004,-199.60,REDACTED PERSONAL DATA,CT9999DIRPY,CAREFIRST DIRECT PAYMENTS
SHEFFIELD CITY COUNCIL,PEOPLE,14009346039,ADULT SOCIAL CARE PURCHASING,9200001,CONTINUING RESIDENTIAL CARE,27/07/2018,J2340538120818,522.00,AKARI CARE LTD (SILVER LODGE),CT230164710,Residential Care Homes
SHEFFIELD CITY COUNCIL,PEOPLE,14009346039,ADULT SOCIAL CARE PURCHASING,9200001,CONTINUING RESIDENTIAL CARE,27/07/2018,J2340538120818,522.00,AKARI CARE LTD (SILVER LODGE),CT230164710,Residential Care Homes
SHEFFIELD CITY COUNCIL,PEOPLE,14009346039,ADULT SOCIAL CARE PURCHASING,9200001,CONTINUING RESIDENTIAL CARE,27/07/2018,J2340538120818,522.00,AKARI CARE LTD (SILVER LODGE),CT230164710,Residential Care Homes
SHEFFIELD CITY COUNCIL,PEOPLE,14009346039,ADULT SOCIAL CARE PURCHASING,9200001,CONTINUING RESIDENTIAL CARE,27/07/2018,J2340538120818,522.00,AKARI CARE LTD (SILVER LODGE),CT230164710,Residential Care Homes
SHEFFIELD CITY COUNCIL,PEOPLE,14009346039,ADULT SOCIAL CARE PURCHASING,9200001,CONTINUING RESIDENTIAL CARE,27/07/2018,J2340538120818,522.00,AKARI CARE LTD (SILVER LODGE),CT230164710,Residential Care Homes
SHEFFIELD CITY COUNCIL,PEOPLE,14009346039,ADULT SOCIAL CARE PURCHASING,9200001,CONTINUING RESIDENTIAL CARE,27/07/2018,J2340538120818,522.00,AKARI CARE LTD (SILVER LODGE),CT230164710,Residential Care Homes
SHEFFIELD CITY COUNCIL,PEOPLE,14009346039,ADULT SOCIAL CARE PURCHASING,9200001,CONTINUING RESIDENTIAL CARE,27/07/2018,J2340538120818,522.00,AKARI CARE LTD (SILVER LODGE),CT230164710,Residential Care Homes
SHEFFIELD CITY COUNCIL,PEOPLE,14009346039,ADULT SOCIAL CARE PURCHASING,9200001,CONTINUING RESIDENTIAL CARE,27/07/2018,J2340538120818,522.00,AKARI CARE LTD (SILVER LODGE),CT230164710,Residential Care Homes
SHEFFIELD CITY COUNCIL,PEOPLE,14009346039,ADULT SOCIAL CARE PURCHASING,9200001,CONTINUING RESIDENTIAL CARE,27/07/2018,J2340538120818,522.00,AKARI CARE LTD (SILVER LODGE),CT230164710,Residential Care Homes
SHEFFIELD CITY COUNCIL,PEOPLE,14009346039,ADULT SOCIAL CARE PURCHASING,9200001,CONTINUING RESIDENTIAL CARE,27/07/2018,J2340538120818,522.00,AKARI CARE LTD (SILVER LODGE),CT230164710,Residential Care Homes
SHEFFIELD CITY COUNCIL,PEOPLE,14009346039,ADULT SOCIAL CARE PURCHASING,9200001,CONTINUING RESIDENTIAL CARE,19/07/2018,J2331717120818,868.00,AKARI CARE LTD (SILVER LODGE),CT230164710,Residential Care Homes
SHEFFIELD CITY COUNCIL,PEOPLE,14009346039,ADULT SOCIAL CARE PURCHASING,9190002,BLOCK CONTRACT,24/07/2018,J2087976051117,-560.02,AWESOME HEALTHCARE SOLUTIONS,CT230243419,Home Care Services
SHEFFIELD CITY COUNCIL,PEOPLE,14009346039,ADULT SOCIAL CARE PURCHASING,9200001,CONTINUING RESIDENTIAL CARE,19/07/2018,J2331717120818,"1,736.00",AKARI CARE LTD (SILVER LODGE),CT230164710,Residential Care Homes
SHEFFIELD CITY COUNCIL,PEOPLE,14009346039,ADULT SOCIAL CARE PURCHASING,9190004,DIRECT PAYMENTS,10/07/2018,J2324004,996.00,REDACTED PERSONAL DATA,CT9999DIRPY,CAREFIRST DIRECT PAYMENTS
SHEFFIELD CITY COUNCIL,PEOPLE,14009346039,ADULT SOCIAL CARE PURCHASING,9200001,CONTINUING RESIDENTIAL CARE,19/07/2018,J2331717120818,"1,736.00",AKARI CARE LTD (SILVER LODGE),CT230164710,Residential Care Homes
SHEFFIELD CITY COUNCIL,PEOPLE,14009346039,ADULT SOCIAL CARE PURCHASING,9200001,CONTINUING RESIDENTIAL CARE,19/07/2018,J2331717120818,"1,736.00",AKARI CARE LTD (SILVER LODGE),CT230164710,Residential Care Homes
SHEFFIELD CITY COUNCIL,PEOPLE,14009346039,ADULT SOCIAL CARE PURCHASING,9200001,CONTINUING RESIDENTIAL CARE,19/07/2018,J2331717120818,"1,736.00",AKARI CARE LTD (SILVER LODGE),CT230164710,Residential Care Homes
SHEFFIELD CITY COUNCIL,PEOPLE,14009346039,ADULT SOCIAL CARE PURCHASING,9200001,CONTINUING RESIDENTIAL CARE,19/07/2018,J2331717120818,"1,736.00",AKARI CARE LTD (SILVER LODGE),CT230164710,Residential Care Homes
SHEFFIELD CITY COUNCIL,PEOPLE,14009346039,ADULT SOCIAL CARE PURCHASING,9200001,CONTINUING RESIDENTIAL CARE,19/07/2018,J2331717120818,"1,736.00",AKARI CARE LTD (SILVER LODGE),CT230164710,Residential Care Homes
SHEFFIELD CITY COUNCIL,PEOPLE,14009346039,ADULT SOCIAL CARE PURCHASING,9200001,CONTINUING RESIDENTIAL CARE,19/07/2018,J2331717120818,"1,736.00",AKARI CARE LTD (SILVER LODGE),CT230164710,Residential Care Homes
SHEFFIELD CITY COUNCIL,PEOPLE,14009346039,ADULT SOCIAL CARE PURCHASING,9200001,CONTINUING RESIDENTIAL CARE,19/07/2018,J2331717120818,"1,736.00",AKARI CARE LTD (SILVER LODGE),CT230164710,Residential Care Homes
SHEFFIELD CITY COUNCIL,PEOPLE,14009346039,ADULT SOCIAL CARE PURCHASING,9200001,CONTINUING RESIDENTIAL CARE,19/07/2018,J2331717120818,"1,736.00",AKARI CARE LTD (SILVER LODGE),CT230164710,Residential Care Homes
SHEFFIELD CITY COUNCIL,PEOPLE,14009346039,ADULT SOCIAL CARE PURCHASING,9200001,CONTINUING RESIDENTIAL CARE,19/07/2018,J2331717120818,"1,736.00",AKARI CARE LTD (SILVER LODGE),CT230164710,Residential Care Homes
SHEFFIELD CITY COUNCIL,PEOPLE,14009346039,ADULT SOCIAL CARE PURCHASING,9200001,CONTINUING RESIDENTIAL CARE,19/07/2018,J2320250150718,"1,785.86",AKARI CARE LTD (SILVER LODGE),CT230164710,Residential Care Homes
SHEFFIELD CITY COUNCIL,PEOPLE,14009346039,ADULT SOCIAL CARE PURCHASING,9200001,CONTINUING RESIDENTIAL CARE,19/07/2018,J2331717120818,"1,852.00",AKARI CARE LTD (SILVER LODGE),CT230164710,Residential Care Homes
SHEFFIELD CITY COUNCIL,PEOPLE,14009346039,ADULT SOCIAL CARE PURCHASING,9200001,CONTINUING RESIDENTIAL CARE,19/07/2018,J2331717120818,"1,852.00",AKARI CARE LTD (SILVER LODGE),CT230164710,Residential Care Homes
SHEFFIELD CITY COUNCIL,PEOPLE,14009346039,ADULT SOCIAL CARE PURCHASING,9200001,CONTINUING RESIDENTIAL CARE,19/07/2018,J2320250150718,"3,108.72",AKARI CARE LTD (SILVER LODGE),CT230164710,Residential Care Homes
SHEFFIELD CITY COUNCIL,PLACE,11850400084,GENERAL OVERHEADS,5750000,TRAINING EXPENDITURE,17/07/2018,Y00002809-INV,"1,000.00",ALCUMUS SYPOL LTD,CT072365423,Health & Safety Training
SHEFFIELD CITY COUNCIL,PEOPLE,13002139213,EAST SA - CIN S17,9270004,CARELEAVERS INDEPENDENT LIVING,11/07/2018,592475,689.00,ALERE TOXICOLOGY PLC,CT149950345,Medical & Dental Laboratories
SHEFFIELD CITY COUNCIL,PEOPLE,14009346039,ADULT SOCIAL CARE PURCHASING,4260018,RESIDENTIAL COSTS RECOVERED,19/07/2018,J2334525120818,"-2,682.46",ALEXANDER COURT CARE HOME,CT230164710,Residential Care Homes
SHEFFIELD CITY COUNCIL,PEOPLE,14009346039,ADULT SOCIAL CARE PURCHASING,4260018,RESIDENTIAL COSTS RECOVERED,18/07/2018,J2307486150718,"-2,505.01",ALEXANDER COURT CARE HOME,CT230164710,Residential Care Homes
SHEFFIELD CITY COUNCIL,PEOPLE,14009346039,ADULT SOCIAL CARE PURCHASING,9200001,CONTINUING RESIDENTIAL CARE,18/07/2018,J2307486150718,"-1,396.43",ALEXANDER COURT CARE HOME,CT230164710,Residential Care Homes
SHEFFIELD CITY COUNCIL,PEOPLE,14009346039,ADULT SOCIAL CARE PURCHASING,4260011,NURSING COSTS RECOVERED,18/07/2018,J2331718120818,"-1,363.92",ALEXANDER COURT CARE HOME,CT230164710,Residential Care Homes
SHEFFIELD CITY COUNCIL,PEOPLE,14009346039,ADULT SOCIAL CARE PURCHASING,4260018,RESIDENTIAL COSTS RECOVERED,18/07/2018,J2331718120818,"-1,191.92",ALEXANDER COURT CARE HOME,CT230164710,Residential Care Homes
SHEFFIELD CITY COUNCIL,PEOPLE,14009346039,ADULT SOCIAL CARE PURCHASING,4260018,RESIDENTIAL COSTS RECOVERED,18/07/2018,J2331718120818,-967.24,ALEXANDER COURT CARE HOME,CT230164710,Residential Care Homes
SHEFFIELD CITY COUNCIL,PEOPLE,14009346039,ADULT SOCIAL CARE PURCHASING,9190002,BLOCK CONTRACT,18/07/2018,J2328531240618,265.60,AWESOME HEALTHCARE SOLUTIONS,CT230243419,Home Care Services
SHEFFIELD CITY COUNCIL,PEOPLE,14009346039,ADULT SOCIAL CARE PURCHASING,4260011,NURSING COSTS RECOVERED,19/07/2018,J2334525120818,-927.24,ALEXANDER COURT CARE HOME,CT230164710,Residential Care Homes
SHEFFIELD CITY COUNCIL,PEOPLE,14009346039,ADULT SOCIAL CARE PURCHASING,4260018,RESIDENTIAL COSTS RECOVERED,18/07/2018,J2331718120818,-855.12,ALEXANDER COURT CARE HOME,CT230164710,Residential Care Homes
SHEFFIELD CITY COUNCIL,PEOPLE,14009242034,PURCHASING LEARNING DISABILITI,4260008,DIRECT PAYMENTS,10/07/2018,J2324004,-392.52,REDACTED PERSONAL DATA,CT9999DIRPY,CAREFIRST DIRECT PAYMENTS
SHEFFIELD CITY COUNCIL,PEOPLE,14009346039,ADULT SOCIAL CARE PURCHASING,4260011,NURSING COSTS RECOVERED,18/07/2018,J2331718120818,-792.40,ALEXANDER COURT CARE HOME,CT230164710,Residential Care Homes
SHEFFIELD CITY COUNCIL,PEOPLE,14009346039,ADULT SOCIAL CARE PURCHASING,4260018,RESIDENTIAL COSTS RECOVERED,18/07/2018,J2331718120818,-710.24,ALEXANDER COURT CARE HOME,CT230164710,Residential Care Homes
SHEFFIELD CITY COUNCIL,PEOPLE,14009346039,ADULT SOCIAL CARE PURCHASING,4260011,NURSING COSTS RECOVERED,18/07/2018,J2331718120818,-692.72,ALEXANDER COURT CARE HOME,CT230164710,Residential Care Homes
SHEFFIELD CITY COUNCIL,PEOPLE,14007400000,EQUIPMENT & ADAPTATIONS TEAM 1,5750000,TRAINING EXPENDITURE,31/07/2018,539,"1,000.00",A1 RISK SOLUTIONS,CT160979980,Training Services
SHEFFIELD CITY COUNCIL,PEOPLE,14009242034,PURCHASING LEARNING DISABILITI,9190004,DIRECT PAYMENTS,10/07/2018,J2324004,"1,371.08",REDACTED PERSONAL DATA,CT9999DIRPY,CAREFIRST DIRECT PAYMENTS
SHEFFIELD CITY COUNCIL,PEOPLE,14009346039,ADULT SOCIAL CARE PURCHASING,4260011,NURSING COSTS RECOVERED,18/07/2018,J2331718120818,-634.88,ALEXANDER COURT CARE HOME,CT230164710,Residential Care Homes
SHEFFIELD CITY COUNCIL,PEOPLE,14009346039,ADULT SOCIAL CARE PURCHASING,4260011,NURSING COSTS RECOVERED,18/07/2018,J2331718120818,-631.44,ALEXANDER COURT CARE HOME,CT230164710,Residential Care Homes
SHEFFIELD CITY COUNCIL,PEOPLE,14009346039,ADULT SOCIAL CARE PURCHASING,4260011,NURSING COSTS RECOVERED,18/07/2018,J2331718120818,-618.36,ALEXANDER COURT CARE HOME,CT230164710,Residential Care Homes
SHEFFIELD CITY COUNCIL,PEOPLE,14009346039,ADULT SOCIAL CARE PURCHASING,4260011,NURSING COSTS RECOVERED,18/07/2018,J2331718120818,-616.96,ALEXANDER COURT CARE HOME,CT230164710,Residential Care Homes
SHEFFIELD CITY COUNCIL,PEOPLE,14009346039,ADULT SOCIAL CARE PURCHASING,4260018,RESIDENTIAL COSTS RECOVERED,18/07/2018,J2331718120818,-615.00,ALEXANDER COURT CARE HOME,CT230164710,Residential Care Homes
SHEFFIELD CITY COUNCIL,PEOPLE,14009346039,ADULT SOCIAL CARE PURCHASING,4260011,NURSING COSTS RECOVERED,18/07/2018,J2331718120818,-552.40,ALEXANDER COURT CARE HOME,CT230164710,Residential Care Homes
SHEFFIELD CITY COUNCIL,PEOPLE,14009346039,ADULT SOCIAL CARE PURCHASING,4260011,NURSING COSTS RECOVERED,18/07/2018,J2331718120818,-552.40,ALEXANDER COURT CARE HOME,CT230164710,Residential Care Homes
SHEFFIELD CITY COUNCIL,PEOPLE,14009346039,ADULT SOCIAL CARE PURCHASING,4260018,RESIDENTIAL COSTS RECOVERED,18/07/2018,J2331718120818,-552.40,ALEXANDER COURT CARE HOME,CT230164710,Residential Care Homes
SHEFFIELD CITY COUNCIL,PEOPLE,14009346039,ADULT SOCIAL CARE PURCHASING,4260011,NURSING COSTS RECOVERED,18/07/2018,J2331718120818,-532.96,ALEXANDER COURT CARE HOME,CT230164710,Residential Care Homes
SHEFFIELD CITY COUNCIL,PEOPLE,14009346039,ADULT SOCIAL CARE PURCHASING,4260018,RESIDENTIAL COSTS RECOVERED,18/07/2018,J2331718120818,-529.80,ALEXANDER COURT CARE HOME,CT230164710,Residential Care Homes
SHEFFIELD CITY COUNCIL,PEOPLE,14009346039,ADULT SOCIAL CARE PURCHASING,4260018,RESIDENTIAL COSTS RECOVERED,18/07/2018,J2331718120818,-490.04,ALEXANDER COURT CARE HOME,CT230164710,Residential Care Homes
SHEFFIELD CITY COUNCIL,PEOPLE,14009346039,ADULT SOCIAL CARE PURCHASING,4260018,RESIDENTIAL COSTS RECOVERED,18/07/2018,J2331718120818,-299.20,ALEXANDER COURT CARE HOME,CT230164710,Residential Care Homes
SHEFFIELD CITY COUNCIL,PEOPLE,14009346039,ADULT SOCIAL CARE PURCHASING,9210001,CONTINUING NURSING CARE,27/07/2018,J2339428120818,299.00,ALEXANDER COURT CARE HOME,CT230164710,Residential Care Homes
SHEFFIELD CITY COUNCIL,PEOPLE,14009346039,ADULT SOCIAL CARE PURCHASING,9210001,CONTINUING NURSING CARE,27/07/2018,J2339428120818,322.00,ALEXANDER COURT CARE HOME,CT230164710,Residential Care Homes
SHEFFIELD CITY COUNCIL,PEOPLE,14009346039,ADULT SOCIAL CARE PURCHASING,9210001,CONTINUING NURSING CARE,27/07/2018,J2339428120818,322.00,ALEXANDER COURT CARE HOME,CT230164710,Residential Care Homes
SHEFFIELD CITY COUNCIL,PEOPLE,14009346039,ADULT SOCIAL CARE PURCHASING,9210001,CONTINUING NURSING CARE,27/07/2018,J2339428120818,322.00,ALEXANDER COURT CARE HOME,CT230164710,Residential Care Homes
SHEFFIELD CITY COUNCIL,PEOPLE,14009346039,ADULT SOCIAL CARE PURCHASING,9210001,CONTINUING NURSING CARE,27/07/2018,J2339428120818,322.00,ALEXANDER COURT CARE HOME,CT230164710,Residential Care Homes
SHEFFIELD CITY COUNCIL,PEOPLE,14009346039,ADULT SOCIAL CARE PURCHASING,9210001,CONTINUING NURSING CARE,27/07/2018,J2339428120818,322.00,ALEXANDER COURT CARE HOME,CT230164710,Residential Care Homes
SHEFFIELD CITY COUNCIL,PEOPLE,14009346039,ADULT SOCIAL CARE PURCHASING,9210001,CONTINUING NURSING CARE,27/07/2018,J2339428120818,322.00,ALEXANDER COURT CARE HOME,CT230164710,Residential Care Homes
SHEFFIELD CITY COUNCIL,PEOPLE,14009346039,ADULT SOCIAL CARE PURCHASING,9200001,CONTINUING RESIDENTIAL CARE,27/07/2018,J2339428120818,462.00,ALEXANDER COURT CARE HOME,CT230164710,Residential Care Homes
SHEFFIELD CITY COUNCIL,PEOPLE,14009346039,ADULT SOCIAL CARE PURCHASING,9200001,CONTINUING RESIDENTIAL CARE,27/07/2018,J2339428120818,462.00,ALEXANDER COURT CARE HOME,CT230164710,Residential Care Homes
SHEFFIELD CITY COUNCIL,PEOPLE,14009346039,ADULT SOCIAL CARE PURCHASING,9200001,CONTINUING RESIDENTIAL CARE,27/07/2018,J2339428120818,462.00,ALEXANDER COURT CARE HOME,CT230164710,Residential Care Homes
SHEFFIELD CITY COUNCIL,PEOPLE,14009346039,ADULT SOCIAL CARE PURCHASING,4260018,RESIDENTIAL COSTS RECOVERED,18/07/2018,J2307486150718,540.43,ALEXANDER COURT CARE HOME,CT230164710,Residential Care Homes
SHEFFIELD CITY COUNCIL,PEOPLE,14009346039,ADULT SOCIAL CARE PURCHASING,9200001,CONTINUING RESIDENTIAL CARE,27/07/2018,J2339428120818,750.86,ALEXANDER COURT CARE HOME,CT230164710,Residential Care Homes
SHEFFIELD CITY COUNCIL,PEOPLE,14009346039,ADULT SOCIAL CARE PURCHASING,9200001,CONTINUING RESIDENTIAL CARE,27/07/2018,J2339428120818,936.00,ALEXANDER COURT CARE HOME,CT230164710,Residential Care Homes
SHEFFIELD CITY COUNCIL,PEOPLE,14009346039,ADULT SOCIAL CARE PURCHASING,9200001,CONTINUING RESIDENTIAL CARE,27/07/2018,J2339428120818,"1,008.00",ALEXANDER COURT CARE HOME,CT230164710,Residential Care Homes
SHEFFIELD CITY COUNCIL,PEOPLE,14009346039,ADULT SOCIAL CARE PURCHASING,9200001,CONTINUING RESIDENTIAL CARE,27/07/2018,J2339428120818,"1,008.00",ALEXANDER COURT CARE HOME,CT230164710,Residential Care Homes
SHEFFIELD CITY COUNCIL,PEOPLE,14009346039,ADULT SOCIAL CARE PURCHASING,9190002,BLOCK CONTRACT,24/07/2018,J2087976051117,266.19,AWESOME HEALTHCARE SOLUTIONS,CT230243419,Home Care Services
SHEFFIELD CITY COUNCIL,PEOPLE,14009346039,ADULT SOCIAL CARE PURCHASING,9200001,CONTINUING RESIDENTIAL CARE,18/07/2018,J2331718120818,"1,564.00",ALEXANDER COURT CARE HOME,CT230164710,Residential Care Homes
SHEFFIELD CITY COUNCIL,PEOPLE,14009346039,ADULT SOCIAL CARE PURCHASING,9200001,CONTINUING RESIDENTIAL CARE,18/07/2018,J2331718120818,"1,564.00",ALEXANDER COURT CARE HOME,CT230164710,Residential Care Homes
SHEFFIELD CITY COUNCIL,PEOPLE,14009346039,ADULT SOCIAL CARE PURCHASING,9200001,CONTINUING RESIDENTIAL CARE,18/07/2018,J2331718120818,"1,564.00",ALEXANDER COURT CARE HOME,CT230164710,Residential Care Homes
SHEFFIELD CITY COUNCIL,PEOPLE,14009346039,ADULT SOCIAL CARE PURCHASING,9190002,BLOCK CONTRACT,24/07/2018,J2087976051117,316.68,AWESOME HEALTHCARE SOLUTIONS,CT230243419,Home Care Services
SHEFFIELD CITY COUNCIL,PEOPLE,14009346039,ADULT SOCIAL CARE PURCHASING,9200001,CONTINUING RESIDENTIAL CARE,18/07/2018,J2331718120818,"1,720.00",ALEXANDER COURT CARE HOME,CT230164710,Residential Care Homes
SHEFFIELD CITY COUNCIL,PEOPLE,14009346039,ADULT SOCIAL CARE PURCHASING,9200001,CONTINUING RESIDENTIAL CARE,18/07/2018,J2331718120818,"1,720.00",ALEXANDER COURT CARE HOME,CT230164710,Residential Care Homes
SHEFFIELD CITY COUNCIL,PEOPLE,14009346039,ADULT SOCIAL CARE PURCHASING,9200001,CONTINUING RESIDENTIAL CARE,18/07/2018,J2331718120818,"1,720.00",ALEXANDER COURT CARE HOME,CT230164710,Residential Care Homes
SHEFFIELD CITY COUNCIL,PEOPLE,14009346039,ADULT SOCIAL CARE PURCHASING,9200001,CONTINUING RESIDENTIAL CARE,18/07/2018,J2331718120818,"1,720.00",ALEXANDER COURT CARE HOME,CT230164710,Residential Care Homes
SHEFFIELD CITY COUNCIL,PEOPLE,14009346039,ADULT SOCIAL CARE PURCHASING,9210001,CONTINUING NURSING CARE,18/07/2018,J2331718120818,"1,756.00",ALEXANDER COURT CARE HOME,CT230164710,Residential Care Homes
SHEFFIELD CITY COUNCIL,PEOPLE,13002439148,DIRECT PAYMENTS,9190004,DIRECT PAYMENTS,10/07/2018,J2324004,276.28,REDACTED PERSONAL DATA,CT9999DIRPY,CAREFIRST DIRECT PAYMENTS
SHEFFIELD CITY COUNCIL,PEOPLE,14009346039,ADULT SOCIAL CARE PURCHASING,9210001,CONTINUING NURSING CARE,18/07/2018,J2331718120818,"1,760.00",ALEXANDER COURT CARE HOME,CT230164710,Residential Care Homes
SHEFFIELD CITY COUNCIL,PEOPLE,14009346039,ADULT SOCIAL CARE PURCHASING,9210001,CONTINUING NURSING CARE,18/07/2018,J2331718120818,"1,760.00",ALEXANDER COURT CARE HOME,CT230164710,Residential Care Homes
SHEFFIELD CITY COUNCIL,PEOPLE,14009346039,ADULT SOCIAL CARE PURCHASING,9210001,CONTINUING NURSING CARE,18/07/2018,J2331718120818,"1,760.00",ALEXANDER COURT CARE HOME,CT230164710,Residential Care Homes
SHEFFIELD CITY COUNCIL,PEOPLE,14009346039,ADULT SOCIAL CARE PURCHASING,9210001,CONTINUING NURSING CARE,18/07/2018,J2331718120818,"1,760.00",ALEXANDER COURT CARE HOME,CT230164710,Residential Care Homes
SHEFFIELD CITY COUNCIL,PEOPLE,14009346039,ADULT SOCIAL CARE PURCHASING,9210001,CONTINUING NURSING CARE,18/07/2018,J2331718120818,"1,760.00",ALEXANDER COURT CARE HOME,CT230164710,Residential Care Homes
SHEFFIELD CITY COUNCIL,PEOPLE,14009346039,ADULT SOCIAL CARE PURCHASING,9210001,CONTINUING NURSING CARE,18/07/2018,J2331718120818,"1,760.00",ALEXANDER COURT CARE HOME,CT230164710,Residential Care Homes
SHEFFIELD CITY COUNCIL,PEOPLE,14009346039,ADULT SOCIAL CARE PURCHASING,9210001,CONTINUING NURSING CARE,18/07/2018,J2331718120818,"1,760.00",ALEXANDER COURT CARE HOME,CT230164710,Residential Care Homes
SHEFFIELD CITY COUNCIL,PEOPLE,14009346039,ADULT SOCIAL CARE PURCHASING,9200001,CONTINUING RESIDENTIAL CARE,18/07/2018,J2331718120818,"1,804.00",ALEXANDER COURT CARE HOME,CT230164710,Residential Care Homes
SHEFFIELD CITY COUNCIL,PEOPLE,14009346039,ADULT SOCIAL CARE PURCHASING,9200001,CONTINUING RESIDENTIAL CARE,18/07/2018,J2331718120818,"1,960.00",ALEXANDER COURT CARE HOME,CT230164710,Residential Care Homes
SHEFFIELD CITY COUNCIL,PEOPLE,14009346039,ADULT SOCIAL CARE PURCHASING,9210001,CONTINUING NURSING CARE,18/07/2018,J2331718120818,"2,000.00",ALEXANDER COURT CARE HOME,CT230164710,Residential Care Homes
SHEFFIELD CITY COUNCIL,PEOPLE,14009346039,ADULT SOCIAL CARE PURCHASING,9210001,CONTINUING NURSING CARE,18/07/2018,J2331718120818,"2,000.00",ALEXANDER COURT CARE HOME,CT230164710,Residential Care Homes
SHEFFIELD CITY COUNCIL,PEOPLE,14009346039,ADULT SOCIAL CARE PURCHASING,9210001,CONTINUING NURSING CARE,19/07/2018,J2334525120818,"3,108.71",ALEXANDER COURT CARE HOME,CT230164710,Residential Care Homes
SHEFFIELD CITY COUNCIL,PEOPLE,14009346039,ADULT SOCIAL CARE PURCHASING,9200001,CONTINUING RESIDENTIAL CARE,19/07/2018,J2334525120818,"5,096.00",ALEXANDER COURT CARE HOME,CT230164710,Residential Care Homes
SHEFFIELD CITY COUNCIL,PEOPLE,14009346039,ADULT SOCIAL CARE PURCHASING,9200001,CONTINUING RESIDENTIAL CARE,18/07/2018,J2307486150718,"8,968.57",ALEXANDER COURT CARE HOME,CT230164710,Residential Care Homes
SHEFFIELD CITY COUNCIL,PEOPLE,14032149672,CONTRACT PAYMENTS - DRUGS,9030000,HEALTH,13/07/2018,DXQJ/00000092,299.20,ALLEN AND BARNFIELD CHEMISTS,CT140317440,Chemists - Dispensing
SHEFFIELD CITY COUNCIL,RESOURCES,11907500000,CONTRACT REBATES & DISCOUNTS,4080000,FEES & CHARGES,24/07/2018,CREDIT/19.07.18,"-2,696.20",ALLEN UPHOLSTERY LTD,CT022438650,Furniture - Repair & Restoration
SHEFFIELD CITY COUNCIL,PLACE,14064749224,FURNISHED ACCOMMODATION,8050000,FURNITURE PURCHASES,13/07/2018,404,"1,956.00",ALLEN UPHOLSTERY LTD,CT022438650,Furniture - Repair & Restoration
SHEFFIELD CITY COUNCIL,PLACE,14064749224,FURNISHED ACCOMMODATION,8050000,FURNITURE PURCHASES,13/07/2018,403,"2,470.00",ALLEN UPHOLSTERY LTD,CT022438650,Furniture - Repair & Restoration
SHEFFIELD CITY COUNCIL,PLACE,14064749224,FURNISHED ACCOMMODATION,8050000,FURNITURE PURCHASES,24/07/2018,414,"3,458.00",ALLEN UPHOLSTERY LTD,CT022438650,Furniture - Repair & Restoration
SHEFFIELD CITY COUNCIL,PLACE,14064749224,FURNISHED ACCOMMODATION,8050000,FURNITURE PURCHASES,13/07/2018,406,"5,266.00",ALLEN UPHOLSTERY LTD,CT022438650,Furniture - Repair & Restoration
SHEFFIELD CITY COUNCIL,PLACE,14064749224,FURNISHED ACCOMMODATION,8050000,FURNITURE PURCHASES,31/07/2018,424,"5,839.00",ALLEN UPHOLSTERY LTD,CT022438650,Furniture - Repair & Restoration
SHEFFIELD CITY COUNCIL,PLACE,12018528251,ESIF LAUNCHPAD,8440000,FEE EXPENSES,10/07/2018,15407,"7,732.20",ALLEN WEST AND FOSTER LIMITED,CT120201340,Accountants
SHEFFIELD CITY COUNCIL,PLACE,11850000001,RESPONSIVE REPAIRS,8530001,SUBCONTRACTOR GENERAL,23/07/2018,77924,463.05,ALLIED GLAZING SYSTEMS LIMITED,CT280684770,Window Repairs & Replacement Services
SHEFFIELD CITY COUNCIL,PEOPLE,14009346039,ADULT SOCIAL CARE PURCHASING,4260008,DIRECT PAYMENTS,10/07/2018,J2324004,-304.32,REDACTED PERSONAL DATA,CT9999DIRPY,CAREFIRST DIRECT PAYMENTS
SHEFFIELD CITY COUNCIL,PEOPLE,14009346039,ADULT SOCIAL CARE PURCHASING,9190002,BLOCK CONTRACT,24/07/2018,J2087976051117,316.68,AWESOME HEALTHCARE SOLUTIONS,CT230243419,Home Care Services
SHEFFIELD CITY COUNCIL,PEOPLE,14009346039,ADULT SOCIAL CARE PURCHASING,9190004,DIRECT PAYMENTS,10/07/2018,J2324004,"3,414.36",REDACTED PERSONAL DATA,CT9999DIRPY,CAREFIRST DIRECT PAYMENTS
SHEFFIELD CITY COUNCIL,PLACE,11850000001,RESPONSIVE REPAIRS,8530001,SUBCONTRACTOR GENERAL,23/07/2018,77927,"2,036.41",ALLIED GLAZING SYSTEMS LIMITED,CT280684770,Window Repairs & Replacement Services
SHEFFIELD CITY COUNCIL,PLACE,11850000001,RESPONSIVE REPAIRS,8530001,SUBCONTRACTOR GENERAL,23/07/2018,77928,"2,098.15",ALLIED GLAZING SYSTEMS LIMITED,CT280684770,Window Repairs & Replacement Services
SHEFFIELD CITY COUNCIL,PLACE,11850000001,RESPONSIVE REPAIRS,8530001,SUBCONTRACTOR GENERAL,23/07/2018,77926,"5,086.62",ALLIED GLAZING SYSTEMS LIMITED,CT280684770,Window Repairs & Replacement Services
SHEFFIELD CITY COUNCIL,PEOPLE,13007933018,100 APPRENTICES,9120000,OTHER AGENCIES,03/07/2018,INV-0203,"2,464.37",BARC PRODUCTS LTD,CT060202220,Photographers - Aerial
SHEFFIELD CITY COUNCIL,PEOPLE,14009346039,ADULT SOCIAL CARE PURCHASING,9210001,CONTINUING NURSING CARE,23/07/2018,J2331697120818,"-1,562.25",ALPINE HEALTHCARE LTD,CT230753350,Nursing Homes
SHEFFIELD CITY COUNCIL,PEOPLE,14009346039,ADULT SOCIAL CARE PURCHASING,4260011,NURSING COSTS RECOVERED,23/07/2018,J2331697120818,"-1,002.16",ALPINE HEALTHCARE LTD,CT230753350,Nursing Homes
SHEFFIELD CITY COUNCIL,PEOPLE,14009346039,ADULT SOCIAL CARE PURCHASING,4260011,NURSING COSTS RECOVERED,23/07/2018,J2331697120818,-954.72,ALPINE HEALTHCARE LTD,CT230753350,Nursing Homes
SHEFFIELD CITY COUNCIL,PEOPLE,14009346039,ADULT SOCIAL CARE PURCHASING,4260011,NURSING COSTS RECOVERED,23/07/2018,J2331697120818,-867.88,ALPINE HEALTHCARE LTD,CT230753350,Nursing Homes
SHEFFIELD CITY COUNCIL,PEOPLE,14009346039,ADULT SOCIAL CARE PURCHASING,4260011,NURSING COSTS RECOVERED,23/07/2018,J2331697120818,-800.64,ALPINE HEALTHCARE LTD,CT230753350,Nursing Homes
SHEFFIELD CITY COUNCIL,PEOPLE,14009346039,ADULT SOCIAL CARE PURCHASING,4260011,NURSING COSTS RECOVERED,23/07/2018,J2331697120818,-774.92,ALPINE HEALTHCARE LTD,CT230753350,Nursing Homes
SHEFFIELD CITY COUNCIL,PEOPLE,14009346039,ADULT SOCIAL CARE PURCHASING,4260011,NURSING COSTS RECOVERED,23/07/2018,J2331697120818,-769.32,ALPINE HEALTHCARE LTD,CT230753350,Nursing Homes
SHEFFIELD CITY COUNCIL,PEOPLE,14009346039,ADULT SOCIAL CARE PURCHASING,4260018,RESIDENTIAL COSTS RECOVERED,18/07/2018,J2331530150718,-724.80,ALPINE HEALTHCARE LTD,CT230753350,Nursing Homes
SHEFFIELD CITY COUNCIL,PEOPLE,14009346039,ADULT SOCIAL CARE PURCHASING,4260011,NURSING COSTS RECOVERED,23/07/2018,J2331697120818,-696.40,ALPINE HEALTHCARE LTD,CT230753350,Nursing Homes
SHEFFIELD CITY COUNCIL,PEOPLE,14009346039,ADULT SOCIAL CARE PURCHASING,4260011,NURSING COSTS RECOVERED,23/07/2018,J2331697120818,-662.32,ALPINE HEALTHCARE LTD,CT230753350,Nursing Homes
SHEFFIELD CITY COUNCIL,PEOPLE,14009346039,ADULT SOCIAL CARE PURCHASING,4260011,NURSING COSTS RECOVERED,23/07/2018,J2331697120818,-655.16,ALPINE HEALTHCARE LTD,CT230753350,Nursing Homes
SHEFFIELD CITY COUNCIL,PEOPLE,14009346039,ADULT SOCIAL CARE PURCHASING,4260018,RESIDENTIAL COSTS RECOVERED,18/07/2018,J2323072150718,-633.84,ALPINE HEALTHCARE LTD,CT230753350,Nursing Homes
SHEFFIELD CITY COUNCIL,PEOPLE,14009346039,ADULT SOCIAL CARE PURCHASING,4260011,NURSING COSTS RECOVERED,23/07/2018,J2331697120818,-622.64,ALPINE HEALTHCARE LTD,CT230753350,Nursing Homes
SHEFFIELD CITY COUNCIL,PEOPLE,14009346039,ADULT SOCIAL CARE PURCHASING,4260018,RESIDENTIAL COSTS RECOVERED,23/07/2018,J2331697120818,-621.48,ALPINE HEALTHCARE LTD,CT230753350,Nursing Homes
SHEFFIELD CITY COUNCIL,PEOPLE,14009346039,ADULT SOCIAL CARE PURCHASING,4260011,NURSING COSTS RECOVERED,23/07/2018,J2331697120818,-578.00,ALPINE HEALTHCARE LTD,CT230753350,Nursing Homes
SHEFFIELD CITY COUNCIL,PEOPLE,14009346039,ADULT SOCIAL CARE PURCHASING,4260011,NURSING COSTS RECOVERED,23/07/2018,J2331697120818,-560.40,ALPINE HEALTHCARE LTD,CT230753350,Nursing Homes
SHEFFIELD CITY COUNCIL,PEOPLE,14009346039,ADULT SOCIAL CARE PURCHASING,4260011,NURSING COSTS RECOVERED,23/07/2018,J2331697120818,-552.40,ALPINE HEALTHCARE LTD,CT230753350,Nursing Homes
SHEFFIELD CITY COUNCIL,PEOPLE,14009346039,ADULT SOCIAL CARE PURCHASING,4260011,NURSING COSTS RECOVERED,23/07/2018,J2331697120818,-547.08,ALPINE HEALTHCARE LTD,CT230753350,Nursing Homes
SHEFFIELD CITY COUNCIL,PEOPLE,14009346039,ADULT SOCIAL CARE PURCHASING,4260018,RESIDENTIAL COSTS RECOVERED,23/07/2018,J2331697120818,-537.80,ALPINE HEALTHCARE LTD,CT230753350,Nursing Homes
SHEFFIELD CITY COUNCIL,PEOPLE,14009346039,ADULT SOCIAL CARE PURCHASING,4260011,NURSING COSTS RECOVERED,23/07/2018,J2331697120818,-537.24,ALPINE HEALTHCARE LTD,CT230753350,Nursing Homes
SHEFFIELD CITY COUNCIL,PEOPLE,14009346039,ADULT SOCIAL CARE PURCHASING,4260011,NURSING COSTS RECOVERED,23/07/2018,J2331697120818,-526.64,ALPINE HEALTHCARE LTD,CT230753350,Nursing Homes
SHEFFIELD CITY COUNCIL,PEOPLE,14009346039,ADULT SOCIAL CARE PURCHASING,4260011,NURSING COSTS RECOVERED,23/07/2018,J2331697120818,-526.52,ALPINE HEALTHCARE LTD,CT230753350,Nursing Homes
SHEFFIELD CITY COUNCIL,PEOPLE,14009346039,ADULT SOCIAL CARE PURCHASING,4260018,RESIDENTIAL COSTS RECOVERED,18/07/2018,J2331530150718,-526.20,ALPINE HEALTHCARE LTD,CT230753350,Nursing Homes
SHEFFIELD CITY COUNCIL,PEOPLE,14009346039,ADULT SOCIAL CARE PURCHASING,9190004,DIRECT PAYMENTS,10/07/2018,J2324004,821.20,REDACTED PERSONAL DATA,CT9999DIRPY,CAREFIRST DIRECT PAYMENTS
SHEFFIELD CITY COUNCIL,PEOPLE,14009346039,ADULT SOCIAL CARE PURCHASING,4260011,NURSING COSTS RECOVERED,23/07/2018,J2331697120818,-513.40,ALPINE HEALTHCARE LTD,CT230753350,Nursing Homes
SHEFFIELD CITY COUNCIL,PEOPLE,14009346039,ADULT SOCIAL CARE PURCHASING,4260011,NURSING COSTS RECOVERED,23/07/2018,J2331697120818,-459.12,ALPINE HEALTHCARE LTD,CT230753350,Nursing Homes
SHEFFIELD CITY COUNCIL,PEOPLE,14009346039,ADULT SOCIAL CARE PURCHASING,4260018,RESIDENTIAL COSTS RECOVERED,18/07/2018,J2331530150718,-446.28,ALPINE HEALTHCARE LTD,CT230753350,Nursing Homes
SHEFFIELD CITY COUNCIL,PEOPLE,14009346039,ADULT SOCIAL CARE PURCHASING,4260011,NURSING COSTS RECOVERED,23/07/2018,J2331697120818,-402.00,ALPINE HEALTHCARE LTD,CT230753350,Nursing Homes
SHEFFIELD CITY COUNCIL,PEOPLE,14009346039,ADULT SOCIAL CARE PURCHASING,4260018,RESIDENTIAL COSTS RECOVERED,18/07/2018,J2311088170618,-357.03,ALPINE HEALTHCARE LTD,CT230753350,Nursing Homes
SHEFFIELD CITY COUNCIL,PEOPLE,14009346039,ADULT SOCIAL CARE PURCHASING,9210001,CONTINUING NURSING CARE,27/07/2018,J2340531120818,414.00,ALPINE HEALTHCARE LTD,CT230753350,Nursing Homes
SHEFFIELD CITY COUNCIL,PEOPLE,14009346039,ADULT SOCIAL CARE PURCHASING,9210001,CONTINUING NURSING CARE,27/07/2018,J2340531120818,414.00,ALPINE HEALTHCARE LTD,CT230753350,Nursing Homes
SHEFFIELD CITY COUNCIL,PEOPLE,14009346039,ADULT SOCIAL CARE PURCHASING,9210001,CONTINUING NURSING CARE,27/07/2018,J2340531120818,414.00,ALPINE HEALTHCARE LTD,CT230753350,Nursing Homes
SHEFFIELD CITY COUNCIL,PEOPLE,14009346039,ADULT SOCIAL CARE PURCHASING,9210001,CONTINUING NURSING CARE,27/07/2018,J2340531120818,414.00,ALPINE HEALTHCARE LTD,CT230753350,Nursing Homes
SHEFFIELD CITY COUNCIL,PEOPLE,14009346039,ADULT SOCIAL CARE PURCHASING,9210001,CONTINUING NURSING CARE,27/07/2018,J2340531120818,414.00,ALPINE HEALTHCARE LTD,CT230753350,Nursing Homes
SHEFFIELD CITY COUNCIL,PEOPLE,14009346039,ADULT SOCIAL CARE PURCHASING,9210001,CONTINUING NURSING CARE,27/07/2018,J2340531120818,414.00,ALPINE HEALTHCARE LTD,CT230753350,Nursing Homes
SHEFFIELD CITY COUNCIL,PEOPLE,14009346039,ADULT SOCIAL CARE PURCHASING,9210001,CONTINUING NURSING CARE,27/07/2018,J2340531120818,414.00,ALPINE HEALTHCARE LTD,CT230753350,Nursing Homes
SHEFFIELD CITY COUNCIL,PEOPLE,14009346039,ADULT SOCIAL CARE PURCHASING,9210001,CONTINUING NURSING CARE,27/07/2018,J2340531120818,414.00,ALPINE HEALTHCARE LTD,CT230753350,Nursing Homes
SHEFFIELD CITY COUNCIL,PEOPLE,14009346039,ADULT SOCIAL CARE PURCHASING,9210001,CONTINUING NURSING CARE,27/07/2018,J2340531120818,414.00,ALPINE HEALTHCARE LTD,CT230753350,Nursing Homes
SHEFFIELD CITY COUNCIL,PEOPLE,14009346039,ADULT SOCIAL CARE PURCHASING,9210001,CONTINUING NURSING CARE,27/07/2018,J2340531120818,414.00,ALPINE HEALTHCARE LTD,CT230753350,Nursing Homes
SHEFFIELD CITY COUNCIL,PEOPLE,14009346039,ADULT SOCIAL CARE PURCHASING,9210001,CONTINUING NURSING CARE,27/07/2018,J2340531120818,414.00,ALPINE HEALTHCARE LTD,CT230753350,Nursing Homes
SHEFFIELD CITY COUNCIL,PEOPLE,14009346039,ADULT SOCIAL CARE PURCHASING,9210001,CONTINUING NURSING CARE,27/07/2018,J2340531120818,414.00,ALPINE HEALTHCARE LTD,CT230753350,Nursing Homes
SHEFFIELD CITY COUNCIL,PEOPLE,14009346039,ADULT SOCIAL CARE PURCHASING,9200002,SHORT TERM RESIDENTIAL CARE,18/07/2018,J2311088170618,685.71,ALPINE HEALTHCARE LTD,CT230753350,Nursing Homes
SHEFFIELD CITY COUNCIL,PEOPLE,14009346039,ADULT SOCIAL CARE PURCHASING,9200002,SHORT TERM RESIDENTIAL CARE,18/07/2018,J2331530150718,857.14,ALPINE HEALTHCARE LTD,CT230753350,Nursing Homes
SHEFFIELD CITY COUNCIL,PEOPLE,14009346039,ADULT SOCIAL CARE PURCHASING,9190002,BLOCK CONTRACT,18/07/2018,J2328531240618,329.60,AWESOME HEALTHCARE SOLUTIONS,CT230243419,Home Care Services
SHEFFIELD CITY COUNCIL,PEOPLE,14009346039,ADULT SOCIAL CARE PURCHASING,9210001,CONTINUING NURSING CARE,23/07/2018,J2331697120818,"1,216.12",ALPINE HEALTHCARE LTD,CT230753350,Nursing Homes
SHEFFIELD CITY COUNCIL,PEOPLE,14009346039,ADULT SOCIAL CARE PURCHASING,9200002,SHORT TERM RESIDENTIAL CARE,18/07/2018,J2331530150718,"1,300.00",ALPINE HEALTHCARE LTD,CT230753350,Nursing Homes
SHEFFIELD CITY COUNCIL,PEOPLE,14009346039,ADULT SOCIAL CARE PURCHASING,9200002,SHORT TERM RESIDENTIAL CARE,18/07/2018,J2331530150718,"1,389.00",ALPINE HEALTHCARE LTD,CT230753350,Nursing Homes
SHEFFIELD CITY COUNCIL,PEOPLE,14009346039,ADULT SOCIAL CARE PURCHASING,9200001,CONTINUING RESIDENTIAL CARE,23/07/2018,J2331697120818,"1,664.00",ALPINE HEALTHCARE LTD,CT230753350,Nursing Homes
SHEFFIELD CITY COUNCIL,PEOPLE,14009346039,ADULT SOCIAL CARE PURCHASING,9210001,CONTINUING NURSING CARE,23/07/2018,J2331697120818,"1,760.00",ALPINE HEALTHCARE LTD,CT230753350,Nursing Homes
SHEFFIELD CITY COUNCIL,PEOPLE,14009346039,ADULT SOCIAL CARE PURCHASING,9210001,CONTINUING NURSING CARE,23/07/2018,J2331697120818,"1,760.00",ALPINE HEALTHCARE LTD,CT230753350,Nursing Homes
SHEFFIELD CITY COUNCIL,PEOPLE,14009346039,ADULT SOCIAL CARE PURCHASING,9210001,CONTINUING NURSING CARE,23/07/2018,J2331697120818,"1,760.00",ALPINE HEALTHCARE LTD,CT230753350,Nursing Homes
SHEFFIELD CITY COUNCIL,PEOPLE,14009346039,ADULT SOCIAL CARE PURCHASING,9210001,CONTINUING NURSING CARE,23/07/2018,J2331697120818,"1,760.00",ALPINE HEALTHCARE LTD,CT230753350,Nursing Homes
SHEFFIELD CITY COUNCIL,PEOPLE,14009346039,ADULT SOCIAL CARE PURCHASING,9210001,CONTINUING NURSING CARE,23/07/2018,J2331697120818,"1,760.00",ALPINE HEALTHCARE LTD,CT230753350,Nursing Homes
SHEFFIELD CITY COUNCIL,PEOPLE,14009346039,ADULT SOCIAL CARE PURCHASING,9210001,CONTINUING NURSING CARE,23/07/2018,J2331697120818,"1,760.00",ALPINE HEALTHCARE LTD,CT230753350,Nursing Homes
SHEFFIELD CITY COUNCIL,PEOPLE,14009346039,ADULT SOCIAL CARE PURCHASING,9210001,CONTINUING NURSING CARE,23/07/2018,J2331697120818,"1,760.00",ALPINE HEALTHCARE LTD,CT230753350,Nursing Homes
SHEFFIELD CITY COUNCIL,PEOPLE,14009346039,ADULT SOCIAL CARE PURCHASING,9210001,CONTINUING NURSING CARE,23/07/2018,J2331697120818,"1,760.00",ALPINE HEALTHCARE LTD,CT230753350,Nursing Homes
SHEFFIELD CITY COUNCIL,PEOPLE,14009346039,ADULT SOCIAL CARE PURCHASING,9210001,CONTINUING NURSING CARE,23/07/2018,J2331697120818,"1,760.00",ALPINE HEALTHCARE LTD,CT230753350,Nursing Homes
SHEFFIELD CITY COUNCIL,PEOPLE,14009346039,ADULT SOCIAL CARE PURCHASING,9210001,CONTINUING NURSING CARE,23/07/2018,J2331697120818,"1,760.00",ALPINE HEALTHCARE LTD,CT230753350,Nursing Homes
SHEFFIELD CITY COUNCIL,PEOPLE,14009346039,ADULT SOCIAL CARE PURCHASING,9210001,CONTINUING NURSING CARE,23/07/2018,J2331697120818,"1,760.00",ALPINE HEALTHCARE LTD,CT230753350,Nursing Homes
SHEFFIELD CITY COUNCIL,PEOPLE,14009346039,ADULT SOCIAL CARE PURCHASING,9210001,CONTINUING NURSING CARE,23/07/2018,J2331697120818,"1,760.00",ALPINE HEALTHCARE LTD,CT230753350,Nursing Homes
SHEFFIELD CITY COUNCIL,PEOPLE,14009346039,ADULT SOCIAL CARE PURCHASING,9210001,CONTINUING NURSING CARE,23/07/2018,J2331697120818,"1,812.00",ALPINE HEALTHCARE LTD,CT230753350,Nursing Homes
SHEFFIELD CITY COUNCIL,PEOPLE,14009346039,ADULT SOCIAL CARE PURCHASING,9210001,CONTINUING NURSING CARE,23/07/2018,J2331697120818,"1,812.00",ALPINE HEALTHCARE LTD,CT230753350,Nursing Homes
SHEFFIELD CITY COUNCIL,PEOPLE,14009346039,ADULT SOCIAL CARE PURCHASING,9210001,CONTINUING NURSING CARE,23/07/2018,J2331697120818,"1,812.00",ALPINE HEALTHCARE LTD,CT230753350,Nursing Homes
SHEFFIELD CITY COUNCIL,PEOPLE,14009346039,ADULT SOCIAL CARE PURCHASING,9210001,CONTINUING NURSING CARE,23/07/2018,J2331697120818,"1,812.00",ALPINE HEALTHCARE LTD,CT230753350,Nursing Homes
SHEFFIELD CITY COUNCIL,PEOPLE,14009346039,ADULT SOCIAL CARE PURCHASING,9210001,CONTINUING NURSING CARE,23/07/2018,J2331697120818,"1,812.00",ALPINE HEALTHCARE LTD,CT230753350,Nursing Homes
SHEFFIELD CITY COUNCIL,PEOPLE,14009346039,ADULT SOCIAL CARE PURCHASING,9210001,CONTINUING NURSING CARE,23/07/2018,J2331697120818,"1,838.40",ALPINE HEALTHCARE LTD,CT230753350,Nursing Homes
SHEFFIELD CITY COUNCIL,PEOPLE,14009346039,ADULT SOCIAL CARE PURCHASING,9210001,CONTINUING NURSING CARE,23/07/2018,J2331697120818,"1,852.00",ALPINE HEALTHCARE LTD,CT230753350,Nursing Homes
SHEFFIELD CITY COUNCIL,PEOPLE,14009346039,ADULT SOCIAL CARE PURCHASING,9200001,CONTINUING RESIDENTIAL CARE,23/07/2018,J2331697120818,"1,852.00",ALPINE HEALTHCARE LTD,CT230753350,Nursing Homes
SHEFFIELD CITY COUNCIL,PEOPLE,14009346039,ADULT SOCIAL CARE PURCHASING,9210001,CONTINUING NURSING CARE,23/07/2018,J2331697120818,"1,852.00",ALPINE HEALTHCARE LTD,CT230753350,Nursing Homes
SHEFFIELD CITY COUNCIL,PEOPLE,14009346039,ADULT SOCIAL CARE PURCHASING,9210001,CONTINUING NURSING CARE,23/07/2018,J2331697120818,"1,956.00",ALPINE HEALTHCARE LTD,CT230753350,Nursing Homes
SHEFFIELD CITY COUNCIL,PEOPLE,14009346039,ADULT SOCIAL CARE PURCHASING,9200001,CONTINUING RESIDENTIAL CARE,18/07/2018,J2323072150718,"2,182.71",ALPINE HEALTHCARE LTD,CT230753350,Nursing Homes
SHEFFIELD CITY COUNCIL,PLACE,12000500000,SHEFF TRADING STDS,8270000,SUBSCRIPTIONS,20/07/2018,INV2018-145,615.00,ALTIA SOLUTIONS LTD,CT170220706,Computer Systems & Software (sales)
SHEFFIELD CITY COUNCIL,PLACE,11513300000,WORKSHOPS,7040000,OTHER VEHICLE RUNNING COSTS,10/07/2018,I021429,563.50,AMBASSADOR REPAIR CENTRE LTD,CT261913330,Car Body Repairs
SHEFFIELD CITY COUNCIL,PLACE,11513300000,WORKSHOPS,7040000,OTHER VEHICLE RUNNING COSTS,23/07/2018,24220,793.80,AMBASSADOR REPAIR CENTRE LTD,CT261913330,Car Body Repairs
SHEFFIELD CITY COUNCIL,PLACE,11513300000,WORKSHOPS,7040000,OTHER VEHICLE RUNNING COSTS,16/07/2018,I021595,976.65,AMBASSADOR REPAIR CENTRE LTD,CT261913330,Car Body Repairs
SHEFFIELD CITY COUNCIL,PLACE,12075122239,CONTRACTOR PAYMENTS - AMEY,9120000,OTHER AGENCIES,13/07/2018,90695397,"5,618,552.72",AMEY HALLAM HIGHWAYS LIMITED,CT294365200,Road Construction Contractors
SHEFFIELD CITY COUNCIL,PLACE,14066200000,REPAIRS POLICY & INVESTMENT,6030000,REPAIRS AND MTCE - RESPONSIVE,27/07/2018,90663369,289.29,AMEY LG LIMITED,CT290621555,Construction Contractors - General
SHEFFIELD CITY COUNCIL,PLACE,12018694010,LDV FLOOD DEFENCE WORKS,1163000,NC&A SUB CONTRACTORS,30/07/2018,90695040,"1,390.00",AMEY LG LIMITED,CT294365200,Road Construction Contractors
SHEFFIELD CITY COUNCIL,PLACE,14061000000,GYPSY AND TRAVELLER SITES,6020000,REPAIRS AND MTCE - PROGRAMMED,31/07/2018,90697851,"1,779.66",AMEY LG LIMITED,CT294365200,Road Construction Contractors
SHEFFIELD CITY COUNCIL,PLACE,14061000000,GYPSY AND TRAVELLER SITES,6020000,REPAIRS AND MTCE - PROGRAMMED,31/07/2018,90697851,"2,241.19",AMEY LG LIMITED,CT294365200,Road Construction Contractors
SHEFFIELD CITY COUNCIL,PEOPLE,14009346039,ADULT SOCIAL CARE PURCHASING,9190002,BLOCK CONTRACT,24/07/2018,J2087976051117,353.29,AWESOME HEALTHCARE SOLUTIONS,CT230243419,Home Care Services
SHEFFIELD CITY COUNCIL,PLACE,12018694010,LDV FLOOD DEFENCE WORKS,1163000,NC&A SUB CONTRACTORS,24/07/2018,90695743,"7,840.00",AMEY LG LIMITED,CT294365200,Road Construction Contractors
SHEFFIELD CITY COUNCIL,PLACE,12076993890,BRT NORTH: TINSLEY LINK (WP21,1192000,DESIGN FEES,02/07/2018,90691206,568.92,AMEY OW LTD (SHEFFIELD),CT290731590,Engineers - Consulting
SHEFFIELD CITY COUNCIL,PLACE,11518915190,HARD FM,6030000,REPAIRS AND MTCE - RESPONSIVE,27/07/2018,10847,"1,180.00",AMK FENCE-IN LTD,CT283334660,Fencing Contractors
SHEFFIELD CITY COUNCIL,PEOPLE,14009346039,ADULT SOCIAL CARE PURCHASING,4260018,RESIDENTIAL COSTS RECOVERED,18/07/2018,J2283431170618,"-2,230.96",ANCHOR CAREHOMES LTD,CT230164710,Residential Care Homes
SHEFFIELD CITY COUNCIL,PEOPLE,14009346039,ADULT SOCIAL CARE PURCHASING,9200001,CONTINUING RESIDENTIAL CARE,18/07/2018,J2283431170618,"-2,088.57",ANCHOR CAREHOMES LTD,CT230164710,Residential Care Homes
SHEFFIELD CITY COUNCIL,PEOPLE,14009346039,ADULT SOCIAL CARE PURCHASING,9200001,CONTINUING RESIDENTIAL CARE,18/07/2018,J2303371150718,"-1,268.00",ANCHOR CAREHOMES LTD,CT230164710,Residential Care Homes
SHEFFIELD CITY COUNCIL,PEOPLE,14009346039,ADULT SOCIAL CARE PURCHASING,4260018,RESIDENTIAL COSTS RECOVERED,18/07/2018,J2283431170618,"-1,199.57",ANCHOR CAREHOMES LTD,CT230164710,Residential Care Homes
SHEFFIELD CITY COUNCIL,PEOPLE,14009346039,ADULT SOCIAL CARE PURCHASING,4260018,RESIDENTIAL COSTS RECOVERED,18/07/2018,J2303371150718,-898.60,ANCHOR CAREHOMES LTD,CT230164710,Residential Care Homes
SHEFFIELD CITY COUNCIL,PEOPLE,14009346039,ADULT SOCIAL CARE PURCHASING,4260018,RESIDENTIAL COSTS RECOVERED,18/07/2018,J2331809120818,-898.60,ANCHOR CAREHOMES LTD,CT230164710,Residential Care Homes
SHEFFIELD CITY COUNCIL,PEOPLE,14009346039,ADULT SOCIAL CARE PURCHASING,4260018,RESIDENTIAL COSTS RECOVERED,18/07/2018,J2303371150718,-877.88,ANCHOR CAREHOMES LTD,CT230164710,Residential Care Homes
SHEFFIELD CITY COUNCIL,PEOPLE,14009346039,ADULT SOCIAL CARE PURCHASING,4260018,RESIDENTIAL COSTS RECOVERED,18/07/2018,J2331809120818,-877.88,ANCHOR CAREHOMES LTD,CT230164710,Residential Care Homes
SHEFFIELD CITY COUNCIL,PEOPLE,14009346039,ADULT SOCIAL CARE PURCHASING,4260018,RESIDENTIAL COSTS RECOVERED,18/07/2018,J2303371150718,-859.40,ANCHOR CAREHOMES LTD,CT230164710,Residential Care Homes
SHEFFIELD CITY COUNCIL,PEOPLE,14009346039,ADULT SOCIAL CARE PURCHASING,4260018,RESIDENTIAL COSTS RECOVERED,18/07/2018,J2331809120818,-859.40,ANCHOR CAREHOMES LTD,CT230164710,Residential Care Homes
SHEFFIELD CITY COUNCIL,PEOPLE,14009346039,ADULT SOCIAL CARE PURCHASING,4260018,RESIDENTIAL COSTS RECOVERED,18/07/2018,J2303371150718,-850.72,ANCHOR CAREHOMES LTD,CT230164710,Residential Care Homes
SHEFFIELD CITY COUNCIL,PEOPLE,14009346039,ADULT SOCIAL CARE PURCHASING,4260018,RESIDENTIAL COSTS RECOVERED,18/07/2018,J2331809120818,-850.72,ANCHOR CAREHOMES LTD,CT230164710,Residential Care Homes
SHEFFIELD CITY COUNCIL,PEOPLE,14009346039,ADULT SOCIAL CARE PURCHASING,4260018,RESIDENTIAL COSTS RECOVERED,18/07/2018,J2303371150718,-835.00,ANCHOR CAREHOMES LTD,CT230164710,Residential Care Homes
SHEFFIELD CITY COUNCIL,PEOPLE,14009346039,ADULT SOCIAL CARE PURCHASING,4260018,RESIDENTIAL COSTS RECOVERED,18/07/2018,J2331809120818,-835.00,ANCHOR CAREHOMES LTD,CT230164710,Residential Care Homes
SHEFFIELD CITY COUNCIL,PEOPLE,14009346039,ADULT SOCIAL CARE PURCHASING,4260018,RESIDENTIAL COSTS RECOVERED,18/07/2018,J2303371150718,-798.56,ANCHOR CAREHOMES LTD,CT230164710,Residential Care Homes
SHEFFIELD CITY COUNCIL,PEOPLE,14009346039,ADULT SOCIAL CARE PURCHASING,4260018,RESIDENTIAL COSTS RECOVERED,18/07/2018,J2331809120818,-798.56,ANCHOR CAREHOMES LTD,CT230164710,Residential Care Homes
SHEFFIELD CITY COUNCIL,PEOPLE,14009346039,ADULT SOCIAL CARE PURCHASING,4260018,RESIDENTIAL COSTS RECOVERED,18/07/2018,J2303371150718,-793.00,ANCHOR CAREHOMES LTD,CT230164710,Residential Care Homes
SHEFFIELD CITY COUNCIL,PEOPLE,14009346039,ADULT SOCIAL CARE PURCHASING,9190002,BLOCK CONTRACT,24/07/2018,J2087976051117,369.81,AWESOME HEALTHCARE SOLUTIONS,CT230243419,Home Care Services
SHEFFIELD CITY COUNCIL,PEOPLE,14009346039,ADULT SOCIAL CARE PURCHASING,4260018,RESIDENTIAL COSTS RECOVERED,18/07/2018,J2331809120818,-793.00,ANCHOR CAREHOMES LTD,CT230164710,Residential Care Homes
SHEFFIELD CITY COUNCIL,PEOPLE,14009346039,ADULT SOCIAL CARE PURCHASING,4260018,RESIDENTIAL COSTS RECOVERED,18/07/2018,J2303371150718,-787.48,ANCHOR CAREHOMES LTD,CT230164710,Residential Care Homes
SHEFFIELD CITY COUNCIL,PEOPLE,14009346039,ADULT SOCIAL CARE PURCHASING,4260018,RESIDENTIAL COSTS RECOVERED,18/07/2018,J2331809120818,-787.48,ANCHOR CAREHOMES LTD,CT230164710,Residential Care Homes
SHEFFIELD CITY COUNCIL,PEOPLE,14009346039,ADULT SOCIAL CARE PURCHASING,4260018,RESIDENTIAL COSTS RECOVERED,18/07/2018,J2303371150718,-782.20,ANCHOR CAREHOMES LTD,CT230164710,Residential Care Homes
SHEFFIELD CITY COUNCIL,PEOPLE,14009346039,ADULT SOCIAL CARE PURCHASING,4260018,RESIDENTIAL COSTS RECOVERED,18/07/2018,J2331809120818,-782.20,ANCHOR CAREHOMES LTD,CT230164710,Residential Care Homes
SHEFFIELD CITY COUNCIL,PEOPLE,14009346039,ADULT SOCIAL CARE PURCHASING,4260018,RESIDENTIAL COSTS RECOVERED,18/07/2018,J2303371150718,-768.20,ANCHOR CAREHOMES LTD,CT230164710,Residential Care Homes
SHEFFIELD CITY COUNCIL,PEOPLE,14009346039,ADULT SOCIAL CARE PURCHASING,4260018,RESIDENTIAL COSTS RECOVERED,18/07/2018,J2331809120818,-768.20,ANCHOR CAREHOMES LTD,CT230164710,Residential Care Homes
SHEFFIELD CITY COUNCIL,PEOPLE,14009346039,ADULT SOCIAL CARE PURCHASING,4260018,RESIDENTIAL COSTS RECOVERED,18/07/2018,J2303371150718,-752.40,ANCHOR CAREHOMES LTD,CT230164710,Residential Care Homes
SHEFFIELD CITY COUNCIL,PEOPLE,14009346039,ADULT SOCIAL CARE PURCHASING,4260018,RESIDENTIAL COSTS RECOVERED,18/07/2018,J2331809120818,-752.40,ANCHOR CAREHOMES LTD,CT230164710,Residential Care Homes
SHEFFIELD CITY COUNCIL,PEOPLE,14009346039,ADULT SOCIAL CARE PURCHASING,4260018,RESIDENTIAL COSTS RECOVERED,18/07/2018,J2331546150718,-751.43,ANCHOR CAREHOMES LTD,CT230164710,Residential Care Homes
SHEFFIELD CITY COUNCIL,PEOPLE,14009346039,ADULT SOCIAL CARE PURCHASING,4260018,RESIDENTIAL COSTS RECOVERED,18/07/2018,J2303371150718,-732.56,ANCHOR CAREHOMES LTD,CT230164710,Residential Care Homes
SHEFFIELD CITY COUNCIL,PEOPLE,14009346039,ADULT SOCIAL CARE PURCHASING,4260018,RESIDENTIAL COSTS RECOVERED,18/07/2018,J2331809120818,-732.56,ANCHOR CAREHOMES LTD,CT230164710,Residential Care Homes
SHEFFIELD CITY COUNCIL,PEOPLE,14009346039,ADULT SOCIAL CARE PURCHASING,4260018,RESIDENTIAL COSTS RECOVERED,18/07/2018,J2303160170618,-692.40,ANCHOR CAREHOMES LTD,CT230164710,Residential Care Homes
SHEFFIELD CITY COUNCIL,PEOPLE,14009346039,ADULT SOCIAL CARE PURCHASING,4260018,RESIDENTIAL COSTS RECOVERED,18/07/2018,J2303371150718,-692.40,ANCHOR CAREHOMES LTD,CT230164710,Residential Care Homes
SHEFFIELD CITY COUNCIL,PEOPLE,14009346039,ADULT SOCIAL CARE PURCHASING,9190002,BLOCK CONTRACT,24/07/2018,J2087976051117,370.93,AWESOME HEALTHCARE SOLUTIONS,CT230243419,Home Care Services
SHEFFIELD CITY COUNCIL,PEOPLE,14009346039,ADULT SOCIAL CARE PURCHASING,4260018,RESIDENTIAL COSTS RECOVERED,18/07/2018,J2303371150718,-692.40,ANCHOR CAREHOMES LTD,CT230164710,Residential Care Homes
SHEFFIELD CITY COUNCIL,PEOPLE,14009346039,ADULT SOCIAL CARE PURCHASING,4260018,RESIDENTIAL COSTS RECOVERED,18/07/2018,J2303371150718,-692.40,ANCHOR CAREHOMES LTD,CT230164710,Residential Care Homes
SHEFFIELD CITY COUNCIL,PEOPLE,14009346039,ADULT SOCIAL CARE PURCHASING,4260018,RESIDENTIAL COSTS RECOVERED,18/07/2018,J2331546150718,-692.40,ANCHOR CAREHOMES LTD,CT230164710,Residential Care Homes
SHEFFIELD CITY COUNCIL,PEOPLE,14009346039,ADULT SOCIAL CARE PURCHASING,4260018,RESIDENTIAL COSTS RECOVERED,18/07/2018,J2331809120818,-692.40,ANCHOR CAREHOMES LTD,CT230164710,Residential Care Homes
SHEFFIELD CITY COUNCIL,PEOPLE,14009346039,ADULT SOCIAL CARE PURCHASING,4260018,RESIDENTIAL COSTS RECOVERED,18/07/2018,J2331809120818,-692.40,ANCHOR CAREHOMES LTD,CT230164710,Residential Care Homes
SHEFFIELD CITY COUNCIL,PEOPLE,14009346039,ADULT SOCIAL CARE PURCHASING,4260018,RESIDENTIAL COSTS RECOVERED,18/07/2018,J2331809120818,-692.40,ANCHOR CAREHOMES LTD,CT230164710,Residential Care Homes
SHEFFIELD CITY COUNCIL,PEOPLE,14009346039,ADULT SOCIAL CARE PURCHASING,4260018,RESIDENTIAL COSTS RECOVERED,18/07/2018,J2303371150718,-680.16,ANCHOR CAREHOMES LTD,CT230164710,Residential Care Homes
SHEFFIELD CITY COUNCIL,PEOPLE,14009346039,ADULT SOCIAL CARE PURCHASING,4260018,RESIDENTIAL COSTS RECOVERED,18/07/2018,J2331809120818,-680.16,ANCHOR CAREHOMES LTD,CT230164710,Residential Care Homes
SHEFFIELD CITY COUNCIL,PEOPLE,14009346039,ADULT SOCIAL CARE PURCHASING,4260018,RESIDENTIAL COSTS RECOVERED,18/07/2018,J2303371150718,-672.40,ANCHOR CAREHOMES LTD,CT230164710,Residential Care Homes
SHEFFIELD CITY COUNCIL,PEOPLE,14009346039,ADULT SOCIAL CARE PURCHASING,4260018,RESIDENTIAL COSTS RECOVERED,18/07/2018,J2303371150718,-672.40,ANCHOR CAREHOMES LTD,CT230164710,Residential Care Homes
SHEFFIELD CITY COUNCIL,PEOPLE,14009346039,ADULT SOCIAL CARE PURCHASING,4260018,RESIDENTIAL COSTS RECOVERED,18/07/2018,J2331809120818,-672.40,ANCHOR CAREHOMES LTD,CT230164710,Residential Care Homes
SHEFFIELD CITY COUNCIL,PEOPLE,14009346039,ADULT SOCIAL CARE PURCHASING,4260018,RESIDENTIAL COSTS RECOVERED,18/07/2018,J2331809120818,-672.40,ANCHOR CAREHOMES LTD,CT230164710,Residential Care Homes
SHEFFIELD CITY COUNCIL,PEOPLE,14009346039,ADULT SOCIAL CARE PURCHASING,4260018,RESIDENTIAL COSTS RECOVERED,18/07/2018,J2303371150718,-667.96,ANCHOR CAREHOMES LTD,CT230164710,Residential Care Homes
SHEFFIELD CITY COUNCIL,PEOPLE,14009346039,ADULT SOCIAL CARE PURCHASING,4260018,RESIDENTIAL COSTS RECOVERED,18/07/2018,J2331809120818,-667.96,ANCHOR CAREHOMES LTD,CT230164710,Residential Care Homes
SHEFFIELD CITY COUNCIL,PEOPLE,14009346039,ADULT SOCIAL CARE PURCHASING,4260018,RESIDENTIAL COSTS RECOVERED,18/07/2018,J2303371150718,-645.92,ANCHOR CAREHOMES LTD,CT230164710,Residential Care Homes
SHEFFIELD CITY COUNCIL,PEOPLE,14009346039,ADULT SOCIAL CARE PURCHASING,4260018,RESIDENTIAL COSTS RECOVERED,18/07/2018,J2331809120818,-645.92,ANCHOR CAREHOMES LTD,CT230164710,Residential Care Homes
SHEFFIELD CITY COUNCIL,PEOPLE,14009346039,ADULT SOCIAL CARE PURCHASING,4260018,RESIDENTIAL COSTS RECOVERED,18/07/2018,J2331809120818,-632.40,ANCHOR CAREHOMES LTD,CT230164710,Residential Care Homes
SHEFFIELD CITY COUNCIL,PEOPLE,14009346039,ADULT SOCIAL CARE PURCHASING,4260018,RESIDENTIAL COSTS RECOVERED,18/07/2018,J2303371150718,-626.52,ANCHOR CAREHOMES LTD,CT230164710,Residential Care Homes
SHEFFIELD CITY COUNCIL,PEOPLE,14009346039,ADULT SOCIAL CARE PURCHASING,4260018,RESIDENTIAL COSTS RECOVERED,18/07/2018,J2331809120818,-626.52,ANCHOR CAREHOMES LTD,CT230164710,Residential Care Homes
SHEFFIELD CITY COUNCIL,PEOPLE,14009346039,ADULT SOCIAL CARE PURCHASING,4260018,RESIDENTIAL COSTS RECOVERED,18/07/2018,J2303371150718,-604.76,ANCHOR CAREHOMES LTD,CT230164710,Residential Care Homes
SHEFFIELD CITY COUNCIL,PEOPLE,14009346039,ADULT SOCIAL CARE PURCHASING,4260018,RESIDENTIAL COSTS RECOVERED,18/07/2018,J2331809120818,-604.76,ANCHOR CAREHOMES LTD,CT230164710,Residential Care Homes
SHEFFIELD CITY COUNCIL,PEOPLE,14009346039,ADULT SOCIAL CARE PURCHASING,4260018,RESIDENTIAL COSTS RECOVERED,18/07/2018,J2303371150718,-556.60,ANCHOR CAREHOMES LTD,CT230164710,Residential Care Homes
SHEFFIELD CITY COUNCIL,PEOPLE,14009346039,ADULT SOCIAL CARE PURCHASING,4260018,RESIDENTIAL COSTS RECOVERED,18/07/2018,J2331809120818,-556.60,ANCHOR CAREHOMES LTD,CT230164710,Residential Care Homes
SHEFFIELD CITY COUNCIL,PEOPLE,14009346039,ADULT SOCIAL CARE PURCHASING,4260018,RESIDENTIAL COSTS RECOVERED,18/07/2018,J2303371150718,-552.40,ANCHOR CAREHOMES LTD,CT230164710,Residential Care Homes
SHEFFIELD CITY COUNCIL,PEOPLE,14009346039,ADULT SOCIAL CARE PURCHASING,4260018,RESIDENTIAL COSTS RECOVERED,18/07/2018,J2331809120818,-552.40,ANCHOR CAREHOMES LTD,CT230164710,Residential Care Homes
SHEFFIELD CITY COUNCIL,PEOPLE,14009346039,ADULT SOCIAL CARE PURCHASING,4260018,RESIDENTIAL COSTS RECOVERED,18/07/2018,J2303371150718,-550.60,ANCHOR CAREHOMES LTD,CT230164710,Residential Care Homes
SHEFFIELD CITY COUNCIL,PEOPLE,14009346039,ADULT SOCIAL CARE PURCHASING,4260018,RESIDENTIAL COSTS RECOVERED,18/07/2018,J2331809120818,-550.60,ANCHOR CAREHOMES LTD,CT230164710,Residential Care Homes
SHEFFIELD CITY COUNCIL,PEOPLE,14009346039,ADULT SOCIAL CARE PURCHASING,4260018,RESIDENTIAL COSTS RECOVERED,18/07/2018,J2303371150718,-532.96,ANCHOR CAREHOMES LTD,CT230164710,Residential Care Homes
SHEFFIELD CITY COUNCIL,PEOPLE,14009346039,ADULT SOCIAL CARE PURCHASING,4260018,RESIDENTIAL COSTS RECOVERED,18/07/2018,J2331809120818,-532.96,ANCHOR CAREHOMES LTD,CT230164710,Residential Care Homes
SHEFFIELD CITY COUNCIL,PEOPLE,14009346039,ADULT SOCIAL CARE PURCHASING,9200001,CONTINUING RESIDENTIAL CARE,18/07/2018,J2303371150718,-312.86,ANCHOR CAREHOMES LTD,CT230164710,Residential Care Homes
SHEFFIELD CITY COUNCIL,PEOPLE,14009346039,ADULT SOCIAL CARE PURCHASING,4260018,RESIDENTIAL COSTS RECOVERED,18/07/2018,J2303160170618,-257.37,ANCHOR CAREHOMES LTD,CT230164710,Residential Care Homes
SHEFFIELD CITY COUNCIL,PEOPLE,14009346039,ADULT SOCIAL CARE PURCHASING,4260018,RESIDENTIAL COSTS RECOVERED,18/07/2018,J2331546150718,-193.03,ANCHOR CAREHOMES LTD,CT230164710,Residential Care Homes
SHEFFIELD CITY COUNCIL,PEOPLE,14009346039,ADULT SOCIAL CARE PURCHASING,4260018,RESIDENTIAL COSTS RECOVERED,18/07/2018,J2303371150718,-186.60,ANCHOR CAREHOMES LTD,CT230164710,Residential Care Homes
SHEFFIELD CITY COUNCIL,PEOPLE,14009346039,ADULT SOCIAL CARE PURCHASING,4260018,RESIDENTIAL COSTS RECOVERED,18/07/2018,J2303371150718,-140.00,ANCHOR CAREHOMES LTD,CT230164710,Residential Care Homes
SHEFFIELD CITY COUNCIL,PEOPLE,14009346039,ADULT SOCIAL CARE PURCHASING,4260018,RESIDENTIAL COSTS RECOVERED,18/07/2018,J2331809120818,-140.00,ANCHOR CAREHOMES LTD,CT230164710,Residential Care Homes
SHEFFIELD CITY COUNCIL,PEOPLE,14009346039,ADULT SOCIAL CARE PURCHASING,4260018,RESIDENTIAL COSTS RECOVERED,18/07/2018,J2303160170618,-90.17,ANCHOR CAREHOMES LTD,CT230164710,Residential Care Homes
SHEFFIELD CITY COUNCIL,PEOPLE,14009346039,ADULT SOCIAL CARE PURCHASING,9200001,CONTINUING RESIDENTIAL CARE,27/07/2018,J2334528120818,282.15,ANCHOR CAREHOMES LTD,CT230164710,Residential Care Homes
SHEFFIELD CITY COUNCIL,PEOPLE,14009346039,ADULT SOCIAL CARE PURCHASING,9200002,SHORT TERM RESIDENTIAL CARE,18/07/2018,J2331546150718,316.29,ANCHOR CAREHOMES LTD,CT230164710,Residential Care Homes
SHEFFIELD CITY COUNCIL,PEOPLE,14009346039,ADULT SOCIAL CARE PURCHASING,9190002,BLOCK CONTRACT,18/07/2018,J2328531240618,375.16,AWESOME HEALTHCARE SOLUTIONS,CT230243419,Home Care Services
SHEFFIELD CITY COUNCIL,PEOPLE,14009346039,ADULT SOCIAL CARE PURCHASING,9200002,SHORT TERM RESIDENTIAL CARE,18/07/2018,J2303160170618,421.71,ANCHOR CAREHOMES LTD,CT230164710,Residential Care Homes
SHEFFIELD CITY COUNCIL,PEOPLE,14009346039,ADULT SOCIAL CARE PURCHASING,9200001,CONTINUING RESIDENTIAL CARE,27/07/2018,J2334528120818,450.00,ANCHOR CAREHOMES LTD,CT230164710,Residential Care Homes
SHEFFIELD CITY COUNCIL,PEOPLE,14009346039,ADULT SOCIAL CARE PURCHASING,9200001,CONTINUING RESIDENTIAL CARE,27/07/2018,J2334528120818,450.00,ANCHOR CAREHOMES LTD,CT230164710,Residential Care Homes
SHEFFIELD CITY COUNCIL,PEOPLE,14009346039,ADULT SOCIAL CARE PURCHASING,9200001,CONTINUING RESIDENTIAL CARE,27/07/2018,J2334528120818,450.00,ANCHOR CAREHOMES LTD,CT230164710,Residential Care Homes
SHEFFIELD CITY COUNCIL,PEOPLE,14009346039,ADULT SOCIAL CARE PURCHASING,9200001,CONTINUING RESIDENTIAL CARE,27/07/2018,J2334528120818,450.00,ANCHOR CAREHOMES LTD,CT230164710,Residential Care Homes
SHEFFIELD CITY COUNCIL,PEOPLE,14009346039,ADULT SOCIAL CARE PURCHASING,9200001,CONTINUING RESIDENTIAL CARE,27/07/2018,J2334528120818,450.00,ANCHOR CAREHOMES LTD,CT230164710,Residential Care Homes
SHEFFIELD CITY COUNCIL,PEOPLE,14009346039,ADULT SOCIAL CARE PURCHASING,9200001,CONTINUING RESIDENTIAL CARE,27/07/2018,J2334528120818,450.00,ANCHOR CAREHOMES LTD,CT230164710,Residential Care Homes
SHEFFIELD CITY COUNCIL,PEOPLE,14009346039,ADULT SOCIAL CARE PURCHASING,9200001,CONTINUING RESIDENTIAL CARE,27/07/2018,J2334528120818,450.00,ANCHOR CAREHOMES LTD,CT230164710,Residential Care Homes
SHEFFIELD CITY COUNCIL,PEOPLE,14009346039,ADULT SOCIAL CARE PURCHASING,9200001,CONTINUING RESIDENTIAL CARE,27/07/2018,J2334528120818,450.00,ANCHOR CAREHOMES LTD,CT230164710,Residential Care Homes
SHEFFIELD CITY COUNCIL,PEOPLE,14009346039,ADULT SOCIAL CARE PURCHASING,9200001,CONTINUING RESIDENTIAL CARE,27/07/2018,J2334528120818,450.00,ANCHOR CAREHOMES LTD,CT230164710,Residential Care Homes
SHEFFIELD CITY COUNCIL,PEOPLE,14009346039,ADULT SOCIAL CARE PURCHASING,4260018,RESIDENTIAL COSTS RECOVERED,18/07/2018,J2303371150718,519.25,ANCHOR CAREHOMES LTD,CT230164710,Residential Care Homes
SHEFFIELD CITY COUNCIL,PEOPLE,14009346039,ADULT SOCIAL CARE PURCHASING,9200001,CONTINUING RESIDENTIAL CARE,18/07/2018,J2303371150718,563.14,ANCHOR CAREHOMES LTD,CT230164710,Residential Care Homes
SHEFFIELD CITY COUNCIL,PEOPLE,14009346039,ADULT SOCIAL CARE PURCHASING,9200001,CONTINUING RESIDENTIAL CARE,27/07/2018,J2334528120818,594.00,ANCHOR CAREHOMES LTD,CT230164710,Residential Care Homes
SHEFFIELD CITY COUNCIL,PEOPLE,14009346039,ADULT SOCIAL CARE PURCHASING,9200002,SHORT TERM RESIDENTIAL CARE,18/07/2018,J2290475200518,738.00,ANCHOR CAREHOMES LTD,CT230164710,Residential Care Homes
SHEFFIELD CITY COUNCIL,PEOPLE,14009346039,ADULT SOCIAL CARE PURCHASING,9200001,CONTINUING RESIDENTIAL CARE,18/07/2018,J2303371150718,"1,016.00",ANCHOR CAREHOMES LTD,CT230164710,Residential Care Homes
SHEFFIELD CITY COUNCIL,PEOPLE,14009346039,ADULT SOCIAL CARE PURCHASING,9200001,CONTINUING RESIDENTIAL CARE,18/07/2018,J2331809120818,"1,016.00",ANCHOR CAREHOMES LTD,CT230164710,Residential Care Homes
SHEFFIELD CITY COUNCIL,PEOPLE,14009346039,ADULT SOCIAL CARE PURCHASING,4260018,RESIDENTIAL COSTS RECOVERED,18/07/2018,J2283431170618,"1,203.45",ANCHOR CAREHOMES LTD,CT230164710,Residential Care Homes
SHEFFIELD CITY COUNCIL,PEOPLE,14009346039,ADULT SOCIAL CARE PURCHASING,9200001,CONTINUING RESIDENTIAL CARE,18/07/2018,J2303371150718,"1,720.00",ANCHOR CAREHOMES LTD,CT230164710,Residential Care Homes
SHEFFIELD CITY COUNCIL,PEOPLE,14009346039,ADULT SOCIAL CARE PURCHASING,9200001,CONTINUING RESIDENTIAL CARE,18/07/2018,J2331809120818,"1,720.00",ANCHOR CAREHOMES LTD,CT230164710,Residential Care Homes
SHEFFIELD CITY COUNCIL,PEOPLE,14009346039,ADULT SOCIAL CARE PURCHASING,9200001,CONTINUING RESIDENTIAL CARE,18/07/2018,J2303371150718,"1,744.00",ANCHOR CAREHOMES LTD,CT230164710,Residential Care Homes
SHEFFIELD CITY COUNCIL,PEOPLE,14009346039,ADULT SOCIAL CARE PURCHASING,9200001,CONTINUING RESIDENTIAL CARE,18/07/2018,J2331809120818,"1,744.00",ANCHOR CAREHOMES LTD,CT230164710,Residential Care Homes
SHEFFIELD CITY COUNCIL,PEOPLE,14009346039,ADULT SOCIAL CARE PURCHASING,9200001,CONTINUING RESIDENTIAL CARE,18/07/2018,J2303371150718,"1,752.00",ANCHOR CAREHOMES LTD,CT230164710,Residential Care Homes
SHEFFIELD CITY COUNCIL,PEOPLE,14009346039,ADULT SOCIAL CARE PURCHASING,9200001,CONTINUING RESIDENTIAL CARE,18/07/2018,J2303371150718,"1,752.00",ANCHOR CAREHOMES LTD,CT230164710,Residential Care Homes
SHEFFIELD CITY COUNCIL,PEOPLE,14009346039,ADULT SOCIAL CARE PURCHASING,9200001,CONTINUING RESIDENTIAL CARE,18/07/2018,J2303371150718,"1,752.00",ANCHOR CAREHOMES LTD,CT230164710,Residential Care Homes
SHEFFIELD CITY COUNCIL,PEOPLE,14009346039,ADULT SOCIAL CARE PURCHASING,9200001,CONTINUING RESIDENTIAL CARE,18/07/2018,J2303371150718,"1,752.00",ANCHOR CAREHOMES LTD,CT230164710,Residential Care Homes
SHEFFIELD CITY COUNCIL,PEOPLE,14009346039,ADULT SOCIAL CARE PURCHASING,9200001,CONTINUING RESIDENTIAL CARE,18/07/2018,J2303371150718,"1,752.00",ANCHOR CAREHOMES LTD,CT230164710,Residential Care Homes
SHEFFIELD CITY COUNCIL,PEOPLE,14009346039,ADULT SOCIAL CARE PURCHASING,9200001,CONTINUING RESIDENTIAL CARE,18/07/2018,J2303371150718,"1,752.00",ANCHOR CAREHOMES LTD,CT230164710,Residential Care Homes
SHEFFIELD CITY COUNCIL,PEOPLE,14009346039,ADULT SOCIAL CARE PURCHASING,9200001,CONTINUING RESIDENTIAL CARE,18/07/2018,J2303371150718,"1,752.00",ANCHOR CAREHOMES LTD,CT230164710,Residential Care Homes
SHEFFIELD CITY COUNCIL,PEOPLE,14009346039,ADULT SOCIAL CARE PURCHASING,9200001,CONTINUING RESIDENTIAL CARE,18/07/2018,J2303371150718,"1,752.00",ANCHOR CAREHOMES LTD,CT230164710,Residential Care Homes
SHEFFIELD CITY COUNCIL,PEOPLE,14009346039,ADULT SOCIAL CARE PURCHASING,9200001,CONTINUING RESIDENTIAL CARE,18/07/2018,J2303371150718,"1,752.00",ANCHOR CAREHOMES LTD,CT230164710,Residential Care Homes
SHEFFIELD CITY COUNCIL,PEOPLE,14009346039,ADULT SOCIAL CARE PURCHASING,9200001,CONTINUING RESIDENTIAL CARE,18/07/2018,J2331809120818,"1,752.00",ANCHOR CAREHOMES LTD,CT230164710,Residential Care Homes
SHEFFIELD CITY COUNCIL,PEOPLE,14009346039,ADULT SOCIAL CARE PURCHASING,9200001,CONTINUING RESIDENTIAL CARE,18/07/2018,J2331809120818,"1,752.00",ANCHOR CAREHOMES LTD,CT230164710,Residential Care Homes
SHEFFIELD CITY COUNCIL,PEOPLE,14009346039,ADULT SOCIAL CARE PURCHASING,9200001,CONTINUING RESIDENTIAL CARE,18/07/2018,J2331809120818,"1,752.00",ANCHOR CAREHOMES LTD,CT230164710,Residential Care Homes
SHEFFIELD CITY COUNCIL,PEOPLE,14009346039,ADULT SOCIAL CARE PURCHASING,9200001,CONTINUING RESIDENTIAL CARE,18/07/2018,J2331809120818,"1,752.00",ANCHOR CAREHOMES LTD,CT230164710,Residential Care Homes
SHEFFIELD CITY COUNCIL,PEOPLE,14009346039,ADULT SOCIAL CARE PURCHASING,9200001,CONTINUING RESIDENTIAL CARE,18/07/2018,J2331809120818,"1,752.00",ANCHOR CAREHOMES LTD,CT230164710,Residential Care Homes
SHEFFIELD CITY COUNCIL,PEOPLE,14009346039,ADULT SOCIAL CARE PURCHASING,9200001,CONTINUING RESIDENTIAL CARE,18/07/2018,J2331809120818,"1,752.00",ANCHOR CAREHOMES LTD,CT230164710,Residential Care Homes
SHEFFIELD CITY COUNCIL,PEOPLE,14009346039,ADULT SOCIAL CARE PURCHASING,9200001,CONTINUING RESIDENTIAL CARE,18/07/2018,J2331809120818,"1,752.00",ANCHOR CAREHOMES LTD,CT230164710,Residential Care Homes
SHEFFIELD CITY COUNCIL,PEOPLE,14009346039,ADULT SOCIAL CARE PURCHASING,9200001,CONTINUING RESIDENTIAL CARE,18/07/2018,J2331809120818,"1,752.00",ANCHOR CAREHOMES LTD,CT230164710,Residential Care Homes
SHEFFIELD CITY COUNCIL,PEOPLE,14009346039,ADULT SOCIAL CARE PURCHASING,9200001,CONTINUING RESIDENTIAL CARE,18/07/2018,J2331809120818,"1,752.00",ANCHOR CAREHOMES LTD,CT230164710,Residential Care Homes
SHEFFIELD CITY COUNCIL,PEOPLE,14009346039,ADULT SOCIAL CARE PURCHASING,9190004,DIRECT PAYMENTS,10/07/2018,J2324004,542.88,REDACTED PERSONAL DATA,CT9999DIRPY,CAREFIRST DIRECT PAYMENTS
SHEFFIELD CITY COUNCIL,PEOPLE,14009346039,ADULT SOCIAL CARE PURCHASING,9200002,SHORT TERM RESIDENTIAL CARE,18/07/2018,J2331546150718,"1,778.57",ANCHOR CAREHOMES LTD,CT230164710,Residential Care Homes
SHEFFIELD CITY COUNCIL,PEOPLE,14009242034,PURCHASING LEARNING DISABILITI,4260008,DIRECT PAYMENTS,10/07/2018,J2324004,-199.28,REDACTED PERSONAL DATA,CT9999DIRPY,CAREFIRST DIRECT PAYMENTS
SHEFFIELD CITY COUNCIL,PEOPLE,14009346039,ADULT SOCIAL CARE PURCHASING,9200001,CONTINUING RESIDENTIAL CARE,18/07/2018,J2303371150718,"1,832.00",ANCHOR CAREHOMES LTD,CT230164710,Residential Care Homes
SHEFFIELD CITY COUNCIL,PEOPLE,14009346039,ADULT SOCIAL CARE PURCHASING,9200001,CONTINUING RESIDENTIAL CARE,18/07/2018,J2331809120818,"1,832.00",ANCHOR CAREHOMES LTD,CT230164710,Residential Care Homes
SHEFFIELD CITY COUNCIL,PEOPLE,14009346039,ADULT SOCIAL CARE PURCHASING,9200001,CONTINUING RESIDENTIAL CARE,18/07/2018,J2303371150718,"1,852.00",ANCHOR CAREHOMES LTD,CT230164710,Residential Care Homes
SHEFFIELD CITY COUNCIL,PEOPLE,14009346039,ADULT SOCIAL CARE PURCHASING,9200001,CONTINUING RESIDENTIAL CARE,18/07/2018,J2303371150718,"1,852.00",ANCHOR CAREHOMES LTD,CT230164710,Residential Care Homes
SHEFFIELD CITY COUNCIL,PEOPLE,14009346039,ADULT SOCIAL CARE PURCHASING,9200001,CONTINUING RESIDENTIAL CARE,18/07/2018,J2331809120818,"1,852.00",ANCHOR CAREHOMES LTD,CT230164710,Residential Care Homes
SHEFFIELD CITY COUNCIL,PEOPLE,14009346039,ADULT SOCIAL CARE PURCHASING,9200001,CONTINUING RESIDENTIAL CARE,18/07/2018,J2331809120818,"1,852.00",ANCHOR CAREHOMES LTD,CT230164710,Residential Care Homes
SHEFFIELD CITY COUNCIL,PEOPLE,14009346039,ADULT SOCIAL CARE PURCHASING,9200001,CONTINUING RESIDENTIAL CARE,18/07/2018,J2303371150718,"1,860.00",ANCHOR CAREHOMES LTD,CT230164710,Residential Care Homes
SHEFFIELD CITY COUNCIL,PEOPLE,14009346039,ADULT SOCIAL CARE PURCHASING,9200001,CONTINUING RESIDENTIAL CARE,18/07/2018,J2331809120818,"1,860.00",ANCHOR CAREHOMES LTD,CT230164710,Residential Care Homes
SHEFFIELD CITY COUNCIL,PEOPLE,14009346039,ADULT SOCIAL CARE PURCHASING,9200001,CONTINUING RESIDENTIAL CARE,18/07/2018,J2303371150718,"1,872.00",ANCHOR CAREHOMES LTD,CT230164710,Residential Care Homes
SHEFFIELD CITY COUNCIL,PEOPLE,14009346039,ADULT SOCIAL CARE PURCHASING,9200001,CONTINUING RESIDENTIAL CARE,18/07/2018,J2303371150718,"1,872.00",ANCHOR CAREHOMES LTD,CT230164710,Residential Care Homes
SHEFFIELD CITY COUNCIL,PEOPLE,14009346039,ADULT SOCIAL CARE PURCHASING,9200001,CONTINUING RESIDENTIAL CARE,18/07/2018,J2303371150718,"1,872.00",ANCHOR CAREHOMES LTD,CT230164710,Residential Care Homes
SHEFFIELD CITY COUNCIL,PEOPLE,14009346039,ADULT SOCIAL CARE PURCHASING,9200001,CONTINUING RESIDENTIAL CARE,18/07/2018,J2331809120818,"1,872.00",ANCHOR CAREHOMES LTD,CT230164710,Residential Care Homes
SHEFFIELD CITY COUNCIL,PEOPLE,14009346039,ADULT SOCIAL CARE PURCHASING,9200001,CONTINUING RESIDENTIAL CARE,18/07/2018,J2331809120818,"1,872.00",ANCHOR CAREHOMES LTD,CT230164710,Residential Care Homes
SHEFFIELD CITY COUNCIL,PEOPLE,14009346039,ADULT SOCIAL CARE PURCHASING,9190002,BLOCK CONTRACT,18/07/2018,J2328531240618,397.88,AWESOME HEALTHCARE SOLUTIONS,CT230243419,Home Care Services
SHEFFIELD CITY COUNCIL,PEOPLE,14009346039,ADULT SOCIAL CARE PURCHASING,9200001,CONTINUING RESIDENTIAL CARE,18/07/2018,J2331809120818,"1,872.00",ANCHOR CAREHOMES LTD,CT230164710,Residential Care Homes
SHEFFIELD CITY COUNCIL,PEOPLE,14009346039,ADULT SOCIAL CARE PURCHASING,9200001,CONTINUING RESIDENTIAL CARE,18/07/2018,J2303371150718,"1,892.00",ANCHOR CAREHOMES LTD,CT230164710,Residential Care Homes
SHEFFIELD CITY COUNCIL,PEOPLE,14009346039,ADULT SOCIAL CARE PURCHASING,9200001,CONTINUING RESIDENTIAL CARE,18/07/2018,J2303371150718,"1,892.00",ANCHOR CAREHOMES LTD,CT230164710,Residential Care Homes
SHEFFIELD CITY COUNCIL,PEOPLE,14009346039,ADULT SOCIAL CARE PURCHASING,9200001,CONTINUING RESIDENTIAL CARE,18/07/2018,J2303371150718,"1,892.00",ANCHOR CAREHOMES LTD,CT230164710,Residential Care Homes
SHEFFIELD CITY COUNCIL,PEOPLE,14009346039,ADULT SOCIAL CARE PURCHASING,9200001,CONTINUING RESIDENTIAL CARE,18/07/2018,J2303371150718,"1,892.00",ANCHOR CAREHOMES LTD,CT230164710,Residential Care Homes
SHEFFIELD CITY COUNCIL,PEOPLE,14009346039,ADULT SOCIAL CARE PURCHASING,9200001,CONTINUING RESIDENTIAL CARE,18/07/2018,J2303371150718,"1,892.00",ANCHOR CAREHOMES LTD,CT230164710,Residential Care Homes
SHEFFIELD CITY COUNCIL,PEOPLE,14009346039,ADULT SOCIAL CARE PURCHASING,9200001,CONTINUING RESIDENTIAL CARE,18/07/2018,J2331809120818,"1,892.00",ANCHOR CAREHOMES LTD,CT230164710,Residential Care Homes
SHEFFIELD CITY COUNCIL,PEOPLE,14009346039,ADULT SOCIAL CARE PURCHASING,9200001,CONTINUING RESIDENTIAL CARE,18/07/2018,J2331809120818,"1,892.00",ANCHOR CAREHOMES LTD,CT230164710,Residential Care Homes
SHEFFIELD CITY COUNCIL,PEOPLE,14009242034,PURCHASING LEARNING DISABILITI,9190004,DIRECT PAYMENTS,10/07/2018,J2324004,"1,116.16",REDACTED PERSONAL DATA,CT9999DIRPY,CAREFIRST DIRECT PAYMENTS
SHEFFIELD CITY COUNCIL,PEOPLE,14009346039,ADULT SOCIAL CARE PURCHASING,9190002,BLOCK CONTRACT,18/07/2018,J2328531240618,403.83,AWESOME HEALTHCARE SOLUTIONS,CT230243419,Home Care Services
SHEFFIELD CITY COUNCIL,PEOPLE,14009346039,ADULT SOCIAL CARE PURCHASING,9200001,CONTINUING RESIDENTIAL CARE,18/07/2018,J2331809120818,"1,892.00",ANCHOR CAREHOMES LTD,CT230164710,Residential Care Homes
SHEFFIELD CITY COUNCIL,PEOPLE,14009346039,ADULT SOCIAL CARE PURCHASING,9200001,CONTINUING RESIDENTIAL CARE,18/07/2018,J2331809120818,"1,892.00",ANCHOR CAREHOMES LTD,CT230164710,Residential Care Homes
SHEFFIELD CITY COUNCIL,PEOPLE,14009346039,ADULT SOCIAL CARE PURCHASING,9200001,CONTINUING RESIDENTIAL CARE,18/07/2018,J2331809120818,"1,892.00",ANCHOR CAREHOMES LTD,CT230164710,Residential Care Homes
SHEFFIELD CITY COUNCIL,PEOPLE,14009346039,ADULT SOCIAL CARE PURCHASING,9200001,CONTINUING RESIDENTIAL CARE,18/07/2018,J2303371150718,"1,900.00",ANCHOR CAREHOMES LTD,CT230164710,Residential Care Homes
SHEFFIELD CITY COUNCIL,PEOPLE,14009346039,ADULT SOCIAL CARE PURCHASING,9200001,CONTINUING RESIDENTIAL CARE,18/07/2018,J2331809120818,"1,900.00",ANCHOR CAREHOMES LTD,CT230164710,Residential Care Homes
SHEFFIELD CITY COUNCIL,PEOPLE,14009346039,ADULT SOCIAL CARE PURCHASING,9200001,CONTINUING RESIDENTIAL CARE,18/07/2018,J2331809120818,"1,932.00",ANCHOR CAREHOMES LTD,CT230164710,Residential Care Homes
SHEFFIELD CITY COUNCIL,PEOPLE,14009346039,ADULT SOCIAL CARE PURCHASING,9200002,SHORT TERM RESIDENTIAL CARE,18/07/2018,J2303160170618,"1,992.00",ANCHOR CAREHOMES LTD,CT230164710,Residential Care Homes
SHEFFIELD CITY COUNCIL,PEOPLE,14009346039,ADULT SOCIAL CARE PURCHASING,9200001,CONTINUING RESIDENTIAL CARE,18/07/2018,J2303371150718,"1,992.00",ANCHOR CAREHOMES LTD,CT230164710,Residential Care Homes
SHEFFIELD CITY COUNCIL,PEOPLE,14009346039,ADULT SOCIAL CARE PURCHASING,9200001,CONTINUING RESIDENTIAL CARE,18/07/2018,J2303371150718,"1,992.00",ANCHOR CAREHOMES LTD,CT230164710,Residential Care Homes
SHEFFIELD CITY COUNCIL,PEOPLE,14009346039,ADULT SOCIAL CARE PURCHASING,9200001,CONTINUING RESIDENTIAL CARE,18/07/2018,J2303371150718,"1,992.00",ANCHOR CAREHOMES LTD,CT230164710,Residential Care Homes
SHEFFIELD CITY COUNCIL,PEOPLE,14009346039,ADULT SOCIAL CARE PURCHASING,9200002,SHORT TERM RESIDENTIAL CARE,18/07/2018,J2331546150718,"1,992.00",ANCHOR CAREHOMES LTD,CT230164710,Residential Care Homes
SHEFFIELD CITY COUNCIL,PEOPLE,14009346039,ADULT SOCIAL CARE PURCHASING,9200001,CONTINUING RESIDENTIAL CARE,18/07/2018,J2331809120818,"1,992.00",ANCHOR CAREHOMES LTD,CT230164710,Residential Care Homes
SHEFFIELD CITY COUNCIL,PEOPLE,14009346039,ADULT SOCIAL CARE PURCHASING,9200001,CONTINUING RESIDENTIAL CARE,18/07/2018,J2331809120818,"1,992.00",ANCHOR CAREHOMES LTD,CT230164710,Residential Care Homes
SHEFFIELD CITY COUNCIL,PEOPLE,14009346039,ADULT SOCIAL CARE PURCHASING,9200001,CONTINUING RESIDENTIAL CARE,18/07/2018,J2331809120818,"1,992.00",ANCHOR CAREHOMES LTD,CT230164710,Residential Care Homes
SHEFFIELD CITY COUNCIL,PEOPLE,14009346039,ADULT SOCIAL CARE PURCHASING,9200002,SHORT TERM RESIDENTIAL CARE,18/07/2018,J2331546150718,"2,846.57",ANCHOR CAREHOMES LTD,CT230164710,Residential Care Homes
SHEFFIELD CITY COUNCIL,PEOPLE,14009346039,ADULT SOCIAL CARE PURCHASING,9200001,CONTINUING RESIDENTIAL CARE,18/07/2018,J2283431170618,"3,439.43",ANCHOR CAREHOMES LTD,CT230164710,Residential Care Homes
SHEFFIELD CITY COUNCIL,PEOPLE,14009346039,ADULT SOCIAL CARE PURCHASING,9200001,CONTINUING RESIDENTIAL CARE,18/07/2018,J2283431170618,"5,588.14",ANCHOR CAREHOMES LTD,CT230164710,Residential Care Homes
SHEFFIELD CITY COUNCIL,PEOPLE,14009346039,ADULT SOCIAL CARE PURCHASING,9200002,SHORT TERM RESIDENTIAL CARE,18/07/2018,J2303160170618,"6,009.43",ANCHOR CAREHOMES LTD,CT230164710,Residential Care Homes
SHEFFIELD CITY COUNCIL,PEOPLE,14009346039,ADULT SOCIAL CARE PURCHASING,4260018,RESIDENTIAL COSTS RECOVERED,19/07/2018,J2331680120818,"-1,510.76",ANCHOR TRUST (PRIOR BANK HOUSE),CT230164710,Residential Care Homes
SHEFFIELD CITY COUNCIL,PEOPLE,14009346039,ADULT SOCIAL CARE PURCHASING,4260018,RESIDENTIAL COSTS RECOVERED,19/07/2018,J2331680120818,"-1,417.96",ANCHOR TRUST (PRIOR BANK HOUSE),CT230164710,Residential Care Homes
SHEFFIELD CITY COUNCIL,PEOPLE,14009346039,ADULT SOCIAL CARE PURCHASING,9200001,CONTINUING RESIDENTIAL CARE,19/07/2018,J2331680120818,"2,476.00",ANCHOR TRUST (PRIOR BANK HOUSE),CT230164710,Residential Care Homes
SHEFFIELD CITY COUNCIL,PEOPLE,14009346039,ADULT SOCIAL CARE PURCHASING,9200001,CONTINUING RESIDENTIAL CARE,19/07/2018,J2331680120818,"2,480.00",ANCHOR TRUST (PRIOR BANK HOUSE),CT230164710,Residential Care Homes
SHEFFIELD CITY COUNCIL,PEOPLE,13008533112,LDD PLACEMENTS AUG16-JUL17,9120000,OTHER AGENCIES,04/07/2018,518,"2,520.00",ANDREW HERBERT LTD,CT050220482,Community Projects
SHEFFIELD CITY COUNCIL,PEOPLE,13008533112,LDD PLACEMENTS AUG16-JUL17,9120000,OTHER AGENCIES,12/07/2018,618,"2,880.00",ANDREW HERBERT LTD,CT050220482,Community Projects
SHEFFIELD CITY COUNCIL,PLACE,14068588888,BALANCE SHEET,2320000,TARA CONRTOL ACCOUNT,23/07/2018,MPA20180723312-0003,561.60,ANGRAM BANK TARA,CT050220482,Community Projects
SHEFFIELD CITY COUNCIL,PLACE,14064749224,FURNISHED ACCOMMODATION,8050000,FURNITURE PURCHASES,02/07/2018,SC0038668,-450.00,ANNAGHMORE AGENCIES,CT022438895,Furniture - Wholesale
SHEFFIELD CITY COUNCIL,PLACE,14064749224,FURNISHED ACCOMMODATION,8050000,FURNITURE PURCHASES,10/07/2018,SC0038668.,-450.00,ANNAGHMORE AGENCIES,CT022438895,Furniture - Wholesale
SHEFFIELD CITY COUNCIL,PLACE,14064749224,FURNISHED ACCOMMODATION,8050000,FURNITURE PURCHASES,10/07/2018,SC0038794,-120.00,ANNAGHMORE AGENCIES,CT022438895,Furniture - Wholesale
SHEFFIELD CITY COUNCIL,PLACE,14064749224,FURNISHED ACCOMMODATION,8050000,FURNITURE PURCHASES,10/07/2018,SI0342843,"2,129.48",ANNAGHMORE AGENCIES,CT022438895,Furniture - Wholesale
SHEFFIELD CITY COUNCIL,PLACE,14064749224,FURNISHED ACCOMMODATION,8050000,FURNITURE PURCHASES,10/07/2018,SI0340910,"5,499.90",ANNAGHMORE AGENCIES,CT022438895,Furniture - Wholesale
SHEFFIELD CITY COUNCIL,PEOPLE,13005638216,ENHANCED SERVICE - PHARMACY (E,9030000,HEALTH,10/07/2018,1,"2,500.00",REDACTED PERSONAL DATA,CT140826710,Doctors
SHEFFIELD CITY COUNCIL,PLACE,14067449336,INCOME MGT & FINANCIAL INCLUSI,4080000,FEES & CHARGES,26/07/2018,68877,"27,942.46",AON LIMITED,CT121345415,Insurance - Other
SHEFFIELD CITY COUNCIL,PEOPLE,14009346039,ADULT SOCIAL CARE PURCHASING,9190002,BLOCK CONTRACT,24/07/2018,J2087976051117,433.31,AWESOME HEALTHCARE SOLUTIONS,CT230243419,Home Care Services
SHEFFIELD CITY COUNCIL,PLACE,14064649320,OLDER PERSON INDEPENDENT LIVIN,8010000,EQUIPMENT PURCHASE AND REPAIR,03/07/2018,ORD104358,431.66,APOLLO APPLIANCES LTD,CT025127130,"Domestic Appliances - Servicing, Repairs"
SHEFFIELD CITY COUNCIL,PLACE,14058149006,SYRIAN VPR YH PARTNERS SCHEME,8010000,EQUIPMENT PURCHASE AND REPAIR,18/07/2018,ORD104354,434.16,APOLLO APPLIANCES LTD,CT025127130,"Domestic Appliances - Servicing, Repairs"
SHEFFIELD CITY COUNCIL,PLACE,14058149006,SYRIAN VPR YH PARTNERS SCHEME,8010000,EQUIPMENT PURCHASE AND REPAIR,18/07/2018,ORD104355,434.16,APOLLO APPLIANCES LTD,CT025127130,"Domestic Appliances - Servicing, Repairs"
SHEFFIELD CITY COUNCIL,PLACE,14058149006,SYRIAN VPR YH PARTNERS SCHEME,8010000,EQUIPMENT PURCHASE AND REPAIR,18/07/2018,ORD104352,434.16,APOLLO APPLIANCES LTD,CT025127130,"Domestic Appliances - Servicing, Repairs"
SHEFFIELD CITY COUNCIL,PLACE,11513400000,EDUCATION SPECIAL NEEDS,7060000,EXTERNAL VEHICLE HIRE,17/07/2018,12AAA,904.00,APOLLO TAXIS 2017 LIMITED,CT261676350,Taxis & Private Hire
SHEFFIELD CITY COUNCIL,PEOPLE,13000336033,SOCIAL CARE TAXIS,7060000,EXTERNAL VEHICLE HIRE,16/07/2018,12AA,"12,187.00",APOLLO TAXIS 2017 LIMITED,CT261676350,Taxis & Private Hire
SHEFFIELD CITY COUNCIL,PEOPLE,13000336039,SEN TAXIS,7060000,EXTERNAL VEHICLE HIRE,17/07/2018,12A,"18,585.20",APOLLO TAXIS 2017 LIMITED,CT261676350,Taxis & Private Hire
SHEFFIELD CITY COUNCIL,PLACE,12018528250,ESIF GROWTH HUB,8440000,FEE EXPENSES,20/07/2018,INV-0605,"3,500.00",APOTHECARY 87 LIMITED,CT029978685,Toiletries
SHEFFIELD CITY COUNCIL,PLACE,11850100021,DISTRICT & COMMERCIAL HEATING,8060000,MATERIALS AND SUPPLIES GENERAL,20/07/2018,93742,353.50,APPLICATIONS ENGINEERING LTD,CT079931600,Engineers - General
SHEFFIELD CITY COUNCIL,PLACE,11850100027,LIFTS,8070000,STOCKS AND STORES,10/07/2018,93472,364.00,APPLICATIONS ENGINEERING LTD,CT079931600,Engineers - General
SHEFFIELD CITY COUNCIL,PLACE,11850100027,LIFTS,8060000,MATERIALS AND SUPPLIES GENERAL,10/07/2018,93473,"2,185.90",APPLICATIONS ENGINEERING LTD,CT079931600,Engineers - General
SHEFFIELD CITY COUNCIL,PEOPLE,14009346039,ADULT SOCIAL CARE PURCHASING,9200001,CONTINUING RESIDENTIAL CARE,27/07/2018,J2331677120818,290.00,REDACTED PERSONAL DATA,CT230164710,Residential Care Homes
SHEFFIELD CITY COUNCIL,PEOPLE,13003439047,ALDINE HOUSE,8060000,MATERIALS AND SUPPLIES GENERAL,11/07/2018,21145198,313.01,AQA EDUCATION,CT090732960,Examination Boards
SHEFFIELD CITY COUNCIL,PEOPLE,14009800000,CITY WIDE CARE ALARMS,8010000,EQUIPMENT PURCHASE AND REPAIR,13/07/2018,230015,273.40,AQUAID (SOUTH YORKSHIRE),CT030883801,Water Coolers
SHEFFIELD CITY COUNCIL,PEOPLE,13002139101,EAST SERVICE AREA CSS,8030000,EQUIPMENT MAINTENANCE CONTRACT,09/07/2018,228063,330.00,AQUAID (SOUTH YORKSHIRE),CT030883801,Water Coolers
SHEFFIELD CITY COUNCIL,PLACE,14065749331,ESTATE & ENVIRONMENTAL TEAM,6190000,WATER SERVICES,11/07/2018,36/1034282,672.00,AQUAM WATER SERVICES LTD,CT102883900,WATER ENGINEERS
SHEFFIELD CITY COUNCIL,PLACE,14065749331,ESTATE & ENVIRONMENTAL TEAM,6190000,WATER SERVICES,11/07/2018,36/1034281,672.00,AQUAM WATER SERVICES LTD,CT102883900,WATER ENGINEERS
SHEFFIELD CITY COUNCIL,PLACE,14065749331,ESTATE & ENVIRONMENTAL TEAM,6190000,WATER SERVICES,11/07/2018,36/1034283,672.00,AQUAM WATER SERVICES LTD,CT102883900,WATER ENGINEERS
SHEFFIELD CITY COUNCIL,PEOPLE,14046949661,LUNCH CLUB GRANT,8180000,GRANTS,02/07/2018,MPA20180702309-0044,500.00,ARBOURTHORNE COMMUNITY CHURCH,CT219958820,Places Of Worship
SHEFFIELD CITY COUNCIL,PLACE,14068588888,BALANCE SHEET,2320000,TARA CONRTOL ACCOUNT,23/07/2018,MPA20180723312-0006,"2,544.10",ARBOURTHORNE TARA,CT050220482,Community Projects
SHEFFIELD CITY COUNCIL,PLACE,11850300062,JOINERS AND KITCHEN MANUFACT,8110000,CLOTHING  UNIFORM AND LAUNDRY,02/07/2018,932538862,-11.19,ARCO LTD,CT024966190,Safety Equipment & Clothing
SHEFFIELD CITY COUNCIL,PLACE,11850500000,STOCK CONTROL,8070000,STOCKS AND STORES,23/07/2018,933376603,354.50,ARCO LTD,CT024966190,Safety Equipment & Clothing
SHEFFIELD CITY COUNCIL,PLACE,12000123004,KENNELLING,8110000,CLOTHING  UNIFORM AND LAUNDRY,17/07/2018,933301446,483.80,ARCO LTD,CT024966190,Safety Equipment & Clothing
SHEFFIELD CITY COUNCIL,RESOURCES,11907500000,CONTRACT REBATES & DISCOUNTS,8440000,FEE EXPENSES,24/07/2018,67863,582.62,ARCO LTD,CT024966190,Safety Equipment & Clothing
SHEFFIELD CITY COUNCIL,PEOPLE,14010446097,REABLEMENT FRONTLINE,8010000,EQUIPMENT PURCHASE AND REPAIR,05/07/2018,933196601,751.80,ARCO LTD,CT024966190,Safety Equipment & Clothing
SHEFFIELD CITY COUNCIL,PEOPLE,14010446097,REABLEMENT FRONTLINE,8010000,EQUIPMENT PURCHASE AND REPAIR,17/07/2018,933338547,837.40,ARCO LTD,CT024966190,Safety Equipment & Clothing
SHEFFIELD CITY COUNCIL,PEOPLE,14010446087,REABLEMENT MANAGEMENT,8110000,CLOTHING  UNIFORM AND LAUNDRY,26/07/2018,932698853,"1,343.96",ARCO LTD,CT024966190,Safety Equipment & Clothing
SHEFFIELD CITY COUNCIL,PLACE,12000123002,STREET WARDENS,8110000,CLOTHING  UNIFORM AND LAUNDRY,04/07/2018,540194,-133.00,ARDEN WINCH & CO LTD,CT024966190,Safety Equipment & Clothing
SHEFFIELD CITY COUNCIL,PLACE,11523015244,CSSR PROJECT,8110000,CLOTHING  UNIFORM AND LAUNDRY,11/07/2018,508580,-71.90,ARDEN WINCH & CO LTD,CT024966190,Safety Equipment & Clothing
SHEFFIELD CITY COUNCIL,PLACE,14068049314,SOUTH EAST SHEFFIELD,8110000,CLOTHING  UNIFORM AND LAUNDRY,16/07/2018,544213,-58.20,ARDEN WINCH & CO LTD,CT024966190,Safety Equipment & Clothing
SHEFFIELD CITY COUNCIL,PLACE,14068049314,SOUTH EAST SHEFFIELD,8110000,CLOTHING  UNIFORM AND LAUNDRY,31/07/2018,545586,-38.00,ARDEN WINCH & CO LTD,CT024966190,Safety Equipment & Clothing
SHEFFIELD CITY COUNCIL,PLACE,14068049314,SOUTH EAST SHEFFIELD,8110000,CLOTHING  UNIFORM AND LAUNDRY,16/07/2018,544213,-19.00,ARDEN WINCH & CO LTD,CT024966190,Safety Equipment & Clothing
SHEFFIELD CITY COUNCIL,PLACE,14069649316,CITY & WEST SHEFFIELD,8110000,CLOTHING  UNIFORM AND LAUNDRY,06/07/2018,539291,-18.18,ARDEN WINCH & CO LTD,CT024966190,Safety Equipment & Clothing
SHEFFIELD CITY COUNCIL,PLACE,14068049314,SOUTH EAST SHEFFIELD,8110000,CLOTHING  UNIFORM AND LAUNDRY,16/07/2018,544213,-12.90,ARDEN WINCH & CO LTD,CT024966190,Safety Equipment & Clothing
SHEFFIELD CITY COUNCIL,PLACE,12046025052,PARKS SERVICE MANAGER,8110000,CLOTHING  UNIFORM AND LAUNDRY,18/07/2018,543335,-9.70,ARDEN WINCH & CO LTD,CT024966190,Safety Equipment & Clothing
SHEFFIELD CITY COUNCIL,PLACE,12046025052,PARKS SERVICE MANAGER,8110000,CLOTHING  UNIFORM AND LAUNDRY,18/07/2018,543335,-9.07,ARDEN WINCH & CO LTD,CT024966190,Safety Equipment & Clothing
SHEFFIELD CITY COUNCIL,PLACE,14069649316,CITY & WEST SHEFFIELD,8110000,CLOTHING  UNIFORM AND LAUNDRY,06/07/2018,539291,-7.26,ARDEN WINCH & CO LTD,CT024966190,Safety Equipment & Clothing
SHEFFIELD CITY COUNCIL,PLACE,14069649316,CITY & WEST SHEFFIELD,8110000,CLOTHING  UNIFORM AND LAUNDRY,06/07/2018,539291,-7.13,ARDEN WINCH & CO LTD,CT024966190,Safety Equipment & Clothing
SHEFFIELD CITY COUNCIL,PLACE,14069049311,FIRTH PARK & SOUTHEY,8110000,CLOTHING  UNIFORM AND LAUNDRY,18/07/2018,544555,-1.86,ARDEN WINCH & CO LTD,CT024966190,Safety Equipment & Clothing
SHEFFIELD CITY COUNCIL,PLACE,14069049311,FIRTH PARK & SOUTHEY,8110000,CLOTHING  UNIFORM AND LAUNDRY,18/07/2018,544555,-1.24,ARDEN WINCH & CO LTD,CT024966190,Safety Equipment & Clothing
SHEFFIELD CITY COUNCIL,PLACE,14069049311,FIRTH PARK & SOUTHEY,8110000,CLOTHING  UNIFORM AND LAUNDRY,18/07/2018,544555,-1.24,ARDEN WINCH & CO LTD,CT024966190,Safety Equipment & Clothing
SHEFFIELD CITY COUNCIL,PLACE,14069049311,FIRTH PARK & SOUTHEY,8110000,CLOTHING  UNIFORM AND LAUNDRY,18/07/2018,544555,-1.24,ARDEN WINCH & CO LTD,CT024966190,Safety Equipment & Clothing
SHEFFIELD CITY COUNCIL,PLACE,12046025052,PARKS SERVICE MANAGER,8110000,CLOTHING  UNIFORM AND LAUNDRY,04/07/2018,541952,263.70,ARDEN WINCH & CO LTD,CT024966190,Safety Equipment & Clothing
SHEFFIELD CITY COUNCIL,PEOPLE,14009800000,CITY WIDE CARE ALARMS,8010000,EQUIPMENT PURCHASE AND REPAIR,23/07/2018,545105,282.26,ARDEN WINCH & CO LTD,CT024966190,Safety Equipment & Clothing
SHEFFIELD CITY COUNCIL,PLACE,11850500000,STOCK CONTROL,8070000,STOCKS AND STORES,25/07/2018,541681,298.13,ARDEN WINCH & CO LTD,CT024966190,Safety Equipment & Clothing
SHEFFIELD CITY COUNCIL,PLACE,11850500000,STOCK CONTROL,8070000,STOCKS AND STORES,25/07/2018,545199,323.40,ARDEN WINCH & CO LTD,CT024966190,Safety Equipment & Clothing
SHEFFIELD CITY COUNCIL,PLACE,11850500000,STOCK CONTROL,8070000,STOCKS AND STORES,25/07/2018,540709,333.32,ARDEN WINCH & CO LTD,CT024966190,Safety Equipment & Clothing
SHEFFIELD CITY COUNCIL,PLACE,12046025052,PARKS SERVICE MANAGER,8110000,CLOTHING  UNIFORM AND LAUNDRY,04/07/2018,541954,413.72,ARDEN WINCH & CO LTD,CT024966190,Safety Equipment & Clothing
SHEFFIELD CITY COUNCIL,PLACE,11850500000,STOCK CONTROL,8070000,STOCKS AND STORES,25/07/2018,543300,439.60,ARDEN WINCH & CO LTD,CT024966190,Safety Equipment & Clothing
SHEFFIELD CITY COUNCIL,PLACE,11850500000,STOCK CONTROL,8070000,STOCKS AND STORES,03/07/2018,542444,662.20,ARDEN WINCH & CO LTD,CT024966190,Safety Equipment & Clothing
SHEFFIELD CITY COUNCIL,PLACE,11850500000,STOCK CONTROL,8070000,STOCKS AND STORES,19/07/2018,541422,742.50,ARDEN WINCH & CO LTD,CT024966190,Safety Equipment & Clothing
SHEFFIELD CITY COUNCIL,PLACE,12046025052,PARKS SERVICE MANAGER,8110000,CLOTHING  UNIFORM AND LAUNDRY,04/07/2018,536377,922.95,ARDEN WINCH & CO LTD,CT024966190,Safety Equipment & Clothing
SHEFFIELD CITY COUNCIL,PLACE,12045321352,CREMATORIA,8110000,CLOTHING  UNIFORM AND LAUNDRY,25/07/2018,545279,"1,907.20",ARDEN WINCH & CO LTD,CT024966190,Safety Equipment & Clothing
SHEFFIELD CITY COUNCIL,PLACE,12045821117,TOWN HALL EVENTS,8230000,HOSPITALITY,20/07/2018,1149,"11,202.10",ARGENT CATERING SOLUTIONS LIMITED,CT030616250,Catering Food & Drink Suppliers
SHEFFIELD CITY COUNCIL,PLACE,11530015212,CATERING,8230000,HOSPITALITY,20/07/2018,1149,"15,753.78",ARGENT CATERING SOLUTIONS LIMITED,CT030616250,Catering Food & Drink Suppliers
SHEFFIELD CITY COUNCIL,PLACE,12046025001,GRAVES PARK - ANIMAL FARM INC,8060000,MATERIALS AND SUPPLIES GENERAL,05/07/2018,507339,287.00,ARGO FEEDS LTD,CT109957220,Pet Foods & Animal Feeds
SHEFFIELD CITY COUNCIL,PLACE,12046025001,GRAVES PARK - ANIMAL FARM INC,8060000,MATERIALS AND SUPPLIES GENERAL,05/07/2018,506394,336.40,ARGO FEEDS LTD,CT109957220,Pet Foods & Animal Feeds
SHEFFIELD CITY COUNCIL,PLACE,12046025001,GRAVES PARK - ANIMAL FARM INC,8060000,MATERIALS AND SUPPLIES GENERAL,25/07/2018,510108,379.30,ARGO FEEDS LTD,CT109957220,Pet Foods & Animal Feeds
SHEFFIELD CITY COUNCIL,PLACE,12000323012,FOOD HYGIENE,8350000,MISCELLANEOUS EXPENSES,20/07/2018,2752,754.90,ARI ENVIRONMENTAL SERVICES LTD,CT021144320,Hygiene & Cleansing Services
SHEFFIELD CITY COUNCIL,PLACE,12000323012,FOOD HYGIENE,8350000,MISCELLANEOUS EXPENSES,20/07/2018,2752,"1,005.50",ARI ENVIRONMENTAL SERVICES LTD,CT021144320,Hygiene & Cleansing Services
SHEFFIELD CITY COUNCIL,PEOPLE,14009346039,ADULT SOCIAL CARE PURCHASING,9190002,BLOCK CONTRACT,18/07/2018,J2328537240618,"-4,951.59",ARK HOME HEALTHCARE LTD,CT230164710,Residential Care Homes
SHEFFIELD CITY COUNCIL,PEOPLE,14009346039,ADULT SOCIAL CARE PURCHASING,9190002,BLOCK CONTRACT,18/07/2018,J2328536240618,"-1,860.39",ARK HOME HEALTHCARE LTD,CT230164710,Residential Care Homes
SHEFFIELD CITY COUNCIL,PEOPLE,14009346039,ADULT SOCIAL CARE PURCHASING,9190002,BLOCK CONTRACT,18/07/2018,J2328537240618,"-1,724.16",ARK HOME HEALTHCARE LTD,CT230164710,Residential Care Homes
SHEFFIELD CITY COUNCIL,PEOPLE,14009346039,ADULT SOCIAL CARE PURCHASING,9190002,BLOCK CONTRACT,18/07/2018,J2328536240618,"-1,691.80",ARK HOME HEALTHCARE LTD,CT230164710,Residential Care Homes
SHEFFIELD CITY COUNCIL,PEOPLE,14009346039,ADULT SOCIAL CARE PURCHASING,9190002,BLOCK CONTRACT,18/07/2018,J2328536240618,"-1,292.37",ARK HOME HEALTHCARE LTD,CT230164710,Residential Care Homes
SHEFFIELD CITY COUNCIL,PEOPLE,14009242034,PURCHASING LEARNING DISABILITI,9190004,DIRECT PAYMENTS,06/07/2018,J2320932,482.40,REDACTED PERSONAL DATA,CT9999DIRPY,CAREFIRST DIRECT PAYMENTS
SHEFFIELD CITY COUNCIL,PEOPLE,14009346039,ADULT SOCIAL CARE PURCHASING,9190002,BLOCK CONTRACT,18/07/2018,J2328535240618,"-1,231.80",ARK HOME HEALTHCARE LTD,CT230164710,Residential Care Homes
SHEFFIELD CITY COUNCIL,PEOPLE,14009346039,ADULT SOCIAL CARE PURCHASING,9190002,BLOCK CONTRACT,18/07/2018,J2328537240618,-947.88,ARK HOME HEALTHCARE LTD,CT230164710,Residential Care Homes
SHEFFIELD CITY COUNCIL,PEOPLE,14009346039,ADULT SOCIAL CARE PURCHASING,9190002,BLOCK CONTRACT,18/07/2018,J2328537240618,-795.68,ARK HOME HEALTHCARE LTD,CT230164710,Residential Care Homes
SHEFFIELD CITY COUNCIL,PEOPLE,14009346039,ADULT SOCIAL CARE PURCHASING,9190002,BLOCK CONTRACT,18/07/2018,J2328536240618,-288.00,ARK HOME HEALTHCARE LTD,CT230164710,Residential Care Homes
SHEFFIELD CITY COUNCIL,PEOPLE,14009346039,ADULT SOCIAL CARE PURCHASING,9190002,BLOCK CONTRACT,18/07/2018,J2328536240618,-209.30,ARK HOME HEALTHCARE LTD,CT230164710,Residential Care Homes
SHEFFIELD CITY COUNCIL,PEOPLE,14009346039,ADULT SOCIAL CARE PURCHASING,9190002,BLOCK CONTRACT,18/07/2018,J2328537240618,-118.05,ARK HOME HEALTHCARE LTD,CT230164710,Residential Care Homes
SHEFFIELD CITY COUNCIL,PEOPLE,14009346039,ADULT SOCIAL CARE PURCHASING,9190002,BLOCK CONTRACT,18/07/2018,J2328537240618,251.84,ARK HOME HEALTHCARE LTD,CT230164710,Residential Care Homes
SHEFFIELD CITY COUNCIL,PEOPLE,14009242034,PURCHASING LEARNING DISABILITI,9190004,DIRECT PAYMENTS,10/07/2018,J2324004,"3,197.64",REDACTED PERSONAL DATA,CT9999DIRPY,CAREFIRST DIRECT PAYMENTS
SHEFFIELD CITY COUNCIL,PEOPLE,14009346039,ADULT SOCIAL CARE PURCHASING,9190002,BLOCK CONTRACT,18/07/2018,J2328535240618,275.45,ARK HOME HEALTHCARE LTD,CT230164710,Residential Care Homes
SHEFFIELD CITY COUNCIL,PEOPLE,14009346039,ADULT SOCIAL CARE PURCHASING,9190002,BLOCK CONTRACT,18/07/2018,J2328537240618,275.45,ARK HOME HEALTHCARE LTD,CT230164710,Residential Care Homes
SHEFFIELD CITY COUNCIL,PEOPLE,14009346039,ADULT SOCIAL CARE PURCHASING,9190002,BLOCK CONTRACT,18/07/2018,J2328536240618,301.91,ARK HOME HEALTHCARE LTD,CT230164710,Residential Care Homes
SHEFFIELD CITY COUNCIL,PEOPLE,14009346039,ADULT SOCIAL CARE PURCHASING,9190002,BLOCK CONTRACT,18/07/2018,J2328504240618,313.39,ARK HOME HEALTHCARE LTD,CT230164710,Residential Care Homes
SHEFFIELD CITY COUNCIL,PEOPLE,14009346039,ADULT SOCIAL CARE PURCHASING,9190002,BLOCK CONTRACT,18/07/2018,J2328537240618,325.29,ARK HOME HEALTHCARE LTD,CT230164710,Residential Care Homes
SHEFFIELD CITY COUNCIL,PEOPLE,14009346039,ADULT SOCIAL CARE PURCHASING,9190002,BLOCK CONTRACT,18/07/2018,J2328535240618,330.54,ARK HOME HEALTHCARE LTD,CT230164710,Residential Care Homes
SHEFFIELD CITY COUNCIL,PEOPLE,14009346039,ADULT SOCIAL CARE PURCHASING,9190002,BLOCK CONTRACT,18/07/2018,J2328535240618,330.54,ARK HOME HEALTHCARE LTD,CT230164710,Residential Care Homes
SHEFFIELD CITY COUNCIL,PEOPLE,14009346039,ADULT SOCIAL CARE PURCHASING,9190002,BLOCK CONTRACT,18/07/2018,J2328536240618,343.60,ARK HOME HEALTHCARE LTD,CT230164710,Residential Care Homes
SHEFFIELD CITY COUNCIL,PLACE,12047124417,CRYSTAL PEAKS,6210000,RENTS,02/07/2018,100033691,"-8,700.00",BRITEL FUND TRUSTEES LTD,CT130447846,Letting Agents
SHEFFIELD CITY COUNCIL,PEOPLE,14009346039,ADULT SOCIAL CARE PURCHASING,9190002,BLOCK CONTRACT,18/07/2018,J2328531240618,440.72,AWESOME HEALTHCARE SOLUTIONS,CT230243419,Home Care Services
SHEFFIELD CITY COUNCIL,PEOPLE,14009346039,ADULT SOCIAL CARE PURCHASING,9190002,BLOCK CONTRACT,18/07/2018,J2328537240618,360.69,ARK HOME HEALTHCARE LTD,CT230164710,Residential Care Homes
SHEFFIELD CITY COUNCIL,PEOPLE,14009346039,ADULT SOCIAL CARE PURCHASING,9190002,BLOCK CONTRACT,18/07/2018,J2328535240618,367.36,ARK HOME HEALTHCARE LTD,CT230164710,Residential Care Homes
SHEFFIELD CITY COUNCIL,PEOPLE,14009346039,ADULT SOCIAL CARE PURCHASING,9190002,BLOCK CONTRACT,18/07/2018,J2328535240618,383.03,ARK HOME HEALTHCARE LTD,CT230164710,Residential Care Homes
SHEFFIELD CITY COUNCIL,PEOPLE,14009346039,ADULT SOCIAL CARE PURCHASING,9190002,BLOCK CONTRACT,18/07/2018,J2328535240618,385.63,ARK HOME HEALTHCARE LTD,CT230164710,Residential Care Homes
SHEFFIELD CITY COUNCIL,PEOPLE,14009346039,ADULT SOCIAL CARE PURCHASING,9190002,BLOCK CONTRACT,18/07/2018,J2328535240618,398.77,ARK HOME HEALTHCARE LTD,CT230164710,Residential Care Homes
SHEFFIELD CITY COUNCIL,PEOPLE,14009346039,ADULT SOCIAL CARE PURCHASING,9190002,BLOCK CONTRACT,18/07/2018,J2328535240618,398.77,ARK HOME HEALTHCARE LTD,CT230164710,Residential Care Homes
SHEFFIELD CITY COUNCIL,PEOPLE,14009346039,ADULT SOCIAL CARE PURCHASING,9190002,BLOCK CONTRACT,18/07/2018,J2328536240618,437.38,ARK HOME HEALTHCARE LTD,CT230164710,Residential Care Homes
SHEFFIELD CITY COUNCIL,PEOPLE,14009346039,ADULT SOCIAL CARE PURCHASING,9190002,BLOCK CONTRACT,18/07/2018,J2328535240618,438.12,ARK HOME HEALTHCARE LTD,CT230164710,Residential Care Homes
SHEFFIELD CITY COUNCIL,PEOPLE,14009346039,ADULT SOCIAL CARE PURCHASING,9190002,BLOCK CONTRACT,18/07/2018,J2328537240618,445.96,ARK HOME HEALTHCARE LTD,CT230164710,Residential Care Homes
SHEFFIELD CITY COUNCIL,PEOPLE,14009346039,ADULT SOCIAL CARE PURCHASING,9190002,BLOCK CONTRACT,18/07/2018,J2328535240618,449.82,ARK HOME HEALTHCARE LTD,CT230164710,Residential Care Homes
SHEFFIELD CITY COUNCIL,PEOPLE,14009346039,ADULT SOCIAL CARE PURCHASING,9190002,BLOCK CONTRACT,18/07/2018,J2328535240618,459.06,ARK HOME HEALTHCARE LTD,CT230164710,Residential Care Homes
SHEFFIELD CITY COUNCIL,PEOPLE,14009346039,ADULT SOCIAL CARE PURCHASING,9190002,BLOCK CONTRACT,18/07/2018,J2328535240618,459.08,ARK HOME HEALTHCARE LTD,CT230164710,Residential Care Homes
SHEFFIELD CITY COUNCIL,PEOPLE,14009346039,ADULT SOCIAL CARE PURCHASING,9190002,BLOCK CONTRACT,18/07/2018,J2328537240618,468.44,ARK HOME HEALTHCARE LTD,CT230164710,Residential Care Homes
SHEFFIELD CITY COUNCIL,PEOPLE,14009346039,ADULT SOCIAL CARE PURCHASING,9190002,BLOCK CONTRACT,18/07/2018,J2328535240618,472.20,ARK HOME HEALTHCARE LTD,CT230164710,Residential Care Homes
SHEFFIELD CITY COUNCIL,PEOPLE,14009346039,ADULT SOCIAL CARE PURCHASING,9190002,BLOCK CONTRACT,18/07/2018,J2328537240618,484.04,ARK HOME HEALTHCARE LTD,CT230164710,Residential Care Homes
SHEFFIELD CITY COUNCIL,PEOPLE,14009346039,ADULT SOCIAL CARE PURCHASING,9190002,BLOCK CONTRACT,18/07/2018,J2328536240618,488.32,ARK HOME HEALTHCARE LTD,CT230164710,Residential Care Homes
SHEFFIELD CITY COUNCIL,PEOPLE,14009346039,ADULT SOCIAL CARE PURCHASING,9190002,BLOCK CONTRACT,18/07/2018,J2328535240618,493.21,ARK HOME HEALTHCARE LTD,CT230164710,Residential Care Homes
SHEFFIELD CITY COUNCIL,PEOPLE,14009346039,ADULT SOCIAL CARE PURCHASING,9190002,BLOCK CONTRACT,18/07/2018,J2328535240618,495.81,ARK HOME HEALTHCARE LTD,CT230164710,Residential Care Homes
SHEFFIELD CITY COUNCIL,PEOPLE,14009346039,ADULT SOCIAL CARE PURCHASING,9190002,BLOCK CONTRACT,18/07/2018,J2328535240618,495.81,ARK HOME HEALTHCARE LTD,CT230164710,Residential Care Homes
SHEFFIELD CITY COUNCIL,PEOPLE,14009346039,ADULT SOCIAL CARE PURCHASING,9190002,BLOCK CONTRACT,18/07/2018,J2328537240618,495.81,ARK HOME HEALTHCARE LTD,CT230164710,Residential Care Homes
SHEFFIELD CITY COUNCIL,PEOPLE,14009346039,ADULT SOCIAL CARE PURCHASING,9190002,BLOCK CONTRACT,18/07/2018,J2328537240618,495.81,ARK HOME HEALTHCARE LTD,CT230164710,Residential Care Homes
SHEFFIELD CITY COUNCIL,PLACE,12047124417,CRYSTAL PEAKS,6190000,WATER SERVICES,02/07/2018,100033690,"-2,109.38",BRITEL FUND TRUSTEES LTD,CT130447846,Letting Agents
SHEFFIELD CITY COUNCIL,PEOPLE,14009346039,ADULT SOCIAL CARE PURCHASING,9190002,BLOCK CONTRACT,18/07/2018,J2328537240618,624.40,ARK HOME HEALTHCARE LTD,CT230164710,Residential Care Homes
SHEFFIELD CITY COUNCIL,PEOPLE,14009346039,ADULT SOCIAL CARE PURCHASING,9190002,BLOCK CONTRACT,18/07/2018,J2328536240618,638.68,ARK HOME HEALTHCARE LTD,CT230164710,Residential Care Homes
SHEFFIELD CITY COUNCIL,PEOPLE,14009346039,ADULT SOCIAL CARE PURCHASING,9190007,FUNDED HOME SUPPORT,18/07/2018,J2328536240618,654.72,ARK HOME HEALTHCARE LTD,CT230164710,Residential Care Homes
SHEFFIELD CITY COUNCIL,PEOPLE,14009346039,ADULT SOCIAL CARE PURCHASING,9190002,BLOCK CONTRACT,24/07/2018,J2087976051117,442.85,AWESOME HEALTHCARE SOLUTIONS,CT230243419,Home Care Services
SHEFFIELD CITY COUNCIL,PEOPLE,14009346039,ADULT SOCIAL CARE PURCHASING,9190002,BLOCK CONTRACT,18/07/2018,J2328535240618,661.08,ARK HOME HEALTHCARE LTD,CT230164710,Residential Care Homes
SHEFFIELD CITY COUNCIL,PEOPLE,14009346039,ADULT SOCIAL CARE PURCHASING,9190002,BLOCK CONTRACT,18/07/2018,J2328537240618,683.01,ARK HOME HEALTHCARE LTD,CT230164710,Residential Care Homes
SHEFFIELD CITY COUNCIL,PEOPLE,14009346039,ADULT SOCIAL CARE PURCHASING,9190002,BLOCK CONTRACT,18/07/2018,J2328535240618,697.76,ARK HOME HEALTHCARE LTD,CT230164710,Residential Care Homes
SHEFFIELD CITY COUNCIL,PEOPLE,14009346039,ADULT SOCIAL CARE PURCHASING,9190002,BLOCK CONTRACT,18/07/2018,J2328504240618,916.40,ARK HOME HEALTHCARE LTD,CT230164710,Residential Care Homes
SHEFFIELD CITY COUNCIL,PEOPLE,14009346039,ADULT SOCIAL CARE PURCHASING,9190002,BLOCK CONTRACT,18/07/2018,J2328536240618,998.20,ARK HOME HEALTHCARE LTD,CT230164710,Residential Care Homes
SHEFFIELD CITY COUNCIL,PEOPLE,14009346039,ADULT SOCIAL CARE PURCHASING,9190002,BLOCK CONTRACT,18/07/2018,J2328535240618,"1,007.36",ARK HOME HEALTHCARE LTD,CT230164710,Residential Care Homes
SHEFFIELD CITY COUNCIL,PEOPLE,14009346039,ADULT SOCIAL CARE PURCHASING,9190002,BLOCK CONTRACT,18/07/2018,J2328537240618,"1,167.31",ARK HOME HEALTHCARE LTD,CT230164710,Residential Care Homes
SHEFFIELD CITY COUNCIL,PEOPLE,14009346039,ADULT SOCIAL CARE PURCHASING,9190002,BLOCK CONTRACT,18/07/2018,J2328537240618,"1,227.72",ARK HOME HEALTHCARE LTD,CT230164710,Residential Care Homes
SHEFFIELD CITY COUNCIL,PEOPLE,14009346039,ADULT SOCIAL CARE PURCHASING,9190002,BLOCK CONTRACT,18/07/2018,J2328535240618,"1,322.16",ARK HOME HEALTHCARE LTD,CT230164710,Residential Care Homes
SHEFFIELD CITY COUNCIL,PEOPLE,14009346039,ADULT SOCIAL CARE PURCHASING,9190002,BLOCK CONTRACT,18/07/2018,J2328537240618,"1,419.12",ARK HOME HEALTHCARE LTD,CT230164710,Residential Care Homes
SHEFFIELD CITY COUNCIL,PEOPLE,14009346039,ADULT SOCIAL CARE PURCHASING,9190002,BLOCK CONTRACT,18/07/2018,J2328535240618,"1,469.16",ARK HOME HEALTHCARE LTD,CT230164710,Residential Care Homes
SHEFFIELD CITY COUNCIL,PEOPLE,14009346039,ADULT SOCIAL CARE PURCHASING,9190007,FUNDED HOME SUPPORT,18/07/2018,J2328537240618,"1,487.43",ARK HOME HEALTHCARE LTD,CT230164710,Residential Care Homes
SHEFFIELD CITY COUNCIL,PEOPLE,14009346039,ADULT SOCIAL CARE PURCHASING,9190002,BLOCK CONTRACT,18/07/2018,J2328537240618,"1,689.52",ARK HOME HEALTHCARE LTD,CT230164710,Residential Care Homes
SHEFFIELD CITY COUNCIL,PEOPLE,14009346039,ADULT SOCIAL CARE PURCHASING,9190002,BLOCK CONTRACT,18/07/2018,J2328535240618,"1,762.88",ARK HOME HEALTHCARE LTD,CT230164710,Residential Care Homes
SHEFFIELD CITY COUNCIL,PEOPLE,14009346039,ADULT SOCIAL CARE PURCHASING,9190002,BLOCK CONTRACT,18/07/2018,J2328537240618,"1,817.57",ARK HOME HEALTHCARE LTD,CT230164710,Residential Care Homes
SHEFFIELD CITY COUNCIL,PEOPLE,14009346039,ADULT SOCIAL CARE PURCHASING,9190002,BLOCK CONTRACT,18/07/2018,J2328536240618,"2,386.23",ARK HOME HEALTHCARE LTD,CT230164710,Residential Care Homes
SHEFFIELD CITY COUNCIL,PEOPLE,14009346039,ADULT SOCIAL CARE PURCHASING,9190002,BLOCK CONTRACT,18/07/2018,J2328536240618,"5,209.92",ARK HOME HEALTHCARE LTD,CT230164710,Residential Care Homes
SHEFFIELD CITY COUNCIL,PEOPLE,14009346039,ADULT SOCIAL CARE PURCHASING,9190002,BLOCK CONTRACT,18/07/2018,J2328537240618,"8,708.85",ARK HOME HEALTHCARE LTD,CT230164710,Residential Care Homes
SHEFFIELD CITY COUNCIL,PLACE,12047124417,CRYSTAL PEAKS,6160000,GAS,03/07/2018,100033687,"-2,091.60",BRITEL FUND TRUSTEES LTD,CT130447846,Letting Agents
SHEFFIELD CITY COUNCIL,PEOPLE,14009346039,ADULT SOCIAL CARE PURCHASING,9190002,BLOCK CONTRACT,18/07/2018,J2328535240618,"10,463.94",ARK HOME HEALTHCARE LTD,CT230164710,Residential Care Homes
SHEFFIELD CITY COUNCIL,PLACE,11850500000,STOCK CONTROL,8070000,STOCKS AND STORES,16/07/2018,Z00180652,-300.00,ARNOLD LAVER & CO LTD,CT285078210,"Timber Merchants, Importers & Agents"
SHEFFIELD CITY COUNCIL,PLACE,11850500000,STOCK CONTROL,8070000,STOCKS AND STORES,16/07/2018,Z00181335,-60.00,ARNOLD LAVER & CO LTD,CT285078210,"Timber Merchants, Importers & Agents"
SHEFFIELD CITY COUNCIL,PLACE,11850500000,STOCK CONTROL,8070000,STOCKS AND STORES,26/07/2018,P05040826,328.50,ARNOLD LAVER & CO LTD,CT285078210,"Timber Merchants, Importers & Agents"
SHEFFIELD CITY COUNCIL,PLACE,11850500000,STOCK CONTROL,8070000,STOCKS AND STORES,30/07/2018,P05058977,328.50,ARNOLD LAVER & CO LTD,CT285078210,"Timber Merchants, Importers & Agents"
SHEFFIELD CITY COUNCIL,PLACE,11850200043,PAINTING,8060000,MATERIALS AND SUPPLIES GENERAL,19/07/2018,P05071392,357.09,ARNOLD LAVER & CO LTD,CT285078210,"Timber Merchants, Importers & Agents"
SHEFFIELD CITY COUNCIL,PLACE,11850500000,STOCK CONTROL,8070000,STOCKS AND STORES,27/07/2018,P05095680,384.28,ARNOLD LAVER & CO LTD,CT285078210,"Timber Merchants, Importers & Agents"
SHEFFIELD CITY COUNCIL,PLACE,11850500000,STOCK CONTROL,8070000,STOCKS AND STORES,23/07/2018,P05083361,420.00,ARNOLD LAVER & CO LTD,CT285078210,"Timber Merchants, Importers & Agents"
SHEFFIELD CITY COUNCIL,PLACE,11850500000,STOCK CONTROL,8070000,STOCKS AND STORES,23/07/2018,P05083378,440.00,ARNOLD LAVER & CO LTD,CT285078210,"Timber Merchants, Importers & Agents"
SHEFFIELD CITY COUNCIL,PLACE,11850500000,STOCK CONTROL,8070000,STOCKS AND STORES,27/07/2018,P05095679,440.00,ARNOLD LAVER & CO LTD,CT285078210,"Timber Merchants, Importers & Agents"
SHEFFIELD CITY COUNCIL,PLACE,11850500000,STOCK CONTROL,8070000,STOCKS AND STORES,19/07/2018,P05071402,563.56,ARNOLD LAVER & CO LTD,CT285078210,"Timber Merchants, Importers & Agents"
SHEFFIELD CITY COUNCIL,PLACE,11850500000,STOCK CONTROL,8070000,STOCKS AND STORES,30/07/2018,P05058978,563.64,ARNOLD LAVER & CO LTD,CT285078210,"Timber Merchants, Importers & Agents"
SHEFFIELD CITY COUNCIL,PLACE,11850500000,STOCK CONTROL,8070000,STOCKS AND STORES,26/07/2018,P05091920,592.50,ARNOLD LAVER & CO LTD,CT285078210,"Timber Merchants, Importers & Agents"
SHEFFIELD CITY COUNCIL,PLACE,11850500000,STOCK CONTROL,8070000,STOCKS AND STORES,30/07/2018,P05067655,592.50,ARNOLD LAVER & CO LTD,CT285078210,"Timber Merchants, Importers & Agents"
SHEFFIELD CITY COUNCIL,PLACE,11850500000,STOCK CONTROL,8070000,STOCKS AND STORES,26/07/2018,P05052608,711.00,ARNOLD LAVER & CO LTD,CT285078210,"Timber Merchants, Importers & Agents"
SHEFFIELD CITY COUNCIL,PLACE,11850500000,STOCK CONTROL,8070000,STOCKS AND STORES,23/07/2018,P05083354,724.50,ARNOLD LAVER & CO LTD,CT285078210,"Timber Merchants, Importers & Agents"
SHEFFIELD CITY COUNCIL,PLACE,11850500000,STOCK CONTROL,8070000,STOCKS AND STORES,26/07/2018,P05048821,724.69,ARNOLD LAVER & CO LTD,CT285078210,"Timber Merchants, Importers & Agents"
SHEFFIELD CITY COUNCIL,PLACE,11850500000,STOCK CONTROL,8070000,STOCKS AND STORES,02/07/2018,P05071391,762.30,ARNOLD LAVER & CO LTD,CT285078210,"Timber Merchants, Importers & Agents"
SHEFFIELD CITY COUNCIL,PLACE,11850500000,STOCK CONTROL,8070000,STOCKS AND STORES,19/07/2018,P05024812,"1,185.00",ARNOLD LAVER & CO LTD,CT285078210,"Timber Merchants, Importers & Agents"
SHEFFIELD CITY COUNCIL,PLACE,11850500000,STOCK CONTROL,8070000,STOCKS AND STORES,23/07/2018,P05083389,"1,282.80",ARNOLD LAVER & CO LTD,CT285078210,"Timber Merchants, Importers & Agents"
SHEFFIELD CITY COUNCIL,PLACE,11850500000,STOCK CONTROL,8070000,STOCKS AND STORES,26/07/2018,P05091899,"1,293.00",ARNOLD LAVER & CO LTD,CT285078210,"Timber Merchants, Importers & Agents"
SHEFFIELD CITY COUNCIL,PLACE,11850500000,STOCK CONTROL,8070000,STOCKS AND STORES,19/07/2018,P05052554,"1,345.50",ARNOLD LAVER & CO LTD,CT285078210,"Timber Merchants, Importers & Agents"
SHEFFIELD CITY COUNCIL,PLACE,11850500000,STOCK CONTROL,8070000,STOCKS AND STORES,09/07/2018,P05067656,"1,400.00",ARNOLD LAVER & CO LTD,CT285078210,"Timber Merchants, Importers & Agents"
SHEFFIELD CITY COUNCIL,PLACE,11850500000,STOCK CONTROL,8070000,STOCKS AND STORES,09/07/2018,P05067672,"1,400.00",ARNOLD LAVER & CO LTD,CT285078210,"Timber Merchants, Importers & Agents"
SHEFFIELD CITY COUNCIL,PLACE,11850500000,STOCK CONTROL,8070000,STOCKS AND STORES,16/07/2018,PO4857307,"1,600.00",ARNOLD LAVER & CO LTD,CT285078210,"Timber Merchants, Importers & Agents"
SHEFFIELD CITY COUNCIL,PLACE,11850500000,STOCK CONTROL,8070000,STOCKS AND STORES,26/07/2018,P05040808,"1,627.88",ARNOLD LAVER & CO LTD,CT285078210,"Timber Merchants, Importers & Agents"
SHEFFIELD CITY COUNCIL,PLACE,11850500000,STOCK CONTROL,8070000,STOCKS AND STORES,26/07/2018,P05046150,"1,848.55",ARNOLD LAVER & CO LTD,CT285078210,"Timber Merchants, Importers & Agents"
SHEFFIELD CITY COUNCIL,PLACE,11850500000,STOCK CONTROL,8070000,STOCKS AND STORES,19/07/2018,P05073789,"2,001.88",ARNOLD LAVER & CO LTD,CT285078210,"Timber Merchants, Importers & Agents"
SHEFFIELD CITY COUNCIL,PLACE,11850500000,STOCK CONTROL,8070000,STOCKS AND STORES,23/07/2018,P05083394,"2,202.00",ARNOLD LAVER & CO LTD,CT285078210,"Timber Merchants, Importers & Agents"
SHEFFIELD CITY COUNCIL,PLACE,11850500000,STOCK CONTROL,8070000,STOCKS AND STORES,30/07/2018,P05083390,"2,353.75",ARNOLD LAVER & CO LTD,CT285078210,"Timber Merchants, Importers & Agents"
SHEFFIELD CITY COUNCIL,PLACE,11850500000,STOCK CONTROL,8070000,STOCKS AND STORES,19/07/2018,P05052556,"2,372.00",ARNOLD LAVER & CO LTD,CT285078210,"Timber Merchants, Importers & Agents"
SHEFFIELD CITY COUNCIL,PLACE,11850500000,STOCK CONTROL,8070000,STOCKS AND STORES,19/07/2018,P05077591,"2,956.10",ARNOLD LAVER & CO LTD,CT285078210,"Timber Merchants, Importers & Agents"
SHEFFIELD CITY COUNCIL,PLACE,12045821270,EVENTS IN PARKS,8200005,WHIT,02/07/2018,3845,882.00,ARONA ENTERPRISES LTD,CT220369240,Security Services
SHEFFIELD CITY COUNCIL,PLACE,12046025052,PARKS SERVICE MANAGER,8110000,CLOTHING  UNIFORM AND LAUNDRY,17/07/2018,4753844,259.71,ARROW COUNTY SUPPLIES,CT021045695,Janitorial Equipment & Supplies
SHEFFIELD CITY COUNCIL,PLACE,12046025052,PARKS SERVICE MANAGER,8110000,CLOTHING  UNIFORM AND LAUNDRY,03/07/2018,4752506,345.58,ARROW COUNTY SUPPLIES,CT021045695,Janitorial Equipment & Supplies
SHEFFIELD CITY COUNCIL,PEOPLE,14009346039,ADULT SOCIAL CARE PURCHASING,4260011,NURSING COSTS RECOVERED,18/07/2018,J2331719120818,"-1,027.24",ASCOT LODGE CARE HOME,CT230753350,Nursing Homes
SHEFFIELD CITY COUNCIL,PEOPLE,14009346039,ADULT SOCIAL CARE PURCHASING,4260011,NURSING COSTS RECOVERED,18/07/2018,J2331719120818,-998.88,ASCOT LODGE CARE HOME,CT230753350,Nursing Homes
SHEFFIELD CITY COUNCIL,PEOPLE,14009346039,ADULT SOCIAL CARE PURCHASING,4260011,NURSING COSTS RECOVERED,18/07/2018,J2331719120818,-949.20,ASCOT LODGE CARE HOME,CT230753350,Nursing Homes
SHEFFIELD CITY COUNCIL,PEOPLE,14009346039,ADULT SOCIAL CARE PURCHASING,4260018,RESIDENTIAL COSTS RECOVERED,18/07/2018,J2331719120818,-917.92,ASCOT LODGE CARE HOME,CT230753350,Nursing Homes
SHEFFIELD CITY COUNCIL,PEOPLE,14009346039,ADULT SOCIAL CARE PURCHASING,4260011,NURSING COSTS RECOVERED,18/07/2018,J2331719120818,-838.04,ASCOT LODGE CARE HOME,CT230753350,Nursing Homes
SHEFFIELD CITY COUNCIL,PEOPLE,14009346039,ADULT SOCIAL CARE PURCHASING,4260011,NURSING COSTS RECOVERED,18/07/2018,J2331719120818,-833.12,ASCOT LODGE CARE HOME,CT230753350,Nursing Homes
SHEFFIELD CITY COUNCIL,PEOPLE,14009346039,ADULT SOCIAL CARE PURCHASING,4260011,NURSING COSTS RECOVERED,18/07/2018,J2331719120818,-812.32,ASCOT LODGE CARE HOME,CT230753350,Nursing Homes
SHEFFIELD CITY COUNCIL,PEOPLE,14009346039,ADULT SOCIAL CARE PURCHASING,9190002,BLOCK CONTRACT,18/07/2018,J2328531240618,444.08,AWESOME HEALTHCARE SOLUTIONS,CT230243419,Home Care Services
SHEFFIELD CITY COUNCIL,PEOPLE,14009346039,ADULT SOCIAL CARE PURCHASING,9210001,CONTINUING NURSING CARE,18/07/2018,J2320933150718,-719.86,ASCOT LODGE CARE HOME,CT230753350,Nursing Homes
SHEFFIELD CITY COUNCIL,PEOPLE,14009346039,ADULT SOCIAL CARE PURCHASING,4260011,NURSING COSTS RECOVERED,18/07/2018,J2331719120818,-687.52,ASCOT LODGE CARE HOME,CT230753350,Nursing Homes
SHEFFIELD CITY COUNCIL,PEOPLE,14009346039,ADULT SOCIAL CARE PURCHASING,4260018,RESIDENTIAL COSTS RECOVERED,18/07/2018,J2331719120818,-597.60,ASCOT LODGE CARE HOME,CT230753350,Nursing Homes
SHEFFIELD CITY COUNCIL,PEOPLE,14009346039,ADULT SOCIAL CARE PURCHASING,4260018,RESIDENTIAL COSTS RECOVERED,18/07/2018,J2331535150718,-595.03,ASCOT LODGE CARE HOME,CT230753350,Nursing Homes
SHEFFIELD CITY COUNCIL,PEOPLE,14009346039,ADULT SOCIAL CARE PURCHASING,4260011,NURSING COSTS RECOVERED,18/07/2018,J2331719120818,-567.32,ASCOT LODGE CARE HOME,CT230753350,Nursing Homes
SHEFFIELD CITY COUNCIL,PEOPLE,14009346039,ADULT SOCIAL CARE PURCHASING,4260011,NURSING COSTS RECOVERED,18/07/2018,J2331719120818,-563.48,ASCOT LODGE CARE HOME,CT230753350,Nursing Homes
SHEFFIELD CITY COUNCIL,PEOPLE,14009346039,ADULT SOCIAL CARE PURCHASING,4260011,NURSING COSTS RECOVERED,18/07/2018,J2331719120818,-563.48,ASCOT LODGE CARE HOME,CT230753350,Nursing Homes
SHEFFIELD CITY COUNCIL,PEOPLE,14009346039,ADULT SOCIAL CARE PURCHASING,4260011,NURSING COSTS RECOVERED,18/07/2018,J2331719120818,-552.40,ASCOT LODGE CARE HOME,CT230753350,Nursing Homes
SHEFFIELD CITY COUNCIL,PEOPLE,14009346039,ADULT SOCIAL CARE PURCHASING,4260011,NURSING COSTS RECOVERED,18/07/2018,J2331719120818,-552.40,ASCOT LODGE CARE HOME,CT230753350,Nursing Homes
SHEFFIELD CITY COUNCIL,PEOPLE,14009346039,ADULT SOCIAL CARE PURCHASING,4260011,NURSING COSTS RECOVERED,18/07/2018,J2331719120818,-552.40,ASCOT LODGE CARE HOME,CT230753350,Nursing Homes
SHEFFIELD CITY COUNCIL,PEOPLE,14009346039,ADULT SOCIAL CARE PURCHASING,4260011,NURSING COSTS RECOVERED,18/07/2018,J2331719120818,-552.40,ASCOT LODGE CARE HOME,CT230753350,Nursing Homes
SHEFFIELD CITY COUNCIL,PEOPLE,14009346039,ADULT SOCIAL CARE PURCHASING,4260011,NURSING COSTS RECOVERED,18/07/2018,J2331719120818,-552.40,ASCOT LODGE CARE HOME,CT230753350,Nursing Homes
SHEFFIELD CITY COUNCIL,PEOPLE,14009346039,ADULT SOCIAL CARE PURCHASING,4260011,NURSING COSTS RECOVERED,18/07/2018,J2331719120818,-552.40,ASCOT LODGE CARE HOME,CT230753350,Nursing Homes
SHEFFIELD CITY COUNCIL,PEOPLE,14009346039,ADULT SOCIAL CARE PURCHASING,4260011,NURSING COSTS RECOVERED,18/07/2018,J2331719120818,-552.40,ASCOT LODGE CARE HOME,CT230753350,Nursing Homes
SHEFFIELD CITY COUNCIL,PEOPLE,14009346039,ADULT SOCIAL CARE PURCHASING,4260011,NURSING COSTS RECOVERED,18/07/2018,J2331719120818,-550.40,ASCOT LODGE CARE HOME,CT230753350,Nursing Homes
SHEFFIELD CITY COUNCIL,PEOPLE,14009346039,ADULT SOCIAL CARE PURCHASING,4260011,NURSING COSTS RECOVERED,18/07/2018,J2331719120818,-548.24,ASCOT LODGE CARE HOME,CT230753350,Nursing Homes
SHEFFIELD CITY COUNCIL,PEOPLE,14009346039,ADULT SOCIAL CARE PURCHASING,4260011,NURSING COSTS RECOVERED,18/07/2018,J2331719120818,-547.04,ASCOT LODGE CARE HOME,CT230753350,Nursing Homes
SHEFFIELD CITY COUNCIL,PEOPLE,14009346039,ADULT SOCIAL CARE PURCHASING,4260011,NURSING COSTS RECOVERED,18/07/2018,J2331719120818,-545.88,ASCOT LODGE CARE HOME,CT230753350,Nursing Homes
SHEFFIELD CITY COUNCIL,PEOPLE,14009346039,ADULT SOCIAL CARE PURCHASING,4260011,NURSING COSTS RECOVERED,18/07/2018,J2331719120818,-544.16,ASCOT LODGE CARE HOME,CT230753350,Nursing Homes
SHEFFIELD CITY COUNCIL,PEOPLE,14009346039,ADULT SOCIAL CARE PURCHASING,4260011,NURSING COSTS RECOVERED,18/07/2018,J2331719120818,-543.16,ASCOT LODGE CARE HOME,CT230753350,Nursing Homes
SHEFFIELD CITY COUNCIL,PEOPLE,14009346039,ADULT SOCIAL CARE PURCHASING,4260011,NURSING COSTS RECOVERED,18/07/2018,J2331719120818,-532.60,ASCOT LODGE CARE HOME,CT230753350,Nursing Homes
SHEFFIELD CITY COUNCIL,PEOPLE,14009346039,ADULT SOCIAL CARE PURCHASING,9200001,CONTINUING RESIDENTIAL CARE,27/07/2018,J2334526120818,450.00,ASCOT LODGE CARE HOME,CT230753350,Nursing Homes
SHEFFIELD CITY COUNCIL,PEOPLE,14009346039,ADULT SOCIAL CARE PURCHASING,4260011,NURSING COSTS RECOVERED,18/07/2018,J2320933150718,692.87,ASCOT LODGE CARE HOME,CT230753350,Nursing Homes
SHEFFIELD CITY COUNCIL,PEOPLE,14009346039,ADULT SOCIAL CARE PURCHASING,9200001,CONTINUING RESIDENTIAL CARE,18/07/2018,J2331719120818,"1,752.00",ASCOT LODGE CARE HOME,CT230753350,Nursing Homes
SHEFFIELD CITY COUNCIL,PEOPLE,14009346039,ADULT SOCIAL CARE PURCHASING,9210001,CONTINUING NURSING CARE,18/07/2018,J2331719120818,"1,812.00",ASCOT LODGE CARE HOME,CT230753350,Nursing Homes
SHEFFIELD CITY COUNCIL,PEOPLE,14009346039,ADULT SOCIAL CARE PURCHASING,9210001,CONTINUING NURSING CARE,18/07/2018,J2331719120818,"1,812.00",ASCOT LODGE CARE HOME,CT230753350,Nursing Homes
SHEFFIELD CITY COUNCIL,PEOPLE,14009346039,ADULT SOCIAL CARE PURCHASING,9210001,CONTINUING NURSING CARE,18/07/2018,J2331719120818,"1,812.00",ASCOT LODGE CARE HOME,CT230753350,Nursing Homes
SHEFFIELD CITY COUNCIL,PEOPLE,14009346039,ADULT SOCIAL CARE PURCHASING,9210001,CONTINUING NURSING CARE,18/07/2018,J2331719120818,"1,812.00",ASCOT LODGE CARE HOME,CT230753350,Nursing Homes
SHEFFIELD CITY COUNCIL,PEOPLE,14009346039,ADULT SOCIAL CARE PURCHASING,9210001,CONTINUING NURSING CARE,18/07/2018,J2331719120818,"1,812.00",ASCOT LODGE CARE HOME,CT230753350,Nursing Homes
SHEFFIELD CITY COUNCIL,PEOPLE,14009346039,ADULT SOCIAL CARE PURCHASING,9210001,CONTINUING NURSING CARE,18/07/2018,J2331719120818,"1,812.00",ASCOT LODGE CARE HOME,CT230753350,Nursing Homes
SHEFFIELD CITY COUNCIL,PEOPLE,14009346039,ADULT SOCIAL CARE PURCHASING,9210001,CONTINUING NURSING CARE,18/07/2018,J2331719120818,"1,812.00",ASCOT LODGE CARE HOME,CT230753350,Nursing Homes
SHEFFIELD CITY COUNCIL,PEOPLE,14009346039,ADULT SOCIAL CARE PURCHASING,9210001,CONTINUING NURSING CARE,18/07/2018,J2331719120818,"1,812.00",ASCOT LODGE CARE HOME,CT230753350,Nursing Homes
SHEFFIELD CITY COUNCIL,PEOPLE,14009346039,ADULT SOCIAL CARE PURCHASING,9210001,CONTINUING NURSING CARE,18/07/2018,J2331719120818,"1,812.00",ASCOT LODGE CARE HOME,CT230753350,Nursing Homes
SHEFFIELD CITY COUNCIL,PEOPLE,14009346039,ADULT SOCIAL CARE PURCHASING,9210001,CONTINUING NURSING CARE,18/07/2018,J2331719120818,"1,812.00",ASCOT LODGE CARE HOME,CT230753350,Nursing Homes
SHEFFIELD CITY COUNCIL,PEOPLE,14009346039,ADULT SOCIAL CARE PURCHASING,9210001,CONTINUING NURSING CARE,18/07/2018,J2331719120818,"1,812.00",ASCOT LODGE CARE HOME,CT230753350,Nursing Homes
SHEFFIELD CITY COUNCIL,PEOPLE,14009346039,ADULT SOCIAL CARE PURCHASING,9210001,CONTINUING NURSING CARE,18/07/2018,J2331719120818,"1,812.00",ASCOT LODGE CARE HOME,CT230753350,Nursing Homes
SHEFFIELD CITY COUNCIL,PEOPLE,14009346039,ADULT SOCIAL CARE PURCHASING,9210001,CONTINUING NURSING CARE,18/07/2018,J2331719120818,"1,812.00",ASCOT LODGE CARE HOME,CT230753350,Nursing Homes
SHEFFIELD CITY COUNCIL,PEOPLE,14009346039,ADULT SOCIAL CARE PURCHASING,9210001,CONTINUING NURSING CARE,18/07/2018,J2331719120818,"1,812.00",ASCOT LODGE CARE HOME,CT230753350,Nursing Homes
SHEFFIELD CITY COUNCIL,PEOPLE,14009346039,ADULT SOCIAL CARE PURCHASING,9210001,CONTINUING NURSING CARE,18/07/2018,J2331719120818,"1,812.00",ASCOT LODGE CARE HOME,CT230753350,Nursing Homes
SHEFFIELD CITY COUNCIL,PEOPLE,14009346039,ADULT SOCIAL CARE PURCHASING,9210001,CONTINUING NURSING CARE,18/07/2018,J2331719120818,"1,812.00",ASCOT LODGE CARE HOME,CT230753350,Nursing Homes
SHEFFIELD CITY COUNCIL,PEOPLE,14009346039,ADULT SOCIAL CARE PURCHASING,9210001,CONTINUING NURSING CARE,18/07/2018,J2331719120818,"1,812.00",ASCOT LODGE CARE HOME,CT230753350,Nursing Homes
SHEFFIELD CITY COUNCIL,PEOPLE,14009346039,ADULT SOCIAL CARE PURCHASING,9210001,CONTINUING NURSING CARE,18/07/2018,J2331719120818,"1,812.00",ASCOT LODGE CARE HOME,CT230753350,Nursing Homes
SHEFFIELD CITY COUNCIL,PEOPLE,14009346039,ADULT SOCIAL CARE PURCHASING,9210001,CONTINUING NURSING CARE,18/07/2018,J2331719120818,"1,812.00",ASCOT LODGE CARE HOME,CT230753350,Nursing Homes
SHEFFIELD CITY COUNCIL,PEOPLE,14009346039,ADULT SOCIAL CARE PURCHASING,9210001,CONTINUING NURSING CARE,18/07/2018,J2331719120818,"1,812.00",ASCOT LODGE CARE HOME,CT230753350,Nursing Homes
SHEFFIELD CITY COUNCIL,PEOPLE,14009346039,ADULT SOCIAL CARE PURCHASING,9210001,CONTINUING NURSING CARE,18/07/2018,J2331719120818,"1,812.00",ASCOT LODGE CARE HOME,CT230753350,Nursing Homes
SHEFFIELD CITY COUNCIL,PEOPLE,14009346039,ADULT SOCIAL CARE PURCHASING,9210001,CONTINUING NURSING CARE,18/07/2018,J2331719120818,"1,812.00",ASCOT LODGE CARE HOME,CT230753350,Nursing Homes
SHEFFIELD CITY COUNCIL,PEOPLE,14009346039,ADULT SOCIAL CARE PURCHASING,9200002,SHORT TERM RESIDENTIAL CARE,18/07/2018,J2331535150718,"1,852.00",ASCOT LODGE CARE HOME,CT230753350,Nursing Homes
SHEFFIELD CITY COUNCIL,PEOPLE,14009346039,ADULT SOCIAL CARE PURCHASING,9210001,CONTINUING NURSING CARE,18/07/2018,J2331719120818,"2,052.00",ASCOT LODGE CARE HOME,CT230753350,Nursing Homes
SHEFFIELD CITY COUNCIL,PEOPLE,14009346039,ADULT SOCIAL CARE PURCHASING,9210001,CONTINUING NURSING CARE,18/07/2018,J2331719120818,"2,052.00",ASCOT LODGE CARE HOME,CT230753350,Nursing Homes
SHEFFIELD CITY COUNCIL,PEOPLE,14009346039,ADULT SOCIAL CARE PURCHASING,9210001,CONTINUING NURSING CARE,18/07/2018,J2331719120818,"2,052.00",ASCOT LODGE CARE HOME,CT230753350,Nursing Homes
SHEFFIELD CITY COUNCIL,PEOPLE,14009346039,ADULT SOCIAL CARE PURCHASING,9210001,CONTINUING NURSING CARE,18/07/2018,J2331719120818,"2,052.00",ASCOT LODGE CARE HOME,CT230753350,Nursing Homes
SHEFFIELD CITY COUNCIL,PEOPLE,14009346039,ADULT SOCIAL CARE PURCHASING,9200001,CONTINUING RESIDENTIAL CARE,18/07/2018,J2331719120818,"2,092.00",ASCOT LODGE CARE HOME,CT230753350,Nursing Homes
SHEFFIELD CITY COUNCIL,PEOPLE,14032149672,CONTRACT PAYMENTS - DRUGS,9030000,HEALTH,10/07/2018,MPA20180710311-0004,962.40,ASDA PHARMACY - ADSA STORES LTD,CT140317440,Chemists - Dispensing
SHEFFIELD CITY COUNCIL,PLACE,14058600000,LOCAL ASSISTANCE SCHEME,8350000,MISCELLANEOUS EXPENSES,19/07/2018,67351,"2,000.00",ASDA STORES LIMITED,CT130174420,Supermarkets
SHEFFIELD CITY COUNCIL,PLACE,14058600000,LOCAL ASSISTANCE SCHEME,8350000,MISCELLANEOUS EXPENSES,19/07/2018,67125,"5,000.00",ASDA STORES LIMITED,CT130174420,Supermarkets
SHEFFIELD CITY COUNCIL,PEOPLE,14009346039,ADULT SOCIAL CARE PURCHASING,4260018,RESIDENTIAL COSTS RECOVERED,18/07/2018,J2290466200518,"-2,269.50",ASH HOUSE RESIDENTIAL HOME,CT230164710,Residential Care Homes
SHEFFIELD CITY COUNCIL,PEOPLE,14009346039,ADULT SOCIAL CARE PURCHASING,4260018,RESIDENTIAL COSTS RECOVERED,18/07/2018,J2331629120818,"-1,142.84",ASH HOUSE RESIDENTIAL HOME,CT230164710,Residential Care Homes
SHEFFIELD CITY COUNCIL,PEOPLE,14009346039,ADULT SOCIAL CARE PURCHASING,4260018,RESIDENTIAL COSTS RECOVERED,19/07/2018,J2303190150718,"-1,142.84",ASH HOUSE RESIDENTIAL HOME,CT230164710,Residential Care Homes
SHEFFIELD CITY COUNCIL,PEOPLE,14009346039,ADULT SOCIAL CARE PURCHASING,4260018,RESIDENTIAL COSTS RECOVERED,18/07/2018,J2331629120818,"-1,034.68",ASH HOUSE RESIDENTIAL HOME,CT230164710,Residential Care Homes
SHEFFIELD CITY COUNCIL,PEOPLE,14009346039,ADULT SOCIAL CARE PURCHASING,4260018,RESIDENTIAL COSTS RECOVERED,19/07/2018,J2303190150718,"-1,034.68",ASH HOUSE RESIDENTIAL HOME,CT230164710,Residential Care Homes
SHEFFIELD CITY COUNCIL,PEOPLE,14009346039,ADULT SOCIAL CARE PURCHASING,4260018,RESIDENTIAL COSTS RECOVERED,18/07/2018,J2323046170618,-749.69,ASH HOUSE RESIDENTIAL HOME,CT230164710,Residential Care Homes
SHEFFIELD CITY COUNCIL,PEOPLE,14009346039,ADULT SOCIAL CARE PURCHASING,4260018,RESIDENTIAL COSTS RECOVERED,18/07/2018,J2331629120818,-714.28,ASH HOUSE RESIDENTIAL HOME,CT230164710,Residential Care Homes
SHEFFIELD CITY COUNCIL,PEOPLE,14009346039,ADULT SOCIAL CARE PURCHASING,9190004,DIRECT PAYMENTS,10/07/2018,J2324004,"5,959.00",REDACTED PERSONAL DATA,CT9999DIRPY,CAREFIRST DIRECT PAYMENTS
SHEFFIELD CITY COUNCIL,PEOPLE,14009346039,ADULT SOCIAL CARE PURCHASING,4260018,RESIDENTIAL COSTS RECOVERED,19/07/2018,J2303190150718,-714.28,ASH HOUSE RESIDENTIAL HOME,CT230164710,Residential Care Homes
SHEFFIELD CITY COUNCIL,PEOPLE,14009346039,ADULT SOCIAL CARE PURCHASING,4260018,RESIDENTIAL COSTS RECOVERED,18/07/2018,J2331629120818,-691.88,ASH HOUSE RESIDENTIAL HOME,CT230164710,Residential Care Homes
SHEFFIELD CITY COUNCIL,PEOPLE,14009346039,ADULT SOCIAL CARE PURCHASING,4260018,RESIDENTIAL COSTS RECOVERED,19/07/2018,J2303190150718,-691.88,ASH HOUSE RESIDENTIAL HOME,CT230164710,Residential Care Homes
SHEFFIELD CITY COUNCIL,PEOPLE,14009346039,ADULT SOCIAL CARE PURCHASING,4260018,RESIDENTIAL COSTS RECOVERED,18/07/2018,J2331629120818,-673.20,ASH HOUSE RESIDENTIAL HOME,CT230164710,Residential Care Homes
SHEFFIELD CITY COUNCIL,PEOPLE,14009346039,ADULT SOCIAL CARE PURCHASING,4260018,RESIDENTIAL COSTS RECOVERED,19/07/2018,J2303190150718,-673.20,ASH HOUSE RESIDENTIAL HOME,CT230164710,Residential Care Homes
SHEFFIELD CITY COUNCIL,PEOPLE,14009346039,ADULT SOCIAL CARE PURCHASING,4260018,RESIDENTIAL COSTS RECOVERED,18/07/2018,J2331629120818,-632.84,ASH HOUSE RESIDENTIAL HOME,CT230164710,Residential Care Homes
SHEFFIELD CITY COUNCIL,PEOPLE,14009346039,ADULT SOCIAL CARE PURCHASING,4260018,RESIDENTIAL COSTS RECOVERED,19/07/2018,J2303190150718,-632.84,ASH HOUSE RESIDENTIAL HOME,CT230164710,Residential Care Homes
SHEFFIELD CITY COUNCIL,PEOPLE,14009346039,ADULT SOCIAL CARE PURCHASING,4260018,RESIDENTIAL COSTS RECOVERED,18/07/2018,J2331629120818,-623.68,ASH HOUSE RESIDENTIAL HOME,CT230164710,Residential Care Homes
SHEFFIELD CITY COUNCIL,PEOPLE,14009346039,ADULT SOCIAL CARE PURCHASING,4260018,RESIDENTIAL COSTS RECOVERED,19/07/2018,J2303190150718,-623.68,ASH HOUSE RESIDENTIAL HOME,CT230164710,Residential Care Homes
SHEFFIELD CITY COUNCIL,PEOPLE,14009346039,ADULT SOCIAL CARE PURCHASING,4260018,RESIDENTIAL COSTS RECOVERED,18/07/2018,J2331629120818,-568.80,ASH HOUSE RESIDENTIAL HOME,CT230164710,Residential Care Homes
SHEFFIELD CITY COUNCIL,PEOPLE,14009346039,ADULT SOCIAL CARE PURCHASING,4260018,RESIDENTIAL COSTS RECOVERED,19/07/2018,J2303190150718,-568.80,ASH HOUSE RESIDENTIAL HOME,CT230164710,Residential Care Homes
SHEFFIELD CITY COUNCIL,PEOPLE,14009346039,ADULT SOCIAL CARE PURCHASING,4260018,RESIDENTIAL COSTS RECOVERED,18/07/2018,J2331629120818,-552.40,ASH HOUSE RESIDENTIAL HOME,CT230164710,Residential Care Homes
SHEFFIELD CITY COUNCIL,PEOPLE,14009242034,PURCHASING LEARNING DISABILITI,4260018,RESIDENTIAL COSTS RECOVERED,18/07/2018,J2331629120818,-552.40,ASH HOUSE RESIDENTIAL HOME,CT230164710,Residential Care Homes
SHEFFIELD CITY COUNCIL,PEOPLE,14009346039,ADULT SOCIAL CARE PURCHASING,4260018,RESIDENTIAL COSTS RECOVERED,18/07/2018,J2331629120818,-552.40,ASH HOUSE RESIDENTIAL HOME,CT230164710,Residential Care Homes
SHEFFIELD CITY COUNCIL,PEOPLE,14009346039,ADULT SOCIAL CARE PURCHASING,4260018,RESIDENTIAL COSTS RECOVERED,18/07/2018,J2331629120818,-552.40,ASH HOUSE RESIDENTIAL HOME,CT230164710,Residential Care Homes
SHEFFIELD CITY COUNCIL,PEOPLE,14009346039,ADULT SOCIAL CARE PURCHASING,4260018,RESIDENTIAL COSTS RECOVERED,18/07/2018,J2331629120818,-552.40,ASH HOUSE RESIDENTIAL HOME,CT230164710,Residential Care Homes
SHEFFIELD CITY COUNCIL,PEOPLE,14009346039,ADULT SOCIAL CARE PURCHASING,4260018,RESIDENTIAL COSTS RECOVERED,19/07/2018,J2303190150718,-552.40,ASH HOUSE RESIDENTIAL HOME,CT230164710,Residential Care Homes
SHEFFIELD CITY COUNCIL,PEOPLE,14009346039,ADULT SOCIAL CARE PURCHASING,4260018,RESIDENTIAL COSTS RECOVERED,19/07/2018,J2303190150718,-552.40,ASH HOUSE RESIDENTIAL HOME,CT230164710,Residential Care Homes
SHEFFIELD CITY COUNCIL,PEOPLE,14009346039,ADULT SOCIAL CARE PURCHASING,4260018,RESIDENTIAL COSTS RECOVERED,19/07/2018,J2303190150718,-552.40,ASH HOUSE RESIDENTIAL HOME,CT230164710,Residential Care Homes
SHEFFIELD CITY COUNCIL,PEOPLE,14009346039,ADULT SOCIAL CARE PURCHASING,4260018,RESIDENTIAL COSTS RECOVERED,19/07/2018,J2303190150718,-552.40,ASH HOUSE RESIDENTIAL HOME,CT230164710,Residential Care Homes
SHEFFIELD CITY COUNCIL,PEOPLE,14009242034,PURCHASING LEARNING DISABILITI,4260018,RESIDENTIAL COSTS RECOVERED,19/07/2018,J2303190150718,-552.40,ASH HOUSE RESIDENTIAL HOME,CT230164710,Residential Care Homes
SHEFFIELD CITY COUNCIL,PEOPLE,14009346039,ADULT SOCIAL CARE PURCHASING,4260018,RESIDENTIAL COSTS RECOVERED,18/07/2018,J2331629120818,-527.20,ASH HOUSE RESIDENTIAL HOME,CT230164710,Residential Care Homes
SHEFFIELD CITY COUNCIL,PEOPLE,14009346039,ADULT SOCIAL CARE PURCHASING,4260018,RESIDENTIAL COSTS RECOVERED,19/07/2018,J2303190150718,-527.20,ASH HOUSE RESIDENTIAL HOME,CT230164710,Residential Care Homes
SHEFFIELD CITY COUNCIL,PEOPLE,14009346039,ADULT SOCIAL CARE PURCHASING,4260018,RESIDENTIAL COSTS RECOVERED,18/07/2018,J2323046170618,-238.10,ASH HOUSE RESIDENTIAL HOME,CT230164710,Residential Care Homes
SHEFFIELD CITY COUNCIL,PEOPLE,14009346039,ADULT SOCIAL CARE PURCHASING,4260018,RESIDENTIAL COSTS RECOVERED,18/07/2018,J2331506150718,-39.46,ASH HOUSE RESIDENTIAL HOME,CT230164710,Residential Care Homes
SHEFFIELD CITY COUNCIL,PEOPLE,14009346039,ADULT SOCIAL CARE PURCHASING,9200001,CONTINUING RESIDENTIAL CARE,27/07/2018,J2340503120818,522.00,ASH HOUSE RESIDENTIAL HOME,CT230164710,Residential Care Homes
SHEFFIELD CITY COUNCIL,PEOPLE,14009346039,ADULT SOCIAL CARE PURCHASING,9200001,CONTINUING RESIDENTIAL CARE,27/07/2018,J2340503120818,522.00,ASH HOUSE RESIDENTIAL HOME,CT230164710,Residential Care Homes
SHEFFIELD CITY COUNCIL,PEOPLE,14009346039,ADULT SOCIAL CARE PURCHASING,9200001,CONTINUING RESIDENTIAL CARE,27/07/2018,J2340503120818,522.00,ASH HOUSE RESIDENTIAL HOME,CT230164710,Residential Care Homes
SHEFFIELD CITY COUNCIL,PEOPLE,14009346039,ADULT SOCIAL CARE PURCHASING,9200001,CONTINUING RESIDENTIAL CARE,27/07/2018,J2340503120818,522.00,ASH HOUSE RESIDENTIAL HOME,CT230164710,Residential Care Homes
SHEFFIELD CITY COUNCIL,PEOPLE,14009346039,ADULT SOCIAL CARE PURCHASING,9200001,CONTINUING RESIDENTIAL CARE,27/07/2018,J2340503120818,522.00,ASH HOUSE RESIDENTIAL HOME,CT230164710,Residential Care Homes
SHEFFIELD CITY COUNCIL,PEOPLE,14009346039,ADULT SOCIAL CARE PURCHASING,9200001,CONTINUING RESIDENTIAL CARE,27/07/2018,J2340503120818,522.00,ASH HOUSE RESIDENTIAL HOME,CT230164710,Residential Care Homes
SHEFFIELD CITY COUNCIL,PEOPLE,14009346039,ADULT SOCIAL CARE PURCHASING,9200001,CONTINUING RESIDENTIAL CARE,27/07/2018,J2340503120818,522.00,ASH HOUSE RESIDENTIAL HOME,CT230164710,Residential Care Homes
SHEFFIELD CITY COUNCIL,PEOPLE,14009346039,ADULT SOCIAL CARE PURCHASING,9200001,CONTINUING RESIDENTIAL CARE,27/07/2018,J2340503120818,522.00,ASH HOUSE RESIDENTIAL HOME,CT230164710,Residential Care Homes
SHEFFIELD CITY COUNCIL,PEOPLE,14009346039,ADULT SOCIAL CARE PURCHASING,9200001,CONTINUING RESIDENTIAL CARE,27/07/2018,J2340503120818,522.00,ASH HOUSE RESIDENTIAL HOME,CT230164710,Residential Care Homes
SHEFFIELD CITY COUNCIL,PEOPLE,14009346039,ADULT SOCIAL CARE PURCHASING,9200001,CONTINUING RESIDENTIAL CARE,27/07/2018,J2340503120818,522.00,ASH HOUSE RESIDENTIAL HOME,CT230164710,Residential Care Homes
SHEFFIELD CITY COUNCIL,PEOPLE,14009346039,ADULT SOCIAL CARE PURCHASING,9200001,CONTINUING RESIDENTIAL CARE,27/07/2018,J2340503120818,522.00,ASH HOUSE RESIDENTIAL HOME,CT230164710,Residential Care Homes
SHEFFIELD CITY COUNCIL,PEOPLE,14009242034,PURCHASING LEARNING DISABILITI,9200001,CONTINUING RESIDENTIAL CARE,27/07/2018,J2340503120818,666.00,ASH HOUSE RESIDENTIAL HOME,CT230164710,Residential Care Homes
SHEFFIELD CITY COUNCIL,PEOPLE,14009346039,ADULT SOCIAL CARE PURCHASING,9200001,CONTINUING RESIDENTIAL CARE,27/07/2018,J2340503120818,666.00,ASH HOUSE RESIDENTIAL HOME,CT230164710,Residential Care Homes
SHEFFIELD CITY COUNCIL,PEOPLE,14009346039,ADULT SOCIAL CARE PURCHASING,9200002,SHORT TERM RESIDENTIAL CARE,18/07/2018,J2323046170618,926.00,ASH HOUSE RESIDENTIAL HOME,CT230164710,Residential Care Homes
SHEFFIELD CITY COUNCIL,PEOPLE,14009346039,ADULT SOCIAL CARE PURCHASING,9200001,CONTINUING RESIDENTIAL CARE,27/07/2018,J2340503120818,"1,332.00",ASH HOUSE RESIDENTIAL HOME,CT230164710,Residential Care Homes
SHEFFIELD CITY COUNCIL,PEOPLE,14009346039,ADULT SOCIAL CARE PURCHASING,9200001,CONTINUING RESIDENTIAL CARE,27/07/2018,J2340503120818,"1,332.00",ASH HOUSE RESIDENTIAL HOME,CT230164710,Residential Care Homes
SHEFFIELD CITY COUNCIL,PEOPLE,14009346039,ADULT SOCIAL CARE PURCHASING,9200001,CONTINUING RESIDENTIAL CARE,18/07/2018,J2331629120818,"1,556.00",ASH HOUSE RESIDENTIAL HOME,CT230164710,Residential Care Homes
SHEFFIELD CITY COUNCIL,PEOPLE,14009346039,ADULT SOCIAL CARE PURCHASING,9200001,CONTINUING RESIDENTIAL CARE,18/07/2018,J2331629120818,"1,556.00",ASH HOUSE RESIDENTIAL HOME,CT230164710,Residential Care Homes
SHEFFIELD CITY COUNCIL,PEOPLE,14009346039,ADULT SOCIAL CARE PURCHASING,9200001,CONTINUING RESIDENTIAL CARE,19/07/2018,J2303190150718,"1,556.00",ASH HOUSE RESIDENTIAL HOME,CT230164710,Residential Care Homes
SHEFFIELD CITY COUNCIL,PEOPLE,14009346039,ADULT SOCIAL CARE PURCHASING,9200001,CONTINUING RESIDENTIAL CARE,19/07/2018,J2303190150718,"1,556.00",ASH HOUSE RESIDENTIAL HOME,CT230164710,Residential Care Homes
SHEFFIELD CITY COUNCIL,PEOPLE,14009242034,PURCHASING LEARNING DISABILITI,9200001,CONTINUING RESIDENTIAL CARE,18/07/2018,J2331629120818,"1,704.00",ASH HOUSE RESIDENTIAL HOME,CT230164710,Residential Care Homes
SHEFFIELD CITY COUNCIL,PEOPLE,14009346039,ADULT SOCIAL CARE PURCHASING,9190004,DIRECT PAYMENTS,10/07/2018,J2324004,"1,103.64",REDACTED PERSONAL DATA,CT9999DIRPY,CAREFIRST DIRECT PAYMENTS
SHEFFIELD CITY COUNCIL,PEOPLE,14009346039,ADULT SOCIAL CARE PURCHASING,9200001,CONTINUING RESIDENTIAL CARE,18/07/2018,J2331629120818,"1,704.00",ASH HOUSE RESIDENTIAL HOME,CT230164710,Residential Care Homes
SHEFFIELD CITY COUNCIL,PEOPLE,14009242034,PURCHASING LEARNING DISABILITI,9200001,CONTINUING RESIDENTIAL CARE,19/07/2018,J2303190150718,"1,704.00",ASH HOUSE RESIDENTIAL HOME,CT230164710,Residential Care Homes
SHEFFIELD CITY COUNCIL,PEOPLE,14009346039,ADULT SOCIAL CARE PURCHASING,9200001,CONTINUING RESIDENTIAL CARE,19/07/2018,J2303190150718,"1,704.00",ASH HOUSE RESIDENTIAL HOME,CT230164710,Residential Care Homes
SHEFFIELD CITY COUNCIL,PEOPLE,14009346039,ADULT SOCIAL CARE PURCHASING,9200001,CONTINUING RESIDENTIAL CARE,18/07/2018,J2331629120818,"1,736.00",ASH HOUSE RESIDENTIAL HOME,CT230164710,Residential Care Homes
SHEFFIELD CITY COUNCIL,PEOPLE,14009346039,ADULT SOCIAL CARE PURCHASING,9200001,CONTINUING RESIDENTIAL CARE,18/07/2018,J2331629120818,"1,736.00",ASH HOUSE RESIDENTIAL HOME,CT230164710,Residential Care Homes
SHEFFIELD CITY COUNCIL,PEOPLE,14009346039,ADULT SOCIAL CARE PURCHASING,9200001,CONTINUING RESIDENTIAL CARE,18/07/2018,J2331629120818,"1,736.00",ASH HOUSE RESIDENTIAL HOME,CT230164710,Residential Care Homes
SHEFFIELD CITY COUNCIL,PEOPLE,14009346039,ADULT SOCIAL CARE PURCHASING,9200001,CONTINUING RESIDENTIAL CARE,18/07/2018,J2331629120818,"1,736.00",ASH HOUSE RESIDENTIAL HOME,CT230164710,Residential Care Homes
SHEFFIELD CITY COUNCIL,PEOPLE,14009346039,ADULT SOCIAL CARE PURCHASING,9200001,CONTINUING RESIDENTIAL CARE,18/07/2018,J2331629120818,"1,736.00",ASH HOUSE RESIDENTIAL HOME,CT230164710,Residential Care Homes
SHEFFIELD CITY COUNCIL,PEOPLE,14009346039,ADULT SOCIAL CARE PURCHASING,9200001,CONTINUING RESIDENTIAL CARE,18/07/2018,J2331629120818,"1,736.00",ASH HOUSE RESIDENTIAL HOME,CT230164710,Residential Care Homes
SHEFFIELD CITY COUNCIL,PEOPLE,14009346039,ADULT SOCIAL CARE PURCHASING,9200001,CONTINUING RESIDENTIAL CARE,18/07/2018,J2331629120818,"1,736.00",ASH HOUSE RESIDENTIAL HOME,CT230164710,Residential Care Homes
SHEFFIELD CITY COUNCIL,PEOPLE,14009346039,ADULT SOCIAL CARE PURCHASING,9200001,CONTINUING RESIDENTIAL CARE,18/07/2018,J2331629120818,"1,736.00",ASH HOUSE RESIDENTIAL HOME,CT230164710,Residential Care Homes
SHEFFIELD CITY COUNCIL,PEOPLE,14009346039,ADULT SOCIAL CARE PURCHASING,9200001,CONTINUING RESIDENTIAL CARE,18/07/2018,J2331629120818,"1,736.00",ASH HOUSE RESIDENTIAL HOME,CT230164710,Residential Care Homes
SHEFFIELD CITY COUNCIL,PEOPLE,14009346039,ADULT SOCIAL CARE PURCHASING,9200001,CONTINUING RESIDENTIAL CARE,18/07/2018,J2331629120818,"1,736.00",ASH HOUSE RESIDENTIAL HOME,CT230164710,Residential Care Homes
SHEFFIELD CITY COUNCIL,PEOPLE,14009346039,ADULT SOCIAL CARE PURCHASING,9200001,CONTINUING RESIDENTIAL CARE,18/07/2018,J2331629120818,"1,736.00",ASH HOUSE RESIDENTIAL HOME,CT230164710,Residential Care Homes
SHEFFIELD CITY COUNCIL,PEOPLE,14009346039,ADULT SOCIAL CARE PURCHASING,9200001,CONTINUING RESIDENTIAL CARE,19/07/2018,J2303190150718,"1,736.00",ASH HOUSE RESIDENTIAL HOME,CT230164710,Residential Care Homes
SHEFFIELD CITY COUNCIL,PEOPLE,14009346039,ADULT SOCIAL CARE PURCHASING,9200001,CONTINUING RESIDENTIAL CARE,19/07/2018,J2303190150718,"1,736.00",ASH HOUSE RESIDENTIAL HOME,CT230164710,Residential Care Homes
SHEFFIELD CITY COUNCIL,PEOPLE,14009346039,ADULT SOCIAL CARE PURCHASING,9200001,CONTINUING RESIDENTIAL CARE,19/07/2018,J2303190150718,"1,736.00",ASH HOUSE RESIDENTIAL HOME,CT230164710,Residential Care Homes
SHEFFIELD CITY COUNCIL,PEOPLE,14009346039,ADULT SOCIAL CARE PURCHASING,9200001,CONTINUING RESIDENTIAL CARE,19/07/2018,J2303190150718,"1,736.00",ASH HOUSE RESIDENTIAL HOME,CT230164710,Residential Care Homes
SHEFFIELD CITY COUNCIL,PEOPLE,14009346039,ADULT SOCIAL CARE PURCHASING,9200001,CONTINUING RESIDENTIAL CARE,19/07/2018,J2303190150718,"1,736.00",ASH HOUSE RESIDENTIAL HOME,CT230164710,Residential Care Homes
SHEFFIELD CITY COUNCIL,PEOPLE,14009346039,ADULT SOCIAL CARE PURCHASING,9200001,CONTINUING RESIDENTIAL CARE,19/07/2018,J2303190150718,"1,736.00",ASH HOUSE RESIDENTIAL HOME,CT230164710,Residential Care Homes
SHEFFIELD CITY COUNCIL,PEOPLE,14009346039,ADULT SOCIAL CARE PURCHASING,9200001,CONTINUING RESIDENTIAL CARE,19/07/2018,J2303190150718,"1,736.00",ASH HOUSE RESIDENTIAL HOME,CT230164710,Residential Care Homes
SHEFFIELD CITY COUNCIL,PEOPLE,14009346039,ADULT SOCIAL CARE PURCHASING,9200001,CONTINUING RESIDENTIAL CARE,19/07/2018,J2303190150718,"1,736.00",ASH HOUSE RESIDENTIAL HOME,CT230164710,Residential Care Homes
SHEFFIELD CITY COUNCIL,PEOPLE,14009346039,ADULT SOCIAL CARE PURCHASING,9200001,CONTINUING RESIDENTIAL CARE,19/07/2018,J2303190150718,"1,736.00",ASH HOUSE RESIDENTIAL HOME,CT230164710,Residential Care Homes
SHEFFIELD CITY COUNCIL,PEOPLE,14009346039,ADULT SOCIAL CARE PURCHASING,9200001,CONTINUING RESIDENTIAL CARE,19/07/2018,J2303190150718,"1,736.00",ASH HOUSE RESIDENTIAL HOME,CT230164710,Residential Care Homes
SHEFFIELD CITY COUNCIL,PEOPLE,14009346039,ADULT SOCIAL CARE PURCHASING,9200001,CONTINUING RESIDENTIAL CARE,19/07/2018,J2303190150718,"1,736.00",ASH HOUSE RESIDENTIAL HOME,CT230164710,Residential Care Homes
SHEFFIELD CITY COUNCIL,PEOPLE,14009346039,ADULT SOCIAL CARE PURCHASING,9200002,SHORT TERM RESIDENTIAL CARE,18/07/2018,J2323046170618,"2,513.43",ASH HOUSE RESIDENTIAL HOME,CT230164710,Residential Care Homes
SHEFFIELD CITY COUNCIL,PEOPLE,14009346039,ADULT SOCIAL CARE PURCHASING,9200002,SHORT TERM RESIDENTIAL CARE,18/07/2018,J2290466200518,"6,168.43",ASH HOUSE RESIDENTIAL HOME,CT230164710,Residential Care Homes
SHEFFIELD CITY COUNCIL,PEOPLE,14009346039,ADULT SOCIAL CARE PURCHASING,4260018,RESIDENTIAL COSTS RECOVERED,18/07/2018,J2331631120818,-552.40,ASHFIELD CARE LIMITED,CT230753350,Nursing Homes
SHEFFIELD CITY COUNCIL,PEOPLE,14009346039,ADULT SOCIAL CARE PURCHASING,9190004,DIRECT PAYMENTS,10/07/2018,J2324004,"3,808.16",REDACTED PERSONAL DATA,CT9999DIRPY,CAREFIRST DIRECT PAYMENTS
SHEFFIELD CITY COUNCIL,PEOPLE,14009346039,ADULT SOCIAL CARE PURCHASING,4260011,NURSING COSTS RECOVERED,18/07/2018,J2331631120818,-540.04,ASHFIELD CARE LIMITED,CT230753350,Nursing Homes
SHEFFIELD CITY COUNCIL,PEOPLE,14009346039,ADULT SOCIAL CARE PURCHASING,9210001,CONTINUING NURSING CARE,18/07/2018,J2331631120818,"1,519.64",ASHFIELD CARE LIMITED,CT230753350,Nursing Homes
SHEFFIELD CITY COUNCIL,PEOPLE,14009346039,ADULT SOCIAL CARE PURCHASING,9200001,CONTINUING RESIDENTIAL CARE,18/07/2018,J2331631120818,"1,704.56",ASHFIELD CARE LIMITED,CT230753350,Nursing Homes
SHEFFIELD CITY COUNCIL,PEOPLE,13004132048,SCHOOL SPORTS,7060000,EXTERNAL VEHICLE HIRE,27/07/2018,AT110982,"4,265.00",ASHLEY TRAVEL LTD,CT261851180,Mini Buses - Hire & Leasing
SHEFFIELD CITY COUNCIL,PEOPLE,14045349858,MATERIALS FUND,8080000,LIBRARY MATERIALS,25/07/2018,973692,264.56,ASKEWS LIBRARY SERVICES LTD,CT180109849,Booksellers
SHEFFIELD CITY COUNCIL,PEOPLE,14045349858,MATERIALS FUND,8080000,LIBRARY MATERIALS,25/07/2018,973517,277.90,ASKEWS LIBRARY SERVICES LTD,CT180109849,Booksellers
SHEFFIELD CITY COUNCIL,PEOPLE,14045349858,MATERIALS FUND,8080000,LIBRARY MATERIALS,16/07/2018,973347,"1,557.17",ASKEWS LIBRARY SERVICES LTD,CT180109849,Booksellers
SHEFFIELD CITY COUNCIL,PEOPLE,14045349858,MATERIALS FUND,8080000,LIBRARY MATERIALS,06/07/2018,973163,"2,690.20",ASKEWS LIBRARY SERVICES LTD,CT180109849,Booksellers
SHEFFIELD CITY COUNCIL,PEOPLE,14045349858,MATERIALS FUND,8080000,LIBRARY MATERIALS,25/07/2018,973516,"3,282.70",ASKEWS LIBRARY SERVICES LTD,CT180109849,Booksellers
SHEFFIELD CITY COUNCIL,PEOPLE,14045349858,MATERIALS FUND,8080000,LIBRARY MATERIALS,25/07/2018,973691,"4,155.41",ASKEWS LIBRARY SERVICES LTD,CT180109849,Booksellers
SHEFFIELD CITY COUNCIL,PEOPLE,14045349858,MATERIALS FUND,8080000,LIBRARY MATERIALS,05/07/2018,970890,"5,083.75",ASKEWS LIBRARY SERVICES LTD,CT180109849,Booksellers
SHEFFIELD CITY COUNCIL,PEOPLE,13002439357,SHORT BREAKS FUNDING FOR DISAB,9120000,OTHER AGENCIES,11/07/2018,618,"3,750.00",ASPERGERS CHILDREN & CARERS TOGETHER,CT230417020,Charities & Voluntary Organisations
SHEFFIELD CITY COUNCIL,PEOPLE,13008633055,ADULT EDUCATION ADMIN,8550000,OTHER SERVICES,25/07/2018,11427,250.00,ASPIRING COMMUNITIES TOGETHER LTD,CT230417020,Charities & Voluntary Organisations
SHEFFIELD CITY COUNCIL,PEOPLE,13003739491,SSCB,8270000,SUBSCRIPTIONS,05/07/2018,918,"1,500.00",ASS OF INDEPENDENT LSCB CHAIRS LTD,CT209919470,Clubs & Associations
SHEFFIELD CITY COUNCIL,PEOPLE,13003439047,ALDINE HOUSE,8050000,FURNITURE PURCHASES,03/07/2018,1221073685,360.00,ASSA ABLOY UK LTD TA TRAKA,CT024021800,Control System Equipment
SHEFFIELD CITY COUNCIL,PLACE,12045925038,ECOLOGY,8440000,FEE EXPENSES,18/07/2018,M2018-36,450.00,ASSN LOCAL ENVIRONMENTAL RECORD CENTRES,CT180345170,Information Services
SHEFFIELD CITY COUNCIL,"POLICY, PERFORMANCE AND COMMS",11300100000,PUBLIC HEALTH - DPH,8350000,MISCELLANEOUS EXPENSES,18/07/2018,I-180110,"3,750.00",ASSOC OF DIRECTORS OF PUBLIC HEALTH,CT230417020,Charities & Voluntary Organisations
SHEFFIELD CITY COUNCIL,PEOPLE,14033300000,MEDICATION ADMIN RECORDS - MAR,9120000,OTHER AGENCIES,09/07/2018,MPA20180709310-0001,480.00,ASSOCIATED CHEMIST WICKER LTD,CT140317440,Chemists - Dispensing
SHEFFIELD CITY COUNCIL,PEOPLE,14032149672,CONTRACT PAYMENTS - DRUGS,9030000,HEALTH,13/07/2018,DWHF/00000250,"2,070.40",ASSOCIATED CHEMIST WICKER LTD,CT140317440,Chemists - Dispensing
SHEFFIELD CITY COUNCIL,PEOPLE,14032149672,CONTRACT PAYMENTS - DRUGS,9030000,HEALTH,13/07/2018,DWHF/00000250,"4,379.20",ASSOCIATED CHEMIST WICKER LTD,CT140317440,Chemists - Dispensing
SHEFFIELD CITY COUNCIL,PEOPLE,14009346039,ADULT SOCIAL CARE PURCHASING,9190002,BLOCK CONTRACT,24/07/2018,J2087976051117,459.20,AWESOME HEALTHCARE SOLUTIONS,CT230243419,Home Care Services
SHEFFIELD CITY COUNCIL,PEOPLE,14009346039,ADULT SOCIAL CARE PURCHASING,4260008,DIRECT PAYMENTS,10/07/2018,J2324004,-130.12,REDACTED PERSONAL DATA,CT9999DIRPY,CAREFIRST DIRECT PAYMENTS
SHEFFIELD CITY COUNCIL,PEOPLE,13007933018,100 APPRENTICES,9120000,OTHER AGENCIES,17/07/2018,22,292.12,ASSOCIATED CHEMISTS (WICKER) LTD,CT140317440,Chemists - Dispensing
SHEFFIELD CITY COUNCIL,PEOPLE,14009346039,ADULT SOCIAL CARE PURCHASING,9200001,CONTINUING RESIDENTIAL CARE,18/07/2018,J2331757120818,"2,240.00",ASTON BROOK CARE HOMES,CT230164710,Residential Care Homes
SHEFFIELD CITY COUNCIL,PEOPLE,14009346039,ADULT SOCIAL CARE PURCHASING,9200001,CONTINUING RESIDENTIAL CARE,10/07/2018,J2323993150718,"10,320.00",ASTON BROOK CARE HOMES,CT230164710,Residential Care Homes
SHEFFIELD CITY COUNCIL,PEOPLE,13001138078,NURSERY ED FUND,8180000,GRANTS,19/07/2018,AMENDMENT_SUMMER_18,413.40,ASTREA MULTI ACADEMY TRUST CENTRAL,CT091167860,Schools - Independent & Preparatory
SHEFFIELD CITY COUNCIL,PEOPLE,13001138078,NURSERY ED FUND,8180000,GRANTS,19/07/2018,AMENDMENT_SUMMER_18,565.20,ASTREA MULTI ACADEMY TRUST CENTRAL,CT091167860,Schools - Independent & Preparatory
SHEFFIELD CITY COUNCIL,PEOPLE,13001138078,NURSERY ED FUND,8180000,GRANTS,19/07/2018,AMENDMENT_SUMMER_18,711.99,ASTREA MULTI ACADEMY TRUST CENTRAL,CT091167860,Schools - Independent & Preparatory
SHEFFIELD CITY COUNCIL,PEOPLE,13008832077,GATEWAY 6,9360000,FUNDS ALLOCATED TO SCHOOLS,26/07/2018,19SI11,500.00,ASTREA MULTI ACADEMY TRUST CLUSTER,CT091167860,Schools - Independent & Preparatory
SHEFFIELD CITY COUNCIL,RESOURCES,11202900000,PROCUREMENT & SUPPLY CHAIN,8440000,FEE EXPENSES,13/07/2018,A2017-478,900.00,ATAMIS LTD,CT170220706,Computer Systems & Software (sales)
SHEFFIELD CITY COUNCIL,PEOPLE,14009346039,ADULT SOCIAL CARE PURCHASING,4260011,NURSING COSTS RECOVERED,18/07/2018,J2331699120818,-834.84,ATHORPE LODGE,CT230164710,Residential Care Homes
SHEFFIELD CITY COUNCIL,PEOPLE,14009346039,ADULT SOCIAL CARE PURCHASING,9210001,CONTINUING NURSING CARE,18/07/2018,J2331699120818,"1,178.52",ATHORPE LODGE,CT230164710,Residential Care Homes
SHEFFIELD CITY COUNCIL,PEOPLE,14009346039,ADULT SOCIAL CARE PURCHASING,9210001,CONTINUING NURSING CARE,18/07/2018,J2331699120818,"1,346.12",ATHORPE LODGE,CT230164710,Residential Care Homes
SHEFFIELD CITY COUNCIL,PEOPLE,14009346039,ADULT SOCIAL CARE PURCHASING,9210001,CONTINUING NURSING CARE,18/07/2018,J2331699120818,"1,951.00",ATHORPE LODGE,CT230164710,Residential Care Homes
SHEFFIELD CITY COUNCIL,PEOPLE,13008933040,RED TAPE CENTRAL,6080000,CONTRACT CLEANING,03/07/2018,4447,291.00,ATKIN & SON,CT022084710,Window Cleaners
SHEFFIELD CITY COUNCIL,PEOPLE,14009346039,ADULT SOCIAL CARE PURCHASING,9190004,DIRECT PAYMENTS,10/07/2018,J2324004,"2,538.68",REDACTED PERSONAL DATA,CT9999DIRPY,CAREFIRST DIRECT PAYMENTS
SHEFFIELD CITY COUNCIL,PLACE,14064649320,OLDER PERSON INDEPENDENT LIVIN,6080000,CONTRACT CLEANING,23/07/2018,4461,"1,016.00",ATKIN & SON,CT022084710,Window Cleaners
SHEFFIELD CITY COUNCIL,PLACE,14067649228,MEETING ROOMS GENERAL,6080000,CONTRACT CLEANING,06/07/2018,4292,"1,203.00",ATKIN & SON,CT022084710,Window Cleaners
SHEFFIELD CITY COUNCIL,PEOPLE,13001490479,POST IMPLEMENTATION,1193000,CONSULTANTS FEES,02/07/2018,18007384,"11,500.00",ATKINS LTD,CT073161860,Project Management
SHEFFIELD CITY COUNCIL,PEOPLE,14009242034,PURCHASING LEARNING DISABILITI,9250002,INDEPENDENT DAY CARE,17/07/2018,11502,"1,947.23",AUTISM EAST MIDLANDS,CT230417020,Charities & Voluntary Organisations
SHEFFIELD CITY COUNCIL,PLACE,11513300000,WORKSHOPS,7010000,ROUTINE VEHICLE REPAIR & MTCE,30/07/2018,HSAC100084,-450.89,AUTO BATTERY SERVICE LTD,CT262013240,Car Accessories & Parts
SHEFFIELD CITY COUNCIL,PLACE,11513300000,WORKSHOPS,7010000,ROUTINE VEHICLE REPAIR & MTCE,10/07/2018,HSAC100072,-440.11,AUTO BATTERY SERVICE LTD,CT262013240,Car Accessories & Parts
SHEFFIELD CITY COUNCIL,PLACE,11513300000,WORKSHOPS,7010000,ROUTINE VEHICLE REPAIR & MTCE,16/07/2018,HSAC100050,-290.00,AUTO BATTERY SERVICE LTD,CT262013240,Car Accessories & Parts
SHEFFIELD CITY COUNCIL,PLACE,11513300000,WORKSHOPS,7010000,ROUTINE VEHICLE REPAIR & MTCE,16/07/2018,HSAC100052,-221.88,AUTO BATTERY SERVICE LTD,CT262013240,Car Accessories & Parts
SHEFFIELD CITY COUNCIL,PLACE,11513300000,WORKSHOPS,7010000,ROUTINE VEHICLE REPAIR & MTCE,23/07/2018,HSAC100078,-215.33,AUTO BATTERY SERVICE LTD,CT262013240,Car Accessories & Parts
SHEFFIELD CITY COUNCIL,PLACE,11513300000,WORKSHOPS,7010000,ROUTINE VEHICLE REPAIR & MTCE,30/07/2018,HSAC100080,-210.00,AUTO BATTERY SERVICE LTD,CT262013240,Car Accessories & Parts
SHEFFIELD CITY COUNCIL,PLACE,11513300000,WORKSHOPS,7010000,ROUTINE VEHICLE REPAIR & MTCE,30/07/2018,HSAC100081,-193.84,AUTO BATTERY SERVICE LTD,CT262013240,Car Accessories & Parts
SHEFFIELD CITY COUNCIL,PLACE,11513300000,WORKSHOPS,7010000,ROUTINE VEHICLE REPAIR & MTCE,10/07/2018,HSAC100068,-150.00,AUTO BATTERY SERVICE LTD,CT262013240,Car Accessories & Parts
SHEFFIELD CITY COUNCIL,PLACE,11513300000,WORKSHOPS,7010000,ROUTINE VEHICLE REPAIR & MTCE,13/07/2018,HSAC100058,-111.02,AUTO BATTERY SERVICE LTD,CT262013240,Car Accessories & Parts
SHEFFIELD CITY COUNCIL,PLACE,11513300000,WORKSHOPS,7010000,ROUTINE VEHICLE REPAIR & MTCE,16/07/2018,HSAC100073,-102.01,AUTO BATTERY SERVICE LTD,CT262013240,Car Accessories & Parts
SHEFFIELD CITY COUNCIL,PLACE,11513300000,WORKSHOPS,7010000,ROUTINE VEHICLE REPAIR & MTCE,16/07/2018,HSAC100074,-87.91,AUTO BATTERY SERVICE LTD,CT262013240,Car Accessories & Parts
SHEFFIELD CITY COUNCIL,PLACE,11513300000,WORKSHOPS,7010000,ROUTINE VEHICLE REPAIR & MTCE,03/07/2018,HSAC100066,-69.79,AUTO BATTERY SERVICE LTD,CT262013240,Car Accessories & Parts
SHEFFIELD CITY COUNCIL,PLACE,11513300000,WORKSHOPS,7010000,ROUTINE VEHICLE REPAIR & MTCE,03/07/2018,HSAC100064,-60.00,AUTO BATTERY SERVICE LTD,CT262013240,Car Accessories & Parts
SHEFFIELD CITY COUNCIL,PEOPLE,14009346039,ADULT SOCIAL CARE PURCHASING,9190002,BLOCK CONTRACT,18/07/2018,J2328531240618,493.92,AWESOME HEALTHCARE SOLUTIONS,CT230243419,Home Care Services
SHEFFIELD CITY COUNCIL,PLACE,11513300000,WORKSHOPS,7010000,ROUTINE VEHICLE REPAIR & MTCE,16/07/2018,HSAC100063,-60.00,AUTO BATTERY SERVICE LTD,CT262013240,Car Accessories & Parts
SHEFFIELD CITY COUNCIL,PLACE,11513300000,WORKSHOPS,7010000,ROUTINE VEHICLE REPAIR & MTCE,30/07/2018,HSAC100082,-60.00,AUTO BATTERY SERVICE LTD,CT262013240,Car Accessories & Parts
SHEFFIELD CITY COUNCIL,PLACE,11513300000,WORKSHOPS,7010000,ROUTINE VEHICLE REPAIR & MTCE,30/07/2018,HSAC100079,-51.42,AUTO BATTERY SERVICE LTD,CT262013240,Car Accessories & Parts
SHEFFIELD CITY COUNCIL,PLACE,11513300000,WORKSHOPS,7010000,ROUTINE VEHICLE REPAIR & MTCE,23/07/2018,HSAC100075,-50.27,AUTO BATTERY SERVICE LTD,CT262013240,Car Accessories & Parts
SHEFFIELD CITY COUNCIL,PLACE,11513300000,WORKSHOPS,7010000,ROUTINE VEHICLE REPAIR & MTCE,10/07/2018,HSAC100067,-50.00,AUTO BATTERY SERVICE LTD,CT262013240,Car Accessories & Parts
SHEFFIELD CITY COUNCIL,PLACE,11513300000,WORKSHOPS,7010000,ROUTINE VEHICLE REPAIR & MTCE,18/07/2018,HSAC100062,-50.00,AUTO BATTERY SERVICE LTD,CT262013240,Car Accessories & Parts
SHEFFIELD CITY COUNCIL,PEOPLE,14009346039,ADULT SOCIAL CARE PURCHASING,9190002,BLOCK CONTRACT,18/07/2018,J2328531240618,497.77,AWESOME HEALTHCARE SOLUTIONS,CT230243419,Home Care Services
SHEFFIELD CITY COUNCIL,PLACE,11513300000,WORKSHOPS,7010000,ROUTINE VEHICLE REPAIR & MTCE,23/07/2018,HSAC100077,-42.89,AUTO BATTERY SERVICE LTD,CT262013240,Car Accessories & Parts
SHEFFIELD CITY COUNCIL,PLACE,11513300000,WORKSHOPS,7010000,ROUTINE VEHICLE REPAIR & MTCE,18/07/2018,HSAC100059,-35.70,AUTO BATTERY SERVICE LTD,CT262013240,Car Accessories & Parts
SHEFFIELD CITY COUNCIL,PLACE,11513300000,WORKSHOPS,7010000,ROUTINE VEHICLE REPAIR & MTCE,18/07/2018,HSAC100061,-22.50,AUTO BATTERY SERVICE LTD,CT262013240,Car Accessories & Parts
SHEFFIELD CITY COUNCIL,PLACE,11513300000,WORKSHOPS,7010000,ROUTINE VEHICLE REPAIR & MTCE,10/07/2018,HSAC100069,-16.19,AUTO BATTERY SERVICE LTD,CT262013240,Car Accessories & Parts
SHEFFIELD CITY COUNCIL,PLACE,11513300000,WORKSHOPS,7010000,ROUTINE VEHICLE REPAIR & MTCE,27/07/2018,HSAC100076,-12.28,AUTO BATTERY SERVICE LTD,CT262013240,Car Accessories & Parts
